Workbook

Sheet Overblik
A1: =A922 -> Retten i Glostrup | B1: =_xlfn.IFS($A$1=$A$902,B902,$A$1=$A$903,B903,$A$1=$A$904,B904,$A$1=$A$905,B905,$A$1=$A$906,B906,$A$1=$A$907,B907,$A$1=$A$908,B908,$A$1=$A$909,B909,$A$1=$A$910,B910,$A$1=$A$911,B911,$A$1=$A$912,B912,$A$1=$A$913,B913,$A$1=$A$914,B914,$A$1=$A$915,B915,$A$1=$A$916,B916,$A$1=$A$917,B917,$A$1=$A$918,B918,$A$1=$A$919,B919,$A$1=$A$920,B920,$A$1=$A$921,B921,$A$1=$A$922,B922,$A$1=$A$923,B923,$A$1=$A$924,B924,$A$1=$A$925,B925) -> 101.5689284 | C1: =_xlfn.IFS($A$1=$A$902,C902,$A$1=$A$903,C903,$A$1=$A$904,C904,$A$1=$A$905,C905,$A$1=$A$906,C906,$A$1=$A$907,C907,$A$1=$A$908,C908,$A$1=$A$909,C909,$A$1=$A$910,C910,$A$1=$A$911,C911,$A$1=$A$912,C912,$A$1=$A$913,C913,$A$1=$A$914,C914,$A$1=$A$915,C915,$A$1=$A$916,C916,$A$1=$A$917,C917,$A$1=$A$918,C918,$A$1=$A$919,C919,$A$1=$A$920,C920,$A$1=$A$921,C921,$A$1=$A$922,C922,$A$1=$A$923,C923,$A$1=$A$924,C924,$A$1=$A$925,C925) -> 93.78961058 | D1: =_xlfn.IFS($A$1=$A$902,D902,$A$1=$A$903,D903,$A$1=$A$904,D904,$A$1=$A$905,D905,$A$1=$A$906,D906,$A$1=$A$907,D907,$A$1=$A$908,D908,$A$1=$A$909,D909,$A$1=$A$910,D910,$A$1=$A$911,D911,$A$1=$A$912,D912,$A$1=$A$913,D913,$A$1=$A$914,D914,$A$1=$A$915,D915,$A$1=$A$916,D916,$A$1=$A$917,D917,$A$1=$A$918,D918,$A$1=$A$919,D919,$A$1=$A$920,D920,$A$1=$A$921,D921,$A$1=$A$922,D922,$A$1=$A$923,D923,$A$1=$A$924,D924,$A$1=$A$925,D925) -> 98.90136602 | E1: 89.10492612 | F1: =_xlfn.IFS($A$1=$A$902,F902,$A$1=$A$903,F903,$A$1=$A$904,F904,$A$1=$A$905,F905,$A$1=$A$906,F906,$A$1=$A$907,F907,$A$1=$A$908,F908,$A$1=$A$909,F909,$A$1=$A$910,F910,$A$1=$A$911,F911,$A$1=$A$912,F912,$A$1=$A$913,F913,$A$1=$A$914,F914,$A$1=$A$915,F915,$A$1=$A$916,F916,$A$1=$A$917,F917,$A$1=$A$918,F918,$A$1=$A$919,F919,$A$1=$A$920,F920,$A$1=$A$921,F921,$A$1=$A$922,F922,$A$1=$A$923,F923,$A$1=$A$924,F924,$A$1=$A$925,F925) -> 112.1596468 | G1: 101.4007472 | H1: =_xlfn.IFS($A$1=$A$902,H902,$A$1=$A$903,H903,$A$1=$A$904,H904,$A$1=$A$905,H905,$A$1=$A$906,H906,$A$1=$A$907,H907,$A$1=$A$908,H908,$A$1=$A$909,H909,$A$1=$A$910,H910,$A$1=$A$911,H911,$A$1=$A$912,H912,$A$1=$A$913,H913,$A$1=$A$914,H914,$A$1=$A$915,H915,$A$1=$A$916,H916,$A$1=$A$917,H917,$A$1=$A$918,H918,$A$1=$A$919,H919,$A$1=$A$920,H920,$A$1=$A$921,H921,$A$1=$A$922,H922,$A$1=$A$923,H923,$A$1=$A$924,H924,$A$1=$A$925,H925) -> 0.1561684862 | I1: 0.1631197887 | J1: 224 | K1: 219.1 | L1: 551.2732394 | M1: 559 | N1: 139.1657914 | O1: 168.1023 | P1: 61.5 | Q1: 50 | R1: 22.90909091 | S1: 28 | T1: 0 | U1: 20 | V1: 7.991211987 | W1: 9.9 | X1: 11.26386003 | Y1: 10.1 | Z1: 102.47903 | AA1: 101.97016 | AB1: 31.43391 | AC1: 32.15906 | AD1: =_xlfn.IFS($A$1=$A$902,AD902,$A$1=$A$903,AD903,$A$1=$A$904,AD904,$A$1=$A$905,AD905,$A$1=$A$906,AD906,$A$1=$A$907,AD907,$A$1=$A$908,AD908,$A$1=$A$909,AD909,$A$1=$A$910,AD910,$A$1=$A$911,AD911,$A$1=$A$912,AD912,$A$1=$A$913,AD913,$A$1=$A$914,AD914,$A$1=$A$915,AD915,$A$1=$A$916,AD916,$A$1=$A$917,AD917,$A$1=$A$918,AD918,$A$1=$A$919,AD919,$A$1=$A$920,AD920,$A$1=$A$921,AD921,$A$1=$A$922,AD922,$A$1=$A$923,AD923,$A$1=$A$924,AD924,$A$1=$A$925,AD925) -> 54.60231 | AE1: 55.85571 | AF1: 56.51984786 | AG1: 59.70275593 | AH1: =AH902 -> 0 | AI1: =AI902 -> 0 | AJ1: 0
A2: =A ->  | B2: =AH1 -> 0
B3: ÅRSNØGLETAL 2020
I4: Evt. sammenligning
B5: =A1 -> Retten i Glostrup | I5: =B35 -> Retten i Glostrup | L5: Datatabeller
D6: 2019 | E6: 2020 | F6: Gnst. BR 2020 | G6: 5. bedste 2020 | I6: =$D$6 -> 2019 | J6: =$E$6 -> 2020 | L6: KLIK PÅ PILENE FOR AT HOPPE TIL DATA:
B7: Samlet produktivitet, retten (indeks) | D7: =B1 -> 101.5689284 | E7: =C1 -> 93.78961058 | F7: =Produkt.SAML.!$E$6 -> 96.52272069 | G7: =LARGE($C$902:$C$925,5) -> 102.9177761 | I7: =IF($B$5=$I$5,"",C35) ->  | J7: =IF($B$5=$I$5,"",D35) ->  | M7: Produktivitet, samlet for retten
B8: Samlet produktivitet, jurister (indeks) | D8: =D1 -> 98.90136602 | E8: =E1 -> 89.10492612 | F8: =Produkt.JUR!$E$6 -> 97.94662608 | G8: =LARGE($E$902:$E$925,5) -> 107.3884008 | I8: =IF($B$5=$I$5,"",E35) ->  | J8: =IF($B$5=$I$5,"",F35) ->  | M8: Produktivitet, jurister
B9: Samlet produktivitet, kontorfunktionærer (indeks) | D9: =F1 -> 112.1596468 | E9: =G1 -> 101.4007472 | F9: =Produkt.KON!$E$6 -> 95.23275923 | G9: =LARGE($G$902:$G$925,5) -> 100.765503 | I9: =IF($B$5=$I$5,"",G35) ->  | J9: =IF($B$5=$I$5,"",H35) ->  | M9: Produktivitet, kontor
B10: Årsværksandel til generel ledelse og administration (pct.) | D10: =H1*100 -> 15.61684862 | E10: =I1*100 -> 16.31197887 | F10: ='Generel ledelse_Adm.'!$J$14*100 -> 15.03849628 | I10: =IF($B$5=$I$5,"",I35*100) ->  | J10: =IF($B$5=$I$5,"",J35*100) ->  | M10: Årsværk, ledelse og administration
B11: Gnst. sagsbehandlingstid, domsmandssager (dage) | D11: =J1 -> 224 | E11: =K1 -> 219.1 | F11: =Sagstid.Straf!$G$6 -> 170.5 | G11: =Sagstid.Straf!$G$7 -> 127 | I11: =IF($B$5=$I$5,"",K35) ->  | J11: =IF($B$5=$I$5,"",L35) ->  | M11: Aktivitet ved retten
B12: Gnst. sagsbehandlingstid, hovedforhandlet alm. civil sag (dage) | D12: =L1 -> 551.2732394 | E12: =M1 -> 559 | F12: =Sagstid.Civil!$E$6 -> 558 | G12: =Sagstid.Civil!$E$7 -> 491 | I12: =IF($B$5=$I$5,"",M35) ->  | J12: =IF($B$5=$I$5,"",N35) ->  | M12: Målopfyldelse, straffesager
B13: Gnst. sagsbehandlingstid, almindelig fogedsag (dage) | D13: =N1 -> 139.1657914 | E13: =O1 -> 168.1023 | F13: =Sagstid.Foged!$E$6 -> 100.8 | G13: =Sagstid.Foged!$E$7 -> 69.4 | I13: =IF($B$5=$I$5,"",O35) ->  | J13: =IF($B$5=$I$5,"",P35) ->  | M13: Målopfyldelse, civile sager
B14: Gnst. sagsbehandlingstid, boudlæg (dage) | D14: =P1 -> 61.5 | E14: =Q1 -> 50 | F14: =Sagstid.Skifte!$E$6 -> 50 | G14: =Sagstid.Skifte!$E$7 -> 38 | I14: =IF($B$5=$I$5,"",Q35) ->  | J14: =IF($B$5=$I$5,"",R35) ->  | M14: Målopfyldelse, fogedsager
B15: Målopfyldelse, voldssager 37-dages frist (procent) | D15: =R1 -> 22.90909091 | E15: =S1 -> 28 | F15: =Målopf.VVV!$E$9*100 -> 47 | G15: =Målopf.VVV!$E$10*100 -> 60 | I15: =IF($B$5=$I$5,"",S35) ->  | J15: =IF($B$5=$I$5,"",T35) ->  | M15: Målopfyldelse, skiftesager
B16: Målopfyldelse, voldtægtssager 37-dages frist (procent) | D16: =IF(T1=999," -",T1) -> 0 | E16: =IF(U1=999," -",U1) -> 20 | F16: =Målopf.VVV!$G$9*100 -> 40 | G16: =Målopf.VVV!$G$10*100 -> 50 | I16: =IF($B$5=$I$5,"",U35) ->  | J16: =IF($B$5=$I$5,"",V35) ->  | M16: Gnst. Sagsbehandlingstid, straffesager
B17: Gnst. sygefravær pr. medarbejder (dage pr. år) | D17: =V1 -> 7.991211987 | E17: =W1 -> 9.9 | F17: ='HR-nøgletal_lønsum'!$E$6 -> 11.3 | G17: ='HR-nøgletal_lønsum'!$E$7 -> 8.9 | I17: =IF($B$5=$I$5,"",W35) ->  | J17: =IF($B$5=$I$5,"",X35) ->  | M17: Gnst. Sagsbehandlingstid, civile sager
B18: Personaleomsætningsprocent (procent) | D18: =X1 -> 11.26386003 | E18: =Y1 -> 10.1 | F18: ='HR-nøgletal_lønsum'!$G$6 -> 7.2 | I18: =IF($B$5=$I$5,"",Y35) ->  | J18: =IF($B$5=$I$5,"",Z35) ->  | M18: Gnst. Sagsbehandlingstid, fogedsager
B19: Samlet årsværksforbrug, retten (årsværk) | D19: =Z1 -> 102.47903 | E19: =AA1 -> 101.97016 | F19: =Årsværk_Pers.kat!$O$8/24 -> 60.52270625 | I19: =IF($B$5=$I$5,"",AA35) ->  | J19: =IF($B$5=$I$5,"",AB35) ->  | M19: Gnst. Sagsbehandlingstid, skiftesager
B20: Samlet årsværksforbrug, jurister (årsværk) | D20: =AB1 -> 31.43391 | E20: =AC1 -> 32.15906 | F20: =Årsværk_Pers.kat!$J$8/24 -> 17.6078525 | I20: =IF($B$5=$I$5,"",AC35) ->  | J20: =IF($B$5=$I$5,"",AD35) ->  | M20: HR-nøgletal
B21: Samlet årsværksforbrug, kontorfunktionærer (årsværk) | D21: =AD1 -> 54.60231 | E21: =AE1 -> 55.85571 | F21: =Årsværk_Pers.kat!$K$8/24 -> 34.33236125 | I21: =IF($B$5=$I$5,"",AE35) ->  | J21: =IF($B$5=$I$5,"",AF35) ->  | M21: Årsværksforbrug, personalekategorier
B22: Samlet lønsumsforbrug (mio. kr.) | D22: =AF1 -> 56.51984786 | E22: =AG1 -> 59.70275593 | F22: ='HR-nøgletal_lønsum'!$I$6 -> 35.13541369 | I22: =IF($B$5=$I$5,"",AG35) ->  | J22: =IF($B$5=$I$5,"",AH35) ->  | M22: Årsværksforbrug, sagsområder
B24: Noter:
B25: 1) Ved beregningen af indeks for produktivitet samlet for retten, for jurister og kontor er indeks 100 lig gennemsnittet ved byretterne i 2019.
B27: 2) Årsværksandel til generel ledelse og administration er samlet for retten og inkluderer alle personalegrupper.
B28: 3) Den gennemsnitlige sagsbehandlingstid for en hovedforhandlet almindelig civil sag inkluderer sagstypen almindelige sager. Boligretssager og småsager indgår ikke.
B29: 4) Ansatte under socialt kapitel indgår ikke i beregningen af det gennemsnitlige sygefravær pr. medarbejder (årsværk).
B30: 5) Lønsumsforbruget inkluderer egentlig løn, over- og merarbejde, stævningsmænd, refusioner og pensionsbidrag.
B32: KLIK FOR AT AKTIVERE SAMMENLIGNING:
B34: =A926 -> 0 | C34: =B925 -> 66.01624946 | D34: 74.01021283 | E34: 72.70444679 | F34: 82.72427494 | G34: 66.23944596 | H34: 73.27075046 | I34: 0.276770563 | J34: 0.2967897313 | K34: 42 | L34: 57.4 | M34: 226.512 | N34: 466 | O34: 24.85339885 | P34: 30.70232089 | Q34: 22.59 | R34: 23 | S34: 93.5483871 | T34: 68 | U34: 100 | V34: 0 | W34: 10.86696409 | X34: 7.1 | Y34: 9.860065479 | Z34: 4.7 | AA34: 12.75099 | AB34: 11.35443 | AC34: 2.85849 | AD34: 2.73528 | AE34: 7.1092 | AF34: 6.56717 | AG34: 9.459098564
B35: =A922 -> Retten i Glostrup | C35: =B922 -> 101.5689284 | D35: 93.78961058 | E35: 98.90136602 | F35: 89.10492612 | G35: 112.1596468 | H35: 101.4007472 | I35: 0.1561684862 | J35: 0.1631197887 | K35: 224 | L35: 219.1 | M35: 551.2732394 | N35: 559 | O35: 139.1657914 | P35: 168.1023 | Q35: 61.5 | R35: 50 | S35: 22.90909091 | T35: 28 | U35: 0 | V35: 20 | W35: 7.991211987 | X35: 9.9 | Y35: 11.26386003 | Z35: 10.1 | AA35: 102.47903 | AB35: 101.97016 | AC35: 31.43391 | AD35: 32.15906 | AE35: 54.60231 | AF35: 55.85571 | AG35: 56.51984786 | AH35: 59.70275593 | AI35: 0
B900: Samlet produktivitet, retten | D900: Samlet produktivitet, jurister | F900: Samlet produktivitet, kontor | H900: ÅRVK ledelse og adm. (andel) | J900: Sagstider domsmandssager | L900: Sagstider hfh. alm. Civil | N900: Sagstid alm. fogedsag | P900: Sagstider boudlæg | R900: Målopfyldelse vold | T900: Målopfyldelse voldtægt | V900: Sygefravær | X900: Personaleomsætning | Z900: Årsværk retten | AB900: Årsværk jurist | AD900: Årsværk kontor | AF900: Samlet lønsum
A901: Ret | B901: =$D$6 -> 2019 | C901: =$E$6 -> 2020 | D901: =$D$6 -> 2019 | E901: =$E$6 -> 2020 | F901: =$D$6 -> 2019 | G901: =$E$6 -> 2020 | H901: =$D$6 -> 2019 | I901: =$E$6 -> 2020 | J901: =$D$6 -> 2019 | K901: =$E$6 -> 2020 | L901: =$D$6 -> 2019 | M901: =$E$6 -> 2020 | N901: =$D$6 -> 2019 | O901: =$E$6 -> 2020 | P901: =$D$6 -> 2019 | Q901: =$E$6 -> 2020 | R901: =$D$6 -> 2019 | S901: =$E$6 -> 2020 | T901: =$D$6 -> 2019 | U901: =$E$6 -> 2020 | V901: =$D$6 -> 2019 | W901: =$E$6 -> 2020 | X901: =$D$6 -> 2019 | Y901: =$E$6 -> 2020 | Z901: =$D$6 -> 2019 | AA901: =$E$6 -> 2020 | AB901: =$D$6 -> 2019 | AC901: =$E$6 -> 2020 | AD901: =$D$6 -> 2019 | AE901: =$E$6 -> 2020 | AF901: =$D$6 -> 2019 | AG901: =$E$6 -> 2020
A902: Retten i Hjørring | B902: 101.8385321 | C902: 96.22821258 | D902: 105.0591699 | E902: 100.5848576 | F902: 100.7951944 | G902: 90.40318649 | H902: 0.1289432339 | I902: 0.1258673985 | J902: 142 | K902: 127 | L902: 462.0350968 | M902: 536 | N902: 83.18656963 | O902: 89.07497344 | P902: 53.3 | Q902: 56 | R902: 62.76595745 | S902: 37 | T902: 42.85714286 | U902: 57 | V902: 11.67115635 | W902: 9 | X902: 3.903345536 | Y902: 11.1 | Z902: 50.23317 | AA902: 47.35677 | AB902: 12.66472 | AC902: 12.99394 | AD902: 27.7287 | AE902: 27.39603 | AF902: 26.50282435 | AG902: 25.93220815
A903: Retten i Aalborg | B903: 102.8573394 | C903: 93.2879623 | D903: 101.1319657 | E903: 93.59238628 | F903: 100.8425104 | G903: 92.11477894 | H903: 0.109728511 | I903: 0.1034654525 | J903: 159 | K903: 162.6 | L903: 611.2285263 | M903: 626 | N903: 99.13823556 | O903: 104.1826234 | P903: 41.08 | Q903: 57 | R903: 53.84615385 | S903: 37 | T903: 57.14285714 | U903: 38 | V903: 4.914900277 | W903: 12.5 | X903: 6.144358204 | Y903: 9.2 | Z903: 73.36204 | AA903: 74.28198 | AB903: 21.33205 | AC903: 21.4211 | AD903: 41.12848 | AE903: 41.62123 | AF903: 40.39209388 | AG903: 41.69645877
A904: Retten i Randers | B904: 101.8640453 | C904: 102.9177761 | D904: 100.319417 | E904: 107.3884008 | F904: 99.27880046 | G904: 96.20247664 | H904: 0.1248461076 | I904: 0.1613504976 | J904: 169 | K904: 183.5 | L904: 592.163325 | M904: 589 | N904: 133.470018 | O904: 106.2559882 | P904: 52.48 | Q904: 48 | R904: 62.92134831 | S904: 56 | T904: 40 | U904: 44 | V904: 12.67798225 | W904: - | X904: 10.05702783 | Y904: 7.6 | Z904: 49.9968 | AA904: 47.71472 | AB904: 12.89042 | AC904: 12.05663 | AD904: 28.71551 | AE904: 28.97696 | AF904: 28.02781265 | AG904: 27.45513784
A905: Retten i Århus | B905: 97.88337498 | C905: 101.9011114 | D905: 100.8603373 | E905: 104.8675545 | F905: 96.39889019 | G905: 100.765503 | H905: 0.134367586 | I905: 0.1249530784 | J905: 276 | K905: 303.2 | L905: 702.1536889 | M905: 813 | N905: 141.2140711 | O905: 169.7521539 | P905: 70.62 | Q905: 70 | R905: 66.4 | S905: 47 | T905: 76.92307692 | U905: 47 | V905: 15.50239535 | W905: 17.6 | X905: 12.5637887 | Y905: 10.2 | Z905: 80.60515 | AA905: 81.98002 | AB905: 23.68577 | AC905: 24.42996 | AD905: 46.00667 | AE905: 46.47564 | AF905: 46.89205633 | AG905: 48.09153681
A906: Retten i Viborg | B906: 101.1504723 | C906: 106.1565123 | D906: 105.4669151 | E906: 110.0772197 | F906: 97.86419909 | G906: 100.5959361 | H906: 0.1487838925 | I906: 0.1488363489 | J906: 194 | K906: 183.4 | L906: 633.0053438 | M906: 604 | N906: 85.76863253 | O906: 120.8792844 | P906: 49.19 | Q906: 74 | R906: 61.58940397 | S906: 56 | T906: 61.11111111 | U906: 36 | V906: 11.70690067 | W906: - | X906: 14.42686509 | Y906: 8.5 | Z906: 52.37116 | AA906: 51.99524 | AB906: 14.17594 | AC906: 14.82818 | AD906: 28.03704 | AE906: 27.10151 | AF906: 27.23913909 | AG906: 27.41793724
A907: Retten i Holstebro | B907: 106.9406883 | C907: 107.1950232 | D907: 111.1007488 | E907: 119.3053544 | F907: 103.0511306 | G907: 98.9216606 | H907: 0.1885280229 | I907: 0.1911822967 | J907: 63 | K907: 101.9 | L907: 434.87925 | M907: 493 | N907: 45.24340842 | O907: 51.96520355 | P907: 41.87 | Q907: 37 | R907: 77.22772277 | S907: 54 | T907: 42.85714286 | U907: 50 | V907: 13.78194312 | W907: 10.2 | X907: 1.591760603 | Y907: 8.5 | Z907: 32.7997 | AA907: 35.62901 | AB907: 7.9746 | AC907: 8.02111 | AD907: 18.95781 | AE907: 19.68935 | AF907: 19.12997658 | AG907: 19.59430223
A908: Retten i Herning | B908: 111.2536519 | C908: 108.1096442 | D908: 106.0189292 | E908: 102.6421913 | F908: 113.7292104 | G908: 114.7226154 | H908: 0.1120340411 | I908: 0.1121251831 | J908: 84 | K908: 114.5 | L908: 469.49214 | M908: 393 | N908: 73.99461685 | O908: 84.23052527 | P908: 62.94 | Q908: 65 | R908: 69.33333333 | S908: 66 | T908: 75 | U908: 38 | V908: 3.463521823 | W908: 6.1 | X908: 9.28334349 | Y908: 2.4 | Z908: 39.17047 | AA908: 41.04859 | AB908: 12.0754 | AC908: 12.91156 | AD908: 22.03605 | AE908: 21.91397 | AF908: 21.57137922 | AG908: 22.94462682
A909: Retten i Horsens | B909: 93.3947832 | C909: 86.59690451 | D909: 86.56367918 | E909: 85.37684209 | F909: 110.292249 | G909: 97.17539842 | H909: 0.1794090346 | I909: 0.1650960443 | J909: 190 | K909: 216.5 | L909: 447.956962 | M909: 605 | N909: 61.58295113 | O909: 80.27266561 | P909: 52.02 | Q909: 52 | R909: 38.61386139 | S909: 40 | T909: 0 | U909: 40 | V909: 7.233343083 | W909: 12 | X909: 6.695085913 | Y909: 7.1 | Z909: 42.97502 | AA909: 41.32052 | AB909: 12.15434 | AC909: 12.04145 | AD909: 19.70622 | AE909: 20.58887 | AF909: 22.15054702 | AG909: 22.20375336
A910: Retten i Kolding | B910: 101.0661249 | C910: 96.11298146 | D910: 97.16394658 | E910: 92.13145869 | F910: 104.0846237 | G910: 97.50423373 | H910: 0.1378757966 | I910: 0.1394618911 | J910: 142 | K910: 197.4 | L910: 574.5305047 | M910: 592 | N910: 73.49851787 | O910: 83.59985253 | P910: 30.37 | Q910: 37 | R910: 55.66037736 | S910: 50 | T910: 53.84615385 | U910: 50 | V910: 12.08875968 | W910: 15.1 | X910: 5.077183052 | Y910: 3.6 | Z910: 68.95616 | AA910: 70.21726 | AB910: 19.98124 | AC910: 21.09545 | AD910: 38.57853 | AE910: 39.59262 | AF910: 38.59599005 | AG910: 41.19137476
A911: Retten i Esbjerg | B911: 103.8741482 | C911: 93.11161193 | D911: 99.06993251 | E911: 91.48167795 | F911: 109.8717479 | G911: 101.1288641 | H911: 0.1225090472 | I911: 0.1616506026 | J911: 182 | K911: 216.9 | L911: 691.9972405 | M911: 741 | N911: 58.18642104 | O911: 55.10662681 | P911: 56.95 | Q911: 39 | R911: 56.29139073 | S911: 42 | T911: 66.66666667 | U911: 100 | V911: 11.4069261 | W911: 11.3 | X911: 16.34641659 | Y911: 10.4 | Z911: 44.74226 | AA911: 47.83075 | AB911: 14.03954 | AC911: 15.01051 | AD911: 25.59647 | AE911: 26.19319 | AF911: 26.1081054 | AG911: 27.0958199
A912: Retten i Sønderborg | B912: 108.4481319 | C912: 99.00253048 | D912: 106.8514186 | E912: 103.175566 | F912: 110.5526152 | G912: 95.72862379 | H912: 0.1834792851 | I912: 0.1639663682 | J912: 158 | K912: 182.7 | L912: 618.5721905 | M912: 491 | N912: 118.0636 | O912: 136.2444241 | P912: 64.7 | Q912: 53 | R912: 66.87898089 | S912: 63 | T912: 54.54545455 | U912: 46 | V912: 6.351825041 | W912: - | X912: 11.31449527 | Y912: 10.5 | Z912: 56.95854 | AA912: 57.41856 | AB912: 15.90641 | AC912: 15.67794 | AD912: 33.08726 | AE912: 34.78688 | AF912: 34.06687992 | AG912: 33.86079362
A913: Retten i Odense | B913: 110.3542452 | C913: 96.94051173 | D913: 114.4553386 | E913: 100.8014829 | F913: 106.2671053 | G913: 94.20010155 | H913: 0.1350397946 | I913: 0.1298419414 | J913: 96 | K913: 133.9 | L913: 483.0985714 | M913: 511 | N913: 83.8533388 | O913: 106.184791 | P913: 46.97 | Q913: 55 | R913: 56.92307692 | S913: 31 | T913: 70 | U913: 25 | V913: 8.39718208 | W913: 8.9 | X913: 6.574732047 | Y913: 6.2 | Z913: 72.79689 | AA913: 74.12867 | AB913: 19.90301 | AC913: 20.78204 | AD913: 42.66025 | AE913: 43.46331 | AF913: 39.97887033 | AG913: 42.09987445
A914: Retten i Svendborg | B914: 94.89862927 | C914: 87.84360387 | D914: 96.45045889 | E914: 87.21029592 | F914: 100.606687 | G914: 97.76092939 | H914: 0.1705051936 | I914: 0.1914651318 | J914: 137 | K914: 141.6 | L914: 576.8277273 | M914: 558 | N914: 86.17469965 | O914: 98.72183614 | P914: 38.42 | Q914: 44 | R914: 53.84615385 | S914: 42 | T914: 71.42857143 | U914: 50 | V914: 8.845553632 | W914: 4.7 | X914: 7.581411514 | Y914: 4.8 | Z914: 38.04629 | AA914: 39.25271 | AB914: 10.29846 | AC914: 11.11692 | AD914: 22.06089 | AE914: 20.92918 | AF914: 20.98491245 | AG914: 21.56283498
A915: Retten i Nykøbing F. | B915: 107.1659206 | C915: 102.8399544 | D915: 114.0798836 | E915: 109.9892761 | F915: 98.37200316 | G915: 97.61448011 | H915: 0.1780803521 | I915: 0.1868871532 | J915: 100 | K915: 127.6 | L915: 419.7739565 | M915: 433 | N915: 69.83249628 | O915: 79.28102837 | P915: 34.62 | Q915: 38 | R915: 64 | S915: 60 | T915: 92.30769231 | U915: 78 | V915: 13.74577269 | W915: 9.4 | X915: 1.997661158 | Y915: 6.2 | Z915: 49.63078 | AA915: 49.94259 | AB915: 13.10207 | AC915: 13.18387 | AD915: 31.37255 | AE915: 30.95584 | AF915: 26.85625513 | AG915: 28.452648
A916: Retten i Næstved | B916: 105.9528124 | C916: 100.2785552 | D916: 104.041647 | E916: 104.4952427 | F916: 103.602503 | G916: 95.10186645 | H916: 0.1798204654 | I916: 0.1807741594 | J916: 116 | K916: 138.5 | L916: 604.5916047 | M916: 516 | N916: 78.49596651 | O916: 98.01684458 | P916: 43.4 | Q916: 48 | R916: 69.58762887 | S916: 55 | T916: 64.28571429 | U916: 35 | V916: 10.59558133 | W916: 13.9 | X916: 7.46576825 | Y916: 7.9 | Z916: 64.63253 | AA916: 65.2364 | AB916: 18.96357 | AC916: 18.08201 | AD916: 38.1185 | AE916: 38.76549 | AF916: 35.10880963 | AG916: 35.20761211
A917: Retten i Holbæk | B917: 93.76910993 | C917: 97.74049557 | D917: 90.28559608 | E917: 96.70179989 | F917: 97.7886352 | G917: 101.8501133 | H917: 0.1586128563 | I917: 0.1309449189 | J917: 146 | K917: 139 | L917: 547.222 | M917: 560 | N917: 82.871695 | O917: 88.90557215 | P917: 55.99 | Q917: 57 | R917: 44.76190476 | S917: 61 | T917: 88.88888889 | U917: 44 | V917: 8.156396919 | W917: 9.8 | X917: 3.067526945 | Y917: 4.5 | Z917: 44.03951 | AA917: 42.43675 | AB917: 12.47353 | AC917: 11.30261 | AD917: 23.60285 | AE917: 23.35397 | AF917: 23.6428308 | AG917: 22.90573369
A918: Retten i Roskilde | B918: 103.8509532 | C918: 106.8298433 | D918: 101.1027311 | E918: 112.137477 | F918: 99.46978783 | G918: 93.62564957 | H918: 0.1295498188 | I918: 0.1470982891 | J918: 119 | K918: 123.4 | L918: 538.7802439 | M918: 516 | N918: 66.60530039 | O918: 73.95349331 | P918: 48.38 | Q918: 46 | R918: 72.97297297 | S918: 52 | T918: 100 | U918: 30 | V918: 10.80271587 | W918: 5.7 | X918: 5.962924109 | Y918: 4.5 | Z918: 65.81558 | AA918: 63.41581 | AB918: 20.41889 | AC918: 17.95586 | AD918: 38.95097 | AE918: 39.90112 | AF918: 38.79579737 | AG918: 37.8922247
A919: Retten i Hillerød | B919: 91.09176164 | C919: 87.17858257 | D919: 87.59624042 | E919: 84.74208492 | F919: 105.1296915 | G919: 96.65383785 | H919: 0.1673007554 | I919: 0.1592366537 | J919: 126 | K919: 182.2 | L919: 430.5937297 | M919: 484 | N919: 71.56656245 | O919: 110.3655156 | P919: 50.15 | Q919: 41 | R919: 50.57471264 | S919: 43 | T919: 56.25 | U919: 15 | V919: 11.55266253 | W919: 17 | X919: 6.664722272 | Y919: 11.2 | Z919: 48.80015 | AA919: 45.7484 | AB919: 13.82417 | AC919: 13.02245 | AD919: 22.90455 | AE919: 22.47703 | AF919: 27.03657754 | AG919: 25.76007831
A920: Retten i Helsingør | B920: 101.6078801 | C920: 96.80676885 | D920: 99.82918613 | E920: 92.78236167 | F920: 105.4645396 | G920: 100.2288595 | H920: 0.1649513473 | I920: 0.1657331649 | J920: 115 | K920: 166.6 | L920: 527.4568605 | M920: 583 | N920: 75.39681881 | O920: 86.1335758 | P920: 44.55 | Q920: 33 | R920: 58.90410959 | S920: 40 | T920: 100 | U920: 11 | V920: 9.663325152 | W920: 10 | X920: 14.71902355 | Y920: 3.2 | Z920: 42.37615 | AA920: 42.56432 | AB920: 11.52174 | AC920: 12.61984 | AD920: 22.60817 | AE920: 22.78937 | AF920: 23.13120647 | AG920: 23.07620423
A921: Retten i Lyngby | B921: 87.63258757 | C921: 91.61259293 | D921: 86.29183875 | E921: 84.14062059 | F921: 89.18847313 | G921: 100.6212103 | H921: 0.1748479161 | I921: 0.1744395584 | J921: 130 | K921: 167.5 | L921: 404.079 | M921: 562 | N921: 59.41920865 | O921: 61.9981643 | P921: 45.43 | Q921: 49 | R921: 42.10526316 | S921: 51 | T921: 75 | U921: 30 | V921: 11.56803069 | W921: 18.1 | X921: 10.46799048 | Y921: 5.9 | Z921: 52.39202 | AA921: 46.65357 | AB921: 14.33953 | AC921: 14.61195 | AD921: 29.99244 | AE921: 25.48075 | AF921: 29.93535053 | AG921: 28.34003793
A922: Retten i Glostrup | B922: 101.5689284 | C922: 93.78961058 | D922: 98.90136602 | E922: 89.10492612 | F922: 112.1596468 | G922: 101.4007472 | H922: 0.1561684862 | I922: 0.1631197887 | J922: 224 | K922: 219.1 | L922: 551.2732394 | M922: 559 | N922: 139.1657914 | O922: 168.1023 | P922: 61.5 | Q922: 50 | R922: 22.90909091 | S922: 28 | T922: 0 | U922: 20 | V922: 7.991211987 | W922: 9.9 | X922: 11.26386003 | Y922: 10.1 | Z922: 102.47903 | AA922: 101.97016 | AB922: 31.43391 | AC922: 32.15906 | AD922: 54.60231 | AE922: 55.85571 | AF922: 56.51984786 | AG922: 59.70275593
A923: Retten på Frederiksberg | B923: 86.53852899 | C923: 87.33425036 | D923: 85.60066224 | E923: 88.71580596 | F923: 88.44994527 | G923: 86.23013757 | H923: 0.1256400793 | I923: 0.1427695002 | J923: 153 | K923: 138.8 | L923: 597.115362 | M923: 537 | N923: 119.3118174 | O923: 137.9616421 | P923: 49.56 | Q923: 57 | R923: 43.16546763 | S923: 45 | T923: 30 | U923: 36 | V923: 9.979172097 | W923: 10.6 | X923: 8.561199536 | Y923: 5.9 | Z923: 84.46828 | AA923: 83.53433 | AB923: 25.54208 | AC923: 24.92973 | AD923: 45.77945 | AE923: 45.59641 | AF923: 48.62110122 | AG923: 48.32374712
A924: Københavns Byret | B924: 98.4683393 | C924: 94.83547709 | D924: 103.4074651 | E924: 101.1415756 | F924: 89.2041885 | G924: 84.57371795 | H924: 0.169346859 | I924: 0.1390536342 | J924: 164 | K924: 174.6 | L924: 500.5578078 | M924: 534 | N924: 84.03561376 | O924: 92.22935081 | P924: 42.3 | Q924: 42 | R924: 54.28571429 | S924: 44 | T924: 35.29411765 | U924: 41 | V924: 9.243422429 | W924: - | X924: 3.273865564 | Y924: 6.1 | Z924: 194.19336 | AA924: 189.51339 | AB924: 61.44665 | AC924: 59.59901 | AD924: 114.78033 | AE924: 113.50507 | AF924: 122.447675 | AG924: 122.1318297
A925: Retten på Bornholm | B925: 66.01624946 | C925: 74.01021283 | D925: 72.70444679 | E925: 82.72427494 | F925: 66.23944596 | G925: 73.27075046 | H925: 0.276770563 | I925: 0.2967897313 | J925: 42 | K925: 57.4 | L925: 226.512 | M925: 466 | N925: 24.85339885 | O925: 30.70232089 | P925: 22.59 | Q925: 23 | R925: 93.5483871 | S925: 68 | T925: 100 | U925: 0 | V925: 10.86696409 | W925: 7.1 | X925: 9.860065479 | Y925: 4.7 | Z925: 12.75099 | AA925: 11.35443 | AB925: 2.85849 | AC925: 2.73528 | AD925: 7.1092 | AE925: 6.56717 | AF925: 9.459098564 | AG925: 10.31039777

Sheet Produkt.SAML.
B2: PRODUKTIVITETSINDEKS SAMLET FOR RETTEN
D4: Samlet | F4: Retssager | H4: Straffesager | J4: Civile sager | L4: Fogedsager | N4: Skiftesager
D5: =Overblik!$D$6 -> 2019 | E5: =Overblik!$E$6 -> 2020 | F5: =Overblik!$D$6 -> 2019 | G5: =Overblik!$E$6 -> 2020 | H5: =Overblik!$D$6 -> 2019 | I5: =Overblik!$E$6 -> 2020 | J5: =Overblik!$D$6 -> 2019 | K5: =Overblik!$E$6 -> 2020 | L5: =Overblik!$D$6 -> 2019 | M5: =Overblik!$E$6 -> 2020 | N5: =Overblik!$D$6 -> 2019 | O5: =Overblik!$E$6 -> 2020
C6: SAMLET BYRETTERNE | D6: 100 | E6: 96.52272069 | F6: 100 | G6: 97.85515824 | H6: 100 | I6: 97.64465608 | J6: 100 | K6: 97.89381139 | L6: 100 | M6: 92.13126092 | N6: 100 | O6: 94.89221188
C7: 5. BEDSTE RET | D7: =LARGE(D9:D32,5) -> 106.9406883 | E7: =LARGE(E9:E32,5) -> 102.9177761 | F7: 109.8473729 | G7: 105.2974523 | H7: 117.3980907 | I7: 104.8857271 | J7: 106.0262385 | K7: 113.7220757 | L7: 112.7001256 | M7: 107.3140534 | N7: 118.1271266 | O7: 107.2067911
B8: EID | C8: Ret
B9: 901 | C9: Retten i Hjørring | D9: 101.8385321 | E9: 96.22821258 | F9: 100.9642786 | G9: 96.08061799 | H9: 108.0656072 | I9: 74.96024362 | J9: 94.45422448 | K9: 132.1940594 | L9: 96.7002572 | M9: 86.25532972 | N9: 112.4024197 | O9: 111.7382228
B10: 902 | C10: Retten i Aalborg | D10: 102.8573394 | E10: 93.2879623 | F10: 102.8467471 | G10: 97.44252224 | H10: 100.8624069 | I10: 95.8099178 | J10: 107.3663493 | K10: 101.1920792 | L10: 96.82859712 | M10: 86.4954508 | N10: 108.5965974 | O10: 81.73609102
B11: 903 | C11: Retten i Randers | D11: 101.8640453 | E11: 102.9177761 | F11: 95.53531835 | G11: 100.0530851 | H11: 91.0785002 | I11: 97.89995309 | J11: 103.0289913 | K11: 103.9810871 | L11: 117.9462942 | M11: 107.3140534 | N11: 104.0608275 | O11: 107.2067911
B12: 904 | C12: Retten i Århus | D12: 97.88337498 | E12: 101.9011114 | F12: 93.96907569 | G12: 96.41207804 | H12: 92.41111748 | I12: 85.22802011 | J12: 94.90882729 | K12: 119.8335107 | L12: 115.4317063 | M12: 126.8934193 | N12: 102.6464641 | O12: 110.9332537
B13: 905 | C13: Retten i Viborg | D13: 101.1504723 | E13: 106.1565123 | F13: 102.0158194 | G13: 113.5145427 | H13: 89.98260179 | I13: 101.6441148 | J13: 122.8087177 | K13: 133.4751864 | L13: 94.4020026 | M13: 81.76881736 | N13: 107.337078 | O13: 105.7477904
B14: 906 | C14: Retten i Holstebro | D14: 106.9406883 | E14: 107.1950232 | F14: 112.9116088 | G14: 118.938911 | H14: 117.3980907 | I14: 136.0866428 | J14: 106.0262385 | K14: 91.23077238 | L14: 102.9744468 | M14: 85.15196105 | N14: 95.77140465 | O14: 93.0255914
B15: 907 | C15: Retten i Herning | D15: 111.2536519 | E15: 108.1096442 | F15: 113.0333811 | G15: 116.0696278 | H15: 120.8306874 | I15: 120.9493313 | J15: 98.04490678 | K15: 102.6595171 | L15: 104.9249964 | M15: 95.02193294 | N15: 113.0249211 | O15: 90.26339038
B16: 908 | C16: Retten i Horsens | D16: 93.3947832 | E16: 86.59690451 | F16: 90.80622458 | G16: 87.04671754 | H16: 95.17194656 | I16: 88.1124602 | J16: 87.62146227 | K16: 85.62173386 | L16: 101.9859497 | M16: 83.61016223 | N16: 96.23668239 | O16: 89.8275392
B17: 909 | C17: Retten i Kolding | D17: 101.0661249 | E17: 96.11298146 | F17: 94.19999894 | G17: 92.06744921 | H17: 92.16447488 | I17: 101.9667761 | J17: 98.92485359 | K17: 83.74595013 | L17: 112.7001256 | M17: 109.4862047 | N17: 127.2395609 | O17: 103.9452527
B18: 910 | C18: Retten i Esbjerg | D18: 103.8741482 | E18: 93.11161193 | F18: 102.8274759 | G18: 96.00112865 | H18: 101.3314332 | I18: 94.30077409 | J18: 102.6771974 | K18: 94.73737409 | L18: 108.0273379 | M18: 80.15751468 | N18: 106.3376145 | O18: 97.85023874
B19: 911 | C19: Retten i Sønderborg | D19: 108.4481319 | E19: 99.00253048 | F19: 102.3781073 | G19: 98.56966897 | H19: 127.6390963 | I19: 115.3019455 | J19: 74.60789671 | K19: 77.45877829 | L19: 130.2062307 | M19: 101.8898197 | N19: 118.5608999 | O19: 105.4259256
B20: 912 | C20: Retten i Odense | D20: 110.3542452 | E20: 96.94051173 | F20: 113.4263087 | G20: 105.2974523 | H20: 118.1055961 | I20: 99.64211922 | J20: 103.6904187 | K20: 113.7220757 | L20: 118.2239603 | M20: 82.74505876 | N20: 91.28023811 | O20: 81.22517972
B21: 913 | C21: Retten i Svendborg | D21: 94.89862927 | E21: 87.84360387 | F21: 87.59107859 | G21: 80.8105631 | H21: 82.17352681 | I21: 88.74826367 | J21: 96.13295099 | K21: 71.79871735 | L21: 92.1970139 | M21: 90.98192149 | N21: 129.0314184 | O21: 118.404227
B22: 914 | C22: Retten i Nykøbing F. | D22: 107.1659206 | E22: 102.8399544 | F22: 113.505986 | G22: 105.3874782 | H22: 122.7654269 | I22: 106.5176738 | J22: 95.78988034 | K22: 100.6698979 | L22: 99.19852422 | M22: 99.88124391 | N22: 95.92309375 | O22: 98.06691944
B23: 915 | C23: Retten i Næstved | D23: 105.9528124 | E23: 100.2785552 | F23: 109.8473729 | G23: 101.7770878 | H23: 116.4222093 | I23: 102.6163421 | J23: 96.26933413 | K23: 97.0153534 | L23: 98.44318652 | M23: 93.46696481 | N23: 98.51852384 | O23: 100.5268341
B24: 916 | C24: Retten i Holbæk | D24: 93.76910993 | E24: 97.74049557 | F24: 93.34573081 | G24: 97.04541525 | H24: 90.17913466 | I24: 94.16441057 | J24: 98.26683731 | K24: 101.1385288 | L24: 100.0191982 | M24: 102.01154 | N24: 89.43338267 | O24: 97.51623161
B25: 917 | C25: Retten i Roskilde | D25: 103.8509532 | E25: 106.8298433 | F25: 100.5060187 | G25: 104.7655901 | H25: 85.81550923 | I25: 93.20644276 | J25: 123.9196327 | K25: 124.5563929 | L25: 100.4942715 | M25: 109.4823744 | N25: 118.1271266 | O25: 112.0668685
B26: 918 | C26: Retten i Hillerød | D26: 91.09176164 | E26: 87.17858257 | F26: 88.24495431 | G26: 82.68958316 | H26: 91.77952724 | I26: 100.8394597 | J26: 83.86026249 | K26: 67.40649858 | L26: 91.49705595 | M26: 93.1238803 | N26: 103.7304033 | O26: 104.2557806
B27: 919 | C27: Retten i Helsingør | D27: 101.6078801 | E27: 96.80676885 | F27: 100.0551946 | G27: 100.3637149 | H27: 101.6258952 | I27: 104.8857271 | J27: 101.6593115 | K27: 97.60084637 | L27: 90.43738834 | M27: 82.35542867 | N27: 119.6203397 | O27: 96.84094733
B28: 920 | C28: Retten i Lyngby | D28: 87.63258757 | E28: 91.61259293 | F28: 85.75715756 | G28: 87.71482702 | H28: 98.56204832 | I28: 102.4958344 | J28: 80.18006941 | K28: 83.2680546 | L28: 103.2224417 | M28: 117.3126278 | N28: 71.30746093 | O28: 82.30937756
B29: 921 | C29: Retten i Glostrup | D29: 101.5689284 | E29: 93.78961058 | F29: 102.7543264 | G29: 94.70221328 | H29: 105.3565052 | I29: 93.15551009 | J29: 98.30623391 | K29: 96.84743052 | L29: 91.70576427 | M29: 85.76926642 | N29: 112.7081199 | O29: 101.7184319
B30: 922 | C30: Retten på Frederiksberg | D30: 86.53852899 | E30: 87.33425036 | F30: 85.42794775 | G30: 86.77722016 | H30: 84.46183087 | I30: 94.33216165 | J30: 86.13549344 | K30: 75.46227096 | L30: 101.440749 | M30: 94.29997887 | N30: 64.4511919 | O30: 73.94837527
B31: 923 | C31: Københavns Byret | D31: 98.4683393 | E31: 94.83547709 | F31: 105.0857111 | G31: 100.6384102 | H31: 97.89860897 | I31: 96.7412591 | J31: 116.7071007 | K31: 106.1738488 | L31: 75.93707545 | M31: 76.77889171 | N31: 59.91235584 | O31: 57.94346579
B32: 924 | C32: Retten på Bornholm | D32: 66.01624946 | E32: 74.01021283 | F32: 69.02892214 | G32: 89.54760714 | H32: 69.21214866 | I32: 84.0162124 | J32: 69.90065179 | K32: 98.3884029 | L32: 61.94846354 | M32: 38.16448203 | N32: 63.70457249 | O32: 79.78935514
B35: 1) Indeks 100 svarer til gennemsnittet ved byretterne i 2019
B36: 2) "Retssager" svarer til den samlede produktivitet for straffesager og civile sager, "Fogedsager" til den samlede produktivitet for øvrige fogedsager og tvangsauktioner, "Skiftesager" til den samlede produktivitet for insolvensskifter og dødsboskifter.
B37: 3) Ved beregningen af den samlede produktivitet, samlet for retten, anvendes rettens samlede vægtede årsværksforbrug - dvs. også årsværksforbruget til generel ledelse og administration mv. Ved beregning af produktiviteten på de enkelte sagsområder er årsværkforbruget til generel ledelse og administration mv. nøgletalsfordelt, således at forskelle i andele i årsværksforbrug til generel ledelse og administration mv. ikke vanskeliggør en sammenligning af de enkelte retter.

Sheet Produkt.JUR
B2: PRODUKTIVITETSINDEKS JURISTER
D4: Samlet | F4: Retssager | H4: Straffesager | J4: Civile sager | L4: Fogedsager | N4: Skiftesager
D5: =Overblik!$D$6 -> 2019 | E5: =Overblik!$E$6 -> 2020 | F5: =Overblik!$D$6 -> 2019 | G5: =Overblik!$E$6 -> 2020 | H5: =Overblik!$D$6 -> 2019 | I5: =Overblik!$E$6 -> 2020 | J5: =Overblik!$D$6 -> 2019 | K5: =Overblik!$E$6 -> 2020 | L5: =Overblik!$D$6 -> 2019 | M5: =Overblik!$E$6 -> 2020 | N5: =Overblik!$D$6 -> 2019 | O5: =Overblik!$E$6 -> 2020
C6: SAMLET BYRETTERNE | D6: 100 | E6: 97.94662608 | F6: 100 | G6: 98.52605499 | H6: 100 | I6: 99.56151909 | J6: 100 | K6: 97.02724774 | L6: 100 | M6: 98.13043517 | N6: 100 | O6: 89.3556251
C7: 5. BEDSTE RET | D7: =LARGE(D9:D32,5) -> 106.0189292 | E7: =LARGE(E9:E32,5) -> 107.3884008 | F7: 109.4239813 | G7: 111.1120013 | H7: 115.5554188 | I7: 112.5426532 | J7: 113.5902753 | K7: 119.1057975 | L7: 118.4002086 | M7: 124.2748078 | N7: 122.5642895 | O7: 114.4626124
B8: EID | C8: Ret
B9: 901 | C9: Retten i Hjørring | D9: 105.0591699 | E9: 100.5848576 | F9: 102.1536525 | G9: 98.83855186 | H9: 113.0160005 | I9: 70.35528077 | J9: 93.75499959 | K9: 147.561147 | L9: 111.3199309 | M9: 119.8294263 | N9: 105.8324256 | O9: 103.0356482
B10: 902 | C10: Retten i Aalborg | D10: 101.1319657 | E10: 93.59238628 | F10: 96.32068563 | G10: 94.73218772 | H10: 91.74304743 | I10: 92.21828907 | J10: 104.3744803 | K10: 100.1398651 | L10: 102.8152937 | M10: 85.5572115 | N10: 122.5642895 | O10: 84.06026298
B11: 903 | C11: Retten i Randers | D11: 100.319417 | E11: 107.3884008 | F11: 99.03350485 | G11: 111.1120013 | H11: 89.66225296 | I11: 110.8990852 | J11: 113.5902753 | K11: 113.1490251 | L11: 98.67998563 | M11: 91.86566935 | N11: 103.198462 | O11: 106.5518567
B12: 904 | C12: Retten i Århus | D12: 100.8603373 | E12: 104.8675545 | F12: 96.65829619 | G12: 98.36607109 | H12: 97.44455261 | I12: 86.82177708 | J12: 93.72760679 | K12: 119.1057975 | L12: 121.1920282 | M12: 131.6306885 | N12: 110.621511 | O12: 114.4626124
B13: 905 | C13: Retten i Viborg | D13: 105.4669151 | E13: 110.0772197 | F13: 112.4738424 | G13: 126.4113293 | H13: 90.98632419 | I13: 104.8158158 | J13: 150.4952207 | K13: 161.8638035 | L13: 92.89417162 | M13: 83.74271872 | N13: 88.15227415 | O13: 78.84807608
B14: 906 | C14: Retten i Holstebro | D14: 111.1007488 | E14: 119.3053544 | F14: 118.5541344 | G14: 135.3860774 | H14: 115.6476555 | I14: 146.6703457 | J14: 121.6510448 | K14: 112.8450898 | L14: 136.6100488 | M14: 105.9116831 | N14: 99.18864088 | O14: 82.66589502
B15: 907 | C15: Retten i Herning | D15: 106.0189292 | E15: 102.6421913 | F15: 102.9413055 | G15: 104.3810438 | H15: 115.5554188 | I15: 112.5426532 | J15: 84.88732198 | K15: 88.61303487 | L15: 108.3692107 | M15: 124.2748078 | N15: 98.17759342 | O15: 55.98511122
B16: 908 | C16: Retten i Horsens | D16: 86.56367918 | E16: 85.37684209 | F16: 85.98852271 | G16: 88.97149049 | H16: 95.07286011 | I16: 93.43297209 | J16: 79.97546113 | K16: 83.98104682 | L16: 103.9471978 | M16: 85.05864303 | N16: 81.14040639 | O16: 68.78314595
B17: 909 | C17: Retten i Kolding | D17: 97.16394658 | E17: 92.13145869 | F17: 92.06860369 | G17: 87.22043475 | H17: 92.75138085 | I17: 107.5739229 | J17: 94.28187474 | K17: 73.0055872 | L17: 105.9157763 | M17: 117.7308491 | N17: 158.5878203 | O17: 110.2779209
B18: 910 | C18: Retten i Esbjerg | D18: 99.06993251 | E18: 91.48167795 | F18: 97.96648433 | G18: 87.90323515 | H18: 94.37274962 | I18: 82.27797809 | J18: 100.7865182 | K18: 94.08940541 | L18: 106.1368091 | M18: 112.2078361 | N18: 117.8766799 | O18: 114.7944177
B19: 911 | C19: Retten i Sønderborg | D19: 106.8514186 | E19: 103.175566 | F19: 103.3866399 | G19: 102.0924641 | H19: 133.1081911 | I19: 119.5449098 | J19: 74.90909279 | K19: 82.03583441 | L19: 118.4002086 | M19: 115.3140102 | N19: 128.2699958 | O19: 126.0421976
B20: 912 | C20: Retten i Odense | D20: 114.4553386 | E20: 100.8014829 | F20: 118.6825066 | G20: 104.0143331 | H20: 126.7122628 | I20: 101.1529979 | J20: 104.7393304 | K20: 106.6257836 | L20: 114.3753012 | M20: 64.32350862 | N20: 92.61543053 | O20: 88.38049843
B21: 913 | C21: Retten i Svendborg | D21: 96.45045889 | E21: 87.21029592 | F21: 94.58111454 | G21: 81.17190854 | H21: 84.87826105 | I21: 93.576819 | J21: 110.3785104 | K21: 69.61558298 | L21: 80.67063416 | M21: 102.8963401 | N21: 148.3169264 | O21: 121.7581926
B22: 914 | C22: Retten i Nykøbing F. | D22: 114.0798836 | E22: 109.9892761 | F22: 119.7489369 | G22: 114.5961297 | H22: 129.1471255 | I22: 113.1777328 | J22: 101.7482542 | K22: 113.283004 | L22: 98.96243578 | M22: 104.6677476 | N22: 99.87118417 | O22: 84.23556558
B23: 915 | C23: Retten i Næstved | D23: 104.041647 | E23: 104.4952427 | F23: 106.474479 | G23: 103.2783055 | H23: 111.1831113 | I23: 103.0095163 | J23: 95.0363246 | K23: 99.71500555 | L23: 102.4368459 | M23: 106.5582853 | N23: 89.30968747 | O23: 104.7242799
B24: 916 | C24: Retten i Holbæk | D24: 90.28559608 | E24: 96.70179989 | F24: 87.03988218 | G24: 92.1678064 | H24: 83.71288007 | I24: 87.93769171 | J24: 91.88938656 | K24: 97.93508736 | L24: 101.7931381 | M24: 116.8986385 | N24: 93.09603206 | O24: 103.3083274
B25: 917 | C25: Retten i Roskilde | D25: 101.1027311 | E25: 112.137477 | F25: 100.6434674 | G25: 109.7901176 | H25: 79.22622272 | I25: 94.29393398 | J25: 136.5362661 | K25: 136.2532618 | L25: 87.50924695 | M25: 147.5402274 | N25: 107.6137943 | O25: 108.5389316
B26: 918 | C26: Retten i Hillerød | D26: 87.59624042 | E26: 84.74208492 | F26: 84.71052172 | G26: 80.90274031 | H26: 83.9120045 | I26: 107.3465571 | J26: 85.62681402 | K26: 63.13251941 | L26: 70.57012506 | M26: 89.96547719 | N26: 130.74538 | O26: 95.35782806
B27: 919 | C27: Retten i Helsingør | D27: 99.82918613 | E27: 92.78236167 | F27: 95.74821958 | G27: 92.60011238 | H27: 91.78955685 | I27: 98.11068325 | J27: 103.5117158 | K27: 89.48177881 | L27: 108.1070422 | M27: 84.73381413 | N27: 116.3856468 | O27: 96.50059191
B28: 920 | C28: Retten i Lyngby | D28: 86.29183875 | E28: 84.14062059 | F28: 83.33938235 | G28: 80.72824934 | H28: 109.4039501 | I28: 102.4145551 | J28: 73.92921256 | K28: 75.28357942 | L28: 121.644114 | M28: 146.9114508 | N28: 70.27618258 | O28: 67.65611226
B29: 921 | C29: Retten i Glostrup | D29: 98.90136602 | E29: 89.10492612 | F29: 102.3536893 | G29: 93.77511982 | H29: 105.2588264 | I29: 93.62220048 | J29: 97.87152757 | K29: 94.06499332 | L29: 98.4143574 | M29: 83.852417 | N29: 82.87323638 | O29: 63.90953845
B30: 922 | C30: Retten på Frederiksberg | D30: 85.60066224 | E30: 88.71580596 | F30: 80.1300811 | G30: 83.17282525 | H30: 76.09621778 | I30: 87.86675936 | J30: 85.37941543 | K30: 75.48765228 | L30: 121.6597117 | M30: 125.0668095 | N30: 75.58583524 | O30: 77.50816282
B31: 923 | C31: Københavns Byret | D31: 103.4074651 | E31: 101.1415756 | F31: 109.4239813 | G31: 106.4852823 | H31: 105.0775017 | I31: 108.6162499 | J31: 114.2485063 | K31: 101.6216021 | L31: 72.64907872 | M31: 82.79301491 | N31: 38.80030381 | O31: 37.24874425
B32: 924 | C32: Retten på Bornholm | D32: 72.70444679 | E32: 82.72427494 | F32: 100.4666267 | G32: 127.4027278 | H32: 109.8169647 | I32: 125.2800949 | J32: 94.40442935 | K32: 131.8871181 | L32: 51.81588153 | M32: 23.52701163 | N32: 58.9293719 | O32: 116.7325679
B35: 1) Indeks 100 svarer til gennemsnittet ved byretterne i 2019.
B36: 2) "Retssager" svarer til den samlede produktivitet for straffesager og civile sager, "Fogedsager" til den samlede produktivitet for øvrige fogedsager og tvangsauktioner, "Skiftesager" til den samlede produktivitet for insolvensskifter og dødsboskifter.
B37: 3) Ved beregningen af den samlede produktivitet for juristerne anvendes det samlede årsværksforbrug for gruppen - dvs. også årsværksforbruget til generel ledelse og administration mv. Ved beregning af produktiviteten på de enkelte sagsområder er kun medtaget det direkte årsværksforbrug - dvs. der er ikke foretaget en nøgletalsfordeling af årsværkforbruget til generel ledelse og administration mv.

Sheet Produkt.KON
B2: PRODUKTIVITETSINDEKS KONTORPERSONALE
D4: Samlet | F4: Retssager | H4: Straffesager | J4: Civile sager | L4: Fogedsager | N4: Skiftesager
D5: =Overblik!$D$6 -> 2019 | E5: =Overblik!$E$6 -> 2020 | F5: =Overblik!$D$6 -> 2019 | G5: =Overblik!$E$6 -> 2020 | H5: =Overblik!$D$6 -> 2019 | I5: =Overblik!$E$6 -> 2020 | J5: =Overblik!$D$6 -> 2019 | K5: =Overblik!$E$6 -> 2020 | L5: =Overblik!$D$6 -> 2019 | M5: =Overblik!$E$6 -> 2020 | N5: =Overblik!$D$6 -> 2019 | O5: =Overblik!$E$6 -> 2020
C6: SAMLET BYRETTERNE | D6: 100 | E6: 95.23275923 | F6: 100 | G6: 95.53053564 | H6: 100 | I6: 93.71628156 | J6: 100 | K6: 98.4444447 | L6: 100 | M6: 89.76103846 | N6: 100 | O6: 97.74133151
C7: 5. BEDSTE RET | D7: =LARGE(D9:D32,5) -> 109.8717479 | E7: =LARGE(E9:E32,5) -> 100.765503 | F7: 105.0472428 | G7: 102.7552004 | H7: 117.0810367 | I7: 110.8709431 | J7: 111.4759527 | K7: 109.565996 | L7: 114.8882585 | M7: 102.4659886 | N7: 118.7585424 | O7: 115.3061958
B8: EID | C8: Ret
B9: 901 | C9: Retten i Hjørring | D9: 100.7951944 | E9: 90.40318649 | F9: 89.68187716 | G9: 85.33218197 | H9: 96.47941868 | I9: 80.03601814 | J9: 93.97722372 | K9: 94.35089465 | L9: 94.30650098 | M9: 77.77066013 | N9: 111.9234185 | O9: 113.3910263
B10: 902 | C10: Retten i Aalborg | D10: 100.8425104 | E10: 92.11477894 | F10: 99.71297241 | G10: 93.32675075 | H10: 112.0063579 | I10: 94.94618845 | J10: 99.70395411 | K10: 91.56451464 | L10: 97.64725386 | M10: 91.80756788 | N10: 93.09016371 | O10: 74.22776745
B11: 903 | C11: Retten i Randers | D11: 99.27880046 | E11: 96.20247664 | F11: 76.42794263 | G11: 82.3317254 | H11: 83.82475605 | I11: 79.23547623 | J11: 79.22502593 | K11: 87.54436911 | L11: 132.5768262 | M11: 122.0959573 | N11: 99.41505331 | O11: 107.1107709
B12: 904 | C12: Retten i Århus | D12: 96.39889019 | E12: 100.765503 | F12: 84.60923536 | G12: 85.82485381 | H12: 86.91185311 | I12: 77.31304479 | J12: 94.64613398 | K12: 107.5841964 | L12: 112.724661 | M12: 120.228392 | N12: 98.77253882 | O12: 105.652215
B13: 905 | C13: Retten i Viborg | D13: 97.86419909 | E13: 100.5959361 | F13: 81.88863275 | G13: 97.25825316 | H13: 91.94737497 | I13: 104.4038884 | J13: 78.25261524 | K13: 83.22464968 | L13: 105.2311655 | M13: 90.27206057 | N13: 120.9712876 | O13: 130.4973612
B14: 906 | C14: Retten i Holstebro | D14: 103.0511306 | E14: 98.9216606 | F14: 97.66898267 | G14: 95.99390689 | H14: 119.7196378 | I14: 119.5901226 | J14: 83.11210009 | K14: 63.95330782 | L14: 91.73863676 | M14: 77.3564326 | N14: 94.69345655 | O14: 99.95506408
B15: 907 | C15: Retten i Herning | D15: 113.7292104 | E15: 114.7226154 | F15: 108.2507875 | G15: 124.2722992 | H15: 110.5076678 | I15: 118.5714533 | J15: 122.5831205 | K15: 137.5817902 | L15: 93.58969609 | M15: 79.61072634 | N15: 111.8288864 | O15: 115.3061958
B16: 908 | C16: Retten i Horsens | D16: 110.292249 | E16: 97.17539842 | F16: 106.8877664 | G16: 93.07180537 | H16: 112.5252326 | I16: 91.55543887 | J16: 115.8874822 | K16: 95.53468733 | L16: 120.9812524 | M16: 100.7678602 | N16: 113.8159536 | O16: 116.1300352
B17: 909 | C17: Retten i Kolding | D17: 104.0846237 | E17: 97.50423373 | F17: 86.02372546 | G17: 94.35346836 | H17: 84.28957036 | I17: 86.58127645 | J17: 102.7525514 | K17: 107.4298819 | L17: 116.2503643 | M17: 104.7072752 | N17: 108.8560506 | O17: 97.46054023
B18: 910 | C18: Retten i Esbjerg | D18: 109.8717479 | E18: 101.1288641 | F18: 105.0472428 | G18: 122.5753334 | H18: 111.8710327 | I18: 132.9651985 | J18: 108.5616598 | K18: 100.8157648 | L18: 104.0633148 | M18: 72.00462167 | N18: 102.3578581 | O18: 95.07153483
B19: 911 | C19: Retten i Sønderborg | D19: 110.5526152 | E19: 95.72862379 | F19: 93.661366 | G19: 92.08778956 | H19: 117.1793158 | I19: 107.5623042 | J19: 74.20106894 | K19: 69.41561321 | L19: 136.4384744 | M19: 99.26606293 | N19: 114.4006413 | O19: 98.77722901
B20: 912 | C20: Retten i Odense | D20: 106.2671053 | E20: 94.20010155 | F20: 94.08287291 | G20: 98.53781466 | H20: 99.78722625 | I20: 88.59848305 | J20: 98.47910051 | K20: 123.415473 | L20: 114.8882585 | M20: 87.39091765 | N20: 88.00225963 | O20: 74.73511754
B21: 913 | C21: Retten i Svendborg | D21: 100.606687 | E21: 97.76092939 | F21: 80.63456388 | G21: 85.96142505 | H21: 87.95521295 | I21: 87.61815701 | J21: 81.53087722 | K21: 83.1771517 | L21: 107.9943332 | M21: 91.19363205 | N21: 126.0102241 | O21: 120.9578875
B22: 914 | C22: Retten i Nykøbing F. | D22: 98.37200316 | E22: 97.61448011 | F22: 97.02637938 | G22: 97.37561888 | H22: 111.3883013 | I22: 103.2977829 | J22: 86.0206781 | K22: 85.34674759 | L22: 97.57444294 | M22: 102.4659886 | N22: 94.13447116 | O22: 110.8570231
B23: 915 | C23: Retten i Næstved | D23: 103.602503 | E23: 95.10186645 | F23: 109.706715 | G23: 101.5279861 | H23: 124.6404479 | I23: 104.2088744 | J23: 100.443075 | K23: 94.3859519 | L23: 94.5961835 | M23: 87.59555711 | N23: 103.7194089 | O23: 98.91719087
B24: 916 | C24: Retten i Holbæk | D24: 97.7886352 | E24: 101.8501133 | F24: 97.09356689 | G24: 104.7387816 | H24: 98.37437753 | I24: 103.3587699 | J24: 111.4759527 | K24: 106.9019394 | L24: 99.68383441 | M24: 97.49764687 | N24: 84.30680959 | O24: 94.73096251
B25: 917 | C25: Retten i Roskilde | D25: 99.46978783 | E25: 93.62564957 | F25: 86.81069859 | G25: 93.26939702 | H25: 91.54033636 | I25: 87.64104147 | J25: 94.57392417 | K25: 102.8343908 | L25: 100.6596579 | M25: 95.89328787 | N25: 118.7585424 | O25: 112.2575016
B26: 918 | C26: Retten i Hillerød | D26: 105.1296915 | E26: 96.65383785 | F26: 99.9262097 | G26: 93.48356718 | H26: 137.0540921 | I26: 110.8709431 | J26: 78.89610037 | K26: 75.69592776 | L26: 107.8585183 | M26: 89.5977113 | N26: 94.72748793 | O26: 109.4768949
B27: 919 | C27: Retten i Helsingør | D27: 105.4645396 | E27: 100.2288595 | F27: 104.2444185 | G27: 113.0193246 | H27: 113.8331446 | I27: 111.0034866 | J27: 109.799874 | K27: 116.7703609 | L27: 81.79934465 | M27: 77.47042804 | N27: 124.8192018 | O27: 94.03785458
B28: 920 | C28: Retten i Lyngby | D28: 89.18847313 | E28: 100.6212103 | F28: 86.41240158 | G28: 102.7552004 | H28: 85.04865042 | I28: 97.93241283 | J28: 102.2794741 | K28: 109.565996 | L28: 93.26144187 | M28: 103.0139114 | N28: 76.83905891 | O28: 89.87098022
B29: 921 | C29: Retten i Glostrup | D29: 112.1596468 | E29: 101.4007472 | F29: 109.1798315 | G29: 100.9866657 | H29: 117.0810367 | I29: 96.49618035 | J29: 113.0876835 | K29: 109.0270385 | L29: 89.68208351 | M29: 85.70019622 | N29: 134.4014328 | O29: 129.3464756
B30: 922 | C30: Retten på Frederiksberg | D30: 88.44994527 | E30: 86.23013757 | F30: 84.10486638 | G30: 86.00409726 | H30: 95.3308891 | I30: 98.95213763 | J30: 79.85132053 | K30: 67.97777848 | L30: 89.83191802 | M30: 80.93862265 | N30: 65.52807053 | O30: 75.65759207
B31: 923 | C31: Københavns Byret | D31: 89.2041885 | E31: 84.57371795 | F31: 96.94940257 | G31: 93.66254929 | H31: 90.65543262 | I31: 82.0039043 | J31: 127.9112527 | K31: 117.3208367 | L31: 76.15672925 | M31: 71.78818118 | N31: 71.4028311 | O31: 69.17675507
B32: 924 | C32: Retten på Bornholm | D32: 66.23944596 | E32: 73.27075046 | F32: 69.07591875 | G32: 85.21181382 | H32: 67.88327083 | I32: 78.64466443 | J32: 83.30074235 | K32: 97.71654374 | L32: 101.6956606 | M32: 75.72802884 | N32: 101.2854358 | O32: 91.46066632
B35: 1) Indeks 100 svarer til gennemsnittet ved byretterne i 2019.
B36: 2) "Retssager" svarer til den samlede produktivitet for straffesager og civile sager, "Fogedsager" til den samlede produktivitet for øvrige fogedsager og tvangsauktioner, "Skiftesager" til den samlede produktivitet for insolvensskifter og dødsboskifter.
B37: 3) Ved beregningen af den samlede produktivitet for kontorpersonale anvendes det samlede årsværksforbrug for gruppen - dvs. også årsværksforbruget til generel ledelse og administration mv. Ved beregning af produktiviteten på de enkelte sagsområder er kun medtaget det direkte årsværksforbrug - dvs. der er ikke foretaget en nøgletalsfordeling af årsværkforbruget til generel ledelse og administration mv.

Sheet Generel ledelse_Adm.
B2: ÅRSVÆRKSFORBRUG ANVENDT TIL GENEREL LEDELSE OG ADMINISTRATION MV.
E6: Årsværk til generel ledelse og administration | H6: %-del til generel ledelse og administration
E7: =Overblik!$D$6-1 -> 2018 | F7: =Overblik!$D$6 -> 2019 | G7: =Overblik!$E$6 -> 2020 | H7: =Overblik!$D$6-1 -> 2018 | I7: =Overblik!$D$6 -> 2019 | J7: =Overblik!$E$6 -> 2020
C9: SAMLET BYRETTERNE | D9: Jurister | E9: 28.58120802 | F9: 30.5618969 | G9: 28.93464517 | H9: 0.06997010171 | I9: 0.07224923195 | J9: 0.0684700315
D10: Kontor | E10: 96.27090644 | F10: 103.7879743 | G10: 98.65218565 | H10: 0.121598096 | I10: 0.1259377556 | J10: 0.1197269161
D11: Elev | E11: 7.984551723 | F11: 7.210094809 | G11: 6.498015594 | H11: 0.120573605 | I11: 0.09991781915 | J11: 0.08794367388
D12: Fleks | E12: 14.63960951 | F12: 14.64082388 | G12: 14.47513311 | H12: 0.3375591496 | I12: 0.3245528811 | J12: 0.3610889873
D13: Øvrige | E13: 66.10997817 | F13: 73.11472378 | G13: 69.88093873 | H13: 0.740306093 | I13: 0.7297366569 | J13: 0.7595423974
C14: Samlet byretterne | D14: Samlet | E14: 213.5862539 | F14: 229.3155136 | G14: =SUM(G9:G13) -> 218.4409183 | H14: 0.1523494213 | I14: 0.1565729629 | J14: 0.1503849628
D15: - ekskl. fleks og elever | E15: 190.9620926 | F15: 207.4645949 | G15: =G14-G12 -> 203.9657851 | H15: 0.1480909204 | I15: 0.1539830451 | J15: 0.1475215326
B16: EID | C16: Ret
B17: 901 | C17: Retten i Hjørring | D17: Jurister | E17: 0.9474311606 | F17: 0.8165050132 | G17: 1.00592375 | H17: 0.07350558765 | I17: 0.06447083024 | J17: 0.07741483723
B18: 901 | C18: Retten i Hjørring | D18: Kontor | E18: 2.417068948 | F18: 2.818710263 | G18: 2.852173946 | H18: 0.09014413506 | I18: 0.1016531703 | J18: 0.104109024
B19: 901 | C19: Retten i Hjørring | D19: Elev | E19: 0.0508515866 | F19: 0.2043393491 | G19: 0.1517090096 | H19: 0.0275479496 | I19: 0.05879829108 | J19: 0.04598510791
B20: 901 | C20: Retten i Hjørring | D20: Fleks | E20: 0.006271080151 | F20: 0.008313919343 | G20: 0.0009025739759 | H20: 0.002374365866 | I20: 0.003059152283 | J20: 0.0007824248205
B21: 901 | C21: Retten i Hjørring | D21: Øvrige | E21: 2.697691724 | F21: 2.635953119 | G21: 1.949964163 | H21: 0.8255577968 | I21: 0.7228185816 | J21: 0.7755957929
B22: 901 | C22: Retten i Hjørring | D22: Samlet | E22: 6.119314499 | F22: 6.483821663 | G22: =SUM(G17:G21) -> 5.960673442 | H22: 0.1289432339 | I22: 0.1290745072 | J22: 0.1258673985
D23: - ekskl. fleks og elever | E23: 6.062191832 | F23: 6.271168395 | G23: =G22-G20 -> 5.959770868 | H23: 0.1410785168 | I23: 0.1423964882 | J23: 0.1353730564
B24: 902 | C24: Retten i Aalborg | D24: Jurister | E24: 0.9484796083 | F24: 1.161353235 | G24: 1.409823607 | H24: 0.04869326783 | I24: 0.05444170789 | J24: 0.06581471572
B25: 902 | C25: Retten i Aalborg | D25: Kontor | E25: 4.715528113 | F25: 5.091225087 | G25: 3.744894692 | H25: 0.1144848543 | I25: 0.1237883113 | J25: 0.08997558919
B26: 902 | C26: Retten i Aalborg | D26: Elev | E26: 0.3872569671 | F26: 0.4172954905 | G26: 0.1770278422 | H26: 0.09729218966 | I26: 0.07630964725 | J26: 0.02994219565
B27: 902 | C27: Retten i Aalborg | D27: Fleks | E27: 0.6715692859 | F27: 0.9785450735 | G27: 0.947002472 | H27: 0.2387733988 | I27: 0.5013526283 | J27: 0.7905191969
B28: 902 | C28: Retten i Aalborg | D28: Øvrige | E28: 1.062104321 | F28: 0.9119560765 | G28: 1.414775963 | H28: 0.3046264021 | I28: 0.2619622482 | J28: 0.3426121991
B29: 902 | C29: Retten i Aalborg | D29: Samlet | E29: 7.784938295 | F29: 8.560374963 | G29: =SUM(G24:G28) -> 7.693524576 | H29: 0.109728511 | I29: 0.1166867083 | J29: 0.1035718835
D30: - ekskl. fleks og elever | E30: 6.726112042 | F30: 7.164534399 | G30: =G29-G27 -> 6.746522104 | H30: 0.104842666 | I30: 0.1086493934 | J30: 0.09780150396
B31: 903 | C31: Retten i Randers | D31: Jurister | E31: 1.15289616 | F31: 0.9410169033 | G31: 1.010042492 | H31: 0.0914027793 | I31: 0.0730012601 | J31: 0.08377486017
B32: 903 | C32: Retten i Randers | D32: Kontor | E32: 2.065933683 | F32: 3.45850903 | G32: 3.99994065 | H32: 0.07864863463 | I32: 0.1204404529 | J32: 0.1380386573
B33: 903 | C33: Retten i Randers | D33: Elev | E33: 0.009475444306 | F33: 0.3566343155 | G33: 0.2485480049 | H33: 0.003466757026 | I33: 0.07640570299 | J33: 0.07547859825
B34: 903 | C34: Retten i Randers | D34: Fleks | E34: 1.296336599 | F34: 1.505954867 | G34: 0.9413692726 | H34: 0.7612657452 | I34: 0.8571415618 | J34: 0.6694609949
B35: 903 | C35: Retten i Randers | D35: Øvrige | E35: 1.207064134 | F35: 1.144062578 | G35: 1.498893394 | H35: 0.4655410458 | I35: 0.5818411305 | J35: 0.756249158
B36: 903 | C36: Retten i Randers | D36: Samlet | E36: 5.731706022 | F36: 7.406177694 | G36: =SUM(G31:G35) -> 7.698793814 | H36: 0.1248461076 | I36: 0.1481330344 | J36: 0.1613504976
D37: - ekskl. fleks og elever | E37: 4.425893978 | F37: 5.543588511 | G37: =G36-G34 -> 6.757424541 | H37: 0.1067147251 | I37: 0.1272276185 | J37: 0.1513143263
B38: 904 | C38: Retten i Århus | D38: Jurister | E38: 1.502239191 | F38: 1.415922503 | G38: 0.9385830392 | H38: 0.06672760287 | I38: 0.05977945841 | J38: 0.03841934408
B39: 904 | C39: Retten i Århus | D39: Kontor | E39: 3.738227275 | F39: 5.771859472 | G39: 4.06426402 | H39: 0.086183477 | I39: 0.1254570146 | J39: 0.08744933949
B40: 904 | C40: Retten i Århus | D40: Elev | E40: 0.1149930944 | F40: 0.07322424272 | G40: 0.08803628357 | H40: 0.06179567209 | I40: 0.04080367932 | J40: 0.03603997297
B41: 904 | C41: Retten i Århus | D41: Fleks | E41: 1.192348196 | F41: 0.9106430306 | G41: 0.8619773696 | H41: 0.4110156552 | I41: 0.3629592699 | J41: 0.3622484239
B42: 904 | C42: Retten i Århus | D42: Øvrige | E42: 3.681802152 | F42: 4.397164412 | G42: 4.315583335 | H42: 0.6716827546 | I42: 0.6653076176 | J42: 0.6902547816
B43: 904 | C43: Retten i Århus | D43: Samlet | E43: 10.22960991 | F43: 12.56881366 | G43: =SUM(G38:G42) -> 10.26844405 | H43: 0.134367586 | I43: 0.1559306528 | J43: 0.125255447
D44: - ekskl. fleks og elever | E44: 8.922268618 | F44: 11.58494639 | G44: =G43-G41 -> 9.406466679 | H44: 0.1250148154 | I44: 0.1518308564 | J44: 0.1207711369
B45: 905 | C45: Retten i Viborg | D45: Jurister | E45: 1.069864392 | F45: 1.303286249 | G45: 1.876658807 | H45: 0.07917795404 | I45: 0.09193649589 | J45: 0.1265602931
B46: 905 | C46: Retten i Viborg | D46: Kontor | E46: 3.225842229 | F46: 3.447435541 | G46: 3.317307252 | H46: 0.1211997267 | I46: 0.1229600393 | J46: 0.1224030414
B47: 905 | C47: Retten i Viborg | D47: Elev | E47: 0.3037094349 | F47: 0.3577759454 | G47: 0.1169160411 | H47: 0.07648628222 | I47: 0.08405540451 | J47: 0.02334333779
B48: 905 | C48: Retten i Viborg | D48: Fleks | E48: 0.07242446112 | F48: 0.0792325416 | G48: 0.4058273825 | H48: 0.03621114422 | I48: 0.03961508235 | J48: 0.202907604
B49: 905 | C49: Retten i Viborg | D49: Øvrige | E49: 2.747711657 | F49: 2.627973024 | G49: 2.022072201 | H49: 0.729013886 | I49: 0.6735473663 | J49: 0.6614672144
B50: 905 | C50: Retten i Viborg | D50: Samlet | E50: 7.419552174 | F50: 7.815703301 | G50: =SUM(G45:G49) -> 7.738781683 | H50: 0.1487838925 | I50: 0.1492367803 | J50: 0.1488363489
D51: - ekskl. fleks og elever | E51: 7.043418278 | F51: 7.378694814 | G51: =G50-G48 -> 7.332954301 | H51: 0.1604527464 | I51: 0.160007538 | J51: 0.1604040279
B52: 906 | C52: Retten i Holstebro | D52: Jurister | E52: 0.9085010394 | F52: 1.005668305 | G52: 0.8932017396 | H52: 0.1088953742 | I52: 0.126108934 | J52: 0.1113563758
B53: 906 | C53: Retten i Holstebro | D53: Kontor | E53: 1.347691462 | F53: 1.342012166 | G53: 1.158811163 | H53: 0.06834083221 | I53: 0.07078940899 | J53: 0.05885471908
B54: 906 | C54: Retten i Holstebro | D54: Elev | E54: 0.0497470595 | F54: 0.03510913142 | G54: 0.2396051047 | H54: 0.0400901453 | I54: 0.01782877222 | J54: 0.09074782214
B55: 906 | C55: Retten i Holstebro | D55: Fleks | E55: 2.014446397 | F55: 1.397817684 | G55: 2.199188801 | H55: 0.7740071149 | I55: 0.7243066548 | J55: 0.7463732569
B56: 906 | C56: Retten i Holstebro | D56: Øvrige | E56: 2.08866 | F56: 1.96818 | G56: 2.320829153 | H56: 1 | I56: 1 | J56: 0.9953335334
B57: 906 | C57: Retten i Holstebro | D57: Samlet | E57: 6.409045959 | F57: 5.748787286 | G57: =SUM(G52:G56) -> 6.811635962 | H57: 0.1885280229 | I57: 0.1752695081 | J57: 0.1911822967
D58: - ekskl. fleks og elever | E58: 4.344852502 | F58: 4.315860471 | G58: =G57-G55 -> 4.612447161 | H58: 0.1440998001 | I58: 0.1493346838 | J58: 0.1455567975
B59: 907 | C59: Retten i Herning | D59: Jurister | E59: 0.4191155065 | F59: 0.5163178247 | G59: 0.4058989207 | H59: 0.03732833976 | I59: 0.04275782373 | J59: 0.03143686129
B60: 907 | C60: Retten i Herning | D60: Kontor | E60: 1.465547179 | F60: 1.591714308 | G60: 1.653754705 | H60: 0.07143835703 | I60: 0.07223228792 | J60: 0.07546577388
B61: 907 | C61: Retten i Herning | D61: Elev | E61: 0.2494645112 | F61: 0.204916791 | G61: 0.1364696445 | H61: 0.07898320733 | I61: 0.06698903907 | J61: 0.03576670323
B62: 907 | C62: Retten i Herning | D62: Fleks | E62: 0 | F62: 0 | G62: 0 | H62: - | I62: - | J62: -
B63: 907 | C63: Retten i Herning | D63: Øvrige | E63: 2.00006 | F63: 2.00006 | G63: 2.406457398 | H63: 1 | I63: 1 | J63: 0.9995627838
B64: 907 | C64: Retten i Herning | D64: Samlet | E64: 4.134187196 | F64: 4.313008924 | G64: =SUM(G59:G63) -> 4.602580668 | H64: 0.1120340411 | I64: 0.1101086845 | J64: 0.1121251831
D65: - ekskl. fleks og elever | E65: 3.884722685 | F65: 4.108092133 | G65: =G64-G62 -> 4.602580668 | H65: 0.1151277279 | I65: 0.1137612947 | J65: 0.1199502115
B66: 908 | C66: Retten i Horsens | D66: Jurister | E66: 0.6881712666 | F66: 0.9865621139 | G66: 0.9786214392 | H66: 0.0601805024 | I66: 0.081169534 | J66: 0.08127106281
B67: 908 | C67: Retten i Horsens | D67: Kontor | E67: 2.849680359 | F67: 3.10057422 | G67: 3.003412363 | H67: 0.1524512828 | I67: 0.1573398764 | J67: 0.1458755319
B68: 908 | C68: Retten i Horsens | D68: Elev | E68: 0.5959390973 | F68: 0.6740271823 | G68: 0.3835609597 | H68: 0.1936438984 | I68: 0.2088226109 | J68: 0.1429591987
B69: 908 | C69: Retten i Horsens | D69: Fleks | E69: 0.8970889244 | F69: 0.9372890763 | G69: 0.0002687098976 | H69: 0.2377944102 | I69: 0.2417045297 | J69: 0.000160551302
B70: 908 | C70: Retten i Horsens | D70: Øvrige | E70: 2.407923066 | F70: 1.953159068 | G70: 2.455990926 | H70: 0.5368537017 | I70: 0.4872081648 | J70: 0.5667427233
B71: 908 | C71: Retten i Horsens | D71: Samlet | E71: 7.438802713 | F71: 7.65161166 | G71: =SUM(G66:G70) -> 6.821854398 | H71: 0.1794090346 | I71: 0.1780478906 | J71: 0.1650960443
D72: - ekskl. fleks og elever | E72: 5.945774691 | F72: 6.040295401 | G72: =G71-G69 -> 6.821585688 | H72: 0.1717797995 | I72: 0.1683967021 | J72: 0.1741708851
B73: 909 | C73: Retten i Kolding | D73: Jurister | E73: 1.216881101 | F73: 1.520608135 | G73: 1.111163378 | H73: 0.06194973391 | I73: 0.07610179022 | J73: 0.05267312988
B74: 909 | C74: Retten i Kolding | D74: Kontor | E74: 3.332999538 | F74: 3.65459088 | G74: 5.229467347 | H74: 0.09206461312 | I74: 0.09473121138 | J74: 0.1320818715
B75: 909 | C75: Retten i Kolding | D75: Elev | E75: 0.495600075 | F75: 0.4973146293 | G75: 0.05544067892 | H75: 0.1451431736 | I75: 0.1359444291 | J75: 0.0152886241
B76: 909 | C76: Retten i Kolding | D76: Fleks | E76: 1.00003 | F76: 0.91926 | G76: 0.9223873173 | H76: 0.3333333333 | I76: 0.3333333333 | J76: 0.3075639352
B77: 909 | C77: Retten i Kolding | D77: Øvrige | E77: 3.005624461 | F77: 3.042991101 | G77: 2.474173145 | H77: 0.8875312153 | I77: 0.7644957155 | J77: 0.852014403
B78: 909 | C78: Retten i Kolding | D78: Samlet | E78: 9.051135175 | F78: 9.634764745 | G78: =SUM(G73:G77) -> 9.792631866 | H78: 0.1378757966 | I78: 0.1397230464 | J78: 0.1394618911
D79: - ekskl. fleks og elever | E79: 7.5555051 | F79: 8.218190116 | G79: =G78-G76 -> 8.870244548 | H79: 0.1275570284 | I79: 0.1314066052 | J79: 0.1386150246
B80: 910 | C80: Retten i Esbjerg | D80: Jurister | E80: 1.071889357 | F80: 1.189627323 | G80: 1.018200504 | H80: 0.0818161829 | I80: 0.08473406697 | J80: 0.06783250563
B81: 910 | C81: Retten i Esbjerg | D81: Kontor | E81: 1.790201993 | F81: 2.436782768 | G81: 2.598202199 | H81: 0.06892595044 | I81: 0.09519995407 | J81: 0.09919380567
B82: 910 | C82: Retten i Esbjerg | D82: Elev | E82: 0.06762991596 | F82: 0.03273857432 | G82: 0.003319448289 | H82: 0.03079083602 | I82: 0.02885727132 | J82: 0.002522818038
B83: 910 | C83: Retten i Esbjerg | D83: Fleks | E83: 0.0001464451841 | F83: 0 | G83: 0 | H83: 0.000165663847 | I83: 0 | J83: 0
B84: 910 | C84: Retten i Esbjerg | D84: Øvrige | E84: 2.563983131 | F84: 2.676769672 | G84: 4.112147411 | H84: 0.9531500368 | I84: 0.8448385838 | J84: 0.9078149225
B85: 910 | C85: Retten i Esbjerg | D85: Samlet | E85: 5.493850842 | F85: 6.335918338 | G85: =SUM(G80:G84) -> 7.731869562 | H85: 0.1225090472 | I85: 0.1416092602 | J85: 0.1616506026
D86: - ekskl. fleks og elever | E86: 5.426074481 | F86: 6.303179763 | G86: =G85-G83 -> 7.731869562 | H86: 0.1299221958 | I86: 0.1472554512 | J86: 0.1689913003
B87: 911 | C87: Retten i Sønderborg | D87: Jurister | E87: 1.151366095 | F87: 1.167522287 | G87: 1.386123234 | H87: 0.07766444619 | I87: 0.07339948404 | J87: 0.08841233187
B88: 911 | C88: Retten i Sønderborg | D88: Kontor | E88: 3.854914582 | F88: 4.019251678 | G88: 3.604574052 | H88: 0.1272680824 | I88: 0.1214742979 | J88: 0.1036187796
B89: 911 | C89: Retten i Sønderborg | D89: Elev | E89: 0.1254916812 | F89: 0.118703307 | G89: 0.1184438906 | H89: 0.05696580519 | I89: 0.04453923883 | J89: 0.05820910684
B90: 911 | C90: Retten i Sønderborg | D90: Fleks | E90: 1.00003 | F90: 0.6225899948 | G90: 1.082904873 | H90: 1 | I90: 0.430914788 | J90: 0.9009117004
B91: 911 | C91: Retten i Sønderborg | D91: Øvrige | E91: 3.445588812 | F91: 3.374212735 | G91: 3.216349632 | H91: 0.8877637874 | I91: 0.8753003267 | J91: 0.8653242413
B92: 911 | C92: Retten i Sønderborg | D92: Samlet | E92: 9.57739117 | F92: 9.302280001 | G92: =SUM(G87:G91) -> 9.408395682 | H92: 0.1834792851 | I92: 0.1633166862 | J92: 0.1638563503
D93: - ekskl. fleks og elever | E93: 8.451869489 | F93: 8.5609867 | G93: =G92-G90 -> 8.325490809 | H93: 0.1725019183 | I93: 0.1619908251 | J93: 0.1514725331
B94: 912 | C94: Retten i Odense | D94: Jurister | E94: 1.981702385 | F94: 1.581806246 | G94: 0.8559542887 | H94: 0.1044054652 | I94: 0.07947572984 | J94: 0.04118721207
B95: 912 | C95: Retten i Odense | D95: Kontor | E95: 2.831804277 | F95: 3.404402621 | G95: 3.483663033 | H95: 0.0669212847 | I95: 0.07980268801 | J95: 0.08015181156
B96: 912 | C96: Retten i Odense | D96: Elev | E96: 0.04319138845 | F96: 0.08763209579 | G96: 0.04837592715 | H96: 0.01619608233 | I96: 0.02190714766 | J96: 0.01209349805
B97: 912 | C97: Retten i Odense | D97: Fleks | E97: 0.4774976963 | F97: 0.5428475293 | G97: 0.1856353427 | H97: 0.4400778746 | I97: 0.4463142255 | J97: 0.2254963287
B98: 912 | C98: Retten i Odense | D98: Øvrige | E98: 3.991310814 | F98: 4.991656976 | G98: 5.051381833 | H98: 0.9954932719 | I98: 0.9949128746 | J98: 0.9983106156
B99: 912 | C99: Retten i Odense | D99: Samlet | E99: 9.325506562 | F99: 10.60834547 | G99: =SUM(G94:G98) -> 9.625010425 | H99: 0.1350397946 | I99: 0.1457252565 | J99: 0.1298419414
D100: - ekskl. fleks og elever | E100: 8.804817477 | F100: 9.977865843 | G100: =G99-G97 -> 9.439375082 | H100: 0.1348247223 | I100: 0.1476442865 | J100: 0.1355019294
B101: 913 | C101: Retten i Svendborg | D101: Jurister | E101: 0.7999540838 | F101: 0.8732591719 | G101: 0.7373465032 | H101: 0.07701767404 | I101: 0.08479512198 | J101: 0.06632650979
B102: 913 | C102: Retten i Svendborg | D102: Kontor | E102: 2.166809319 | F102: 3.12048668 | G102: 2.402613834 | H102: 0.1113776223 | I102: 0.1414488119 | J102: 0.1147973229
B103: 913 | C103: Retten i Svendborg | D103: Elev | E103: 0.0690498637 | F103: 0.0971355675 | G103: 0.6946783458 | H103: 0.05590674664 | I103: 0.1424567617 | J103: 0.3473287531
B104: 913 | C104: Retten i Svendborg | D104: Fleks | E104: 0.4132303088 | F104: 0.4703565091 | G104: 0.471683587 | H104: 0.4132179123 | I104: 0.4703423988 | J104: 0.4716694369
B105: 913 | C105: Retten i Svendborg | D105: Øvrige | E105: 2.65835527 | F105: 2.931395561 | G105: 3.209203021 | H105: 0.7102090989 | I105: 0.7319248352 | J105: 0.762911628
B106: 913 | C106: Retten i Svendborg | D106: Samlet | E106: 6.107398845 | F106: 7.49263349 | G106: =SUM(G101:G105) -> 7.515525292 | H106: 0.1705051936 | I106: 0.196934668 | J106: 0.1914651318
D107: - ekskl. fleks og elever | E107: 5.625118673 | F107: 6.925141413 | G107: =G106-G104 -> 7.043841705 | H107: 0.1674924592 | I107: 0.1904373897 | J107: 0.1751366759
B108: 914 | C108: Retten i Nykøbing F. | D108: Jurister | E108: 0.983215888 | F108: 1.080929726 | G108: 0.9839436734 | H108: 0.07767385786 | I108: 0.08250068315 | J108: 0.07463238589
B109: 914 | C109: Retten i Nykøbing F. | D109: Kontor | E109: 3.988256714 | F109: 4.029782994 | G109: 4.766787195 | H109: 0.1307607575 | I109: 0.1284493289 | J109: 0.1539866854
B110: 914 | C110: Retten i Nykøbing F. | D110: Elev | E110: 0.5492903231 | F110: 0.1897789461 | G110: 0.2855387205 | H110: 0.4119502344 | I110: 0.09488567762 | J110: 0.1427636497
B111: 914 | C111: Retten i Nykøbing F. | D111: Fleks | E111: 0.4551 | F111: 0.40708 | G111: 0.41472 | H111: 1 | I111: 1 | J111: 1
B112: 914 | C112: Retten i Nykøbing F. | D112: Øvrige | E112: 2.470130231 | F112: 2.736734263 | G112: 2.882638878 | H112: 0.9956870206 | I112: 0.9955381096 | J112: 0.8508178313
B113: 914 | C113: Retten i Nykøbing F. | D113: Samlet | E113: 8.445993157 | F113: 8.444305929 | G113: =SUM(G108:G112) -> 9.333628467 | H113: 0.1780803521 | I113: 0.170142519 | J113: 0.1868871532
D114: - ekskl. fleks og elever | E114: 7.441602833 | F114: 7.847446983 | G114: =G113-G111 -> 8.918908467 | H114: 0.1630518045 | I114: 0.1661763114 | J114: 0.1816488784
B115: 915 | C115: Retten i Næstved | D115: Jurister | E115: 1.305696534 | F115: 1.464807651 | G115: 1.171592482 | H115: 0.0787232851 | I115: 0.07724324329 | J115: 0.06479326592
B116: 915 | C116: Retten i Næstved | D116: Kontor | E116: 5.035027401 | F116: 5.644841695 | G116: 5.678331675 | H116: 0.1464444272 | I116: 0.1480866691 | J116: 0.1464790378
B117: 915 | C117: Retten i Næstved | D117: Elev | E117: 0.447190515 | F117: 0.1484553665 | G117: 0.4566530055 | H117: 0.2240770231 | I117: 0.07422545648 | J117: 0.2083774843
B118: 915 | C118: Retten i Næstved | D118: Fleks | E118: 1.098232685 | F118: 1.14146357 | G118: 1.049716308 | H118: 0.4131971922 | I118: 0.4471820833 | J118: 0.4208713621
B119: 915 | C119: Retten i Næstved | D119: Øvrige | E119: 2.652297771 | F119: 2.987710401 | G119: 3.436761899 | H119: 0.8888248424 | I119: 0.9966243586 | J119: 0.9280318795
B120: 915 | C120: Retten i Næstved | D120: Samlet | E120: 10.53844491 | F120: 11.38727868 | G120: =SUM(G115:G119) -> 11.79305537 | H120: 0.1798204654 | I120: 0.1761849441 | J120: 0.1807741594
D121: - ekskl. fleks og elever | E121: 8.993021707 | F121: 10.09735975 | G121: =G120-G118 -> 10.74333906 | H121: 0.1666862837 | I121: 0.1680655219 | J121: 0.1698852774
B122: 916 | C122: Retten i Holbæk | D122: Jurister | E122: 0.9467990103 | F122: 0.8092457669 | G122: 0.7809023305 | H122: 0.08420669352 | I122: 0.06487704498 | J122: 0.06909044288
B123: 916 | C123: Retten i Holbæk | D123: Kontor | E123: 3.218122593 | F123: 2.671945749 | G123: 2.231927466 | H123: 0.1353203641 | I123: 0.1132043693 | J123: 0.09556950986
B124: 916 | C124: Retten i Holbæk | D124: Elev | E124: 0.120300462 | F124: 0.2987257459 | G124: 0.08255483991 | H124: 0.06014782508 | I124: 0.1302318188 | J124: 0.03121496412
B125: 916 | C125: Retten i Holbæk | D125: Fleks | E125: 0.001369597657 | F125: 0.4089044619 | G125: 0.08416258111 | H125: 0.0005849007115 | I125: 0.1429236148 | J125: 0.03821281612
B126: 916 | C126: Retten i Holbæk | D126: Øvrige | E126: 2.385519996 | F126: 2.441442966 | G126: 2.377329568 | H126: 0.8840301491 | I126: 0.8693575777 | J126: 0.8105508964
B127: 916 | C127: Retten i Holbæk | D127: Samlet | E127: 6.672111659 | F127: 6.63026469 | G127: =SUM(G122:G126) -> 5.556876786 | H127: 0.1586128563 | I127: 0.1505526444 | J127: 0.1309449189
D128: - ekskl. fleks og elever | E128: 6.550441599 | F128: 5.922634482 | G128: =G127-G125 -> 5.472714205 | H128: 0.1736425146 | I128: 0.1523126823 | J128: 0.1433951173
B129: 917 | C129: Retten i Roskilde | D129: Jurister | E129: 1.199777905 | F129: 1.382938354 | G129: 1.290647287 | H129: 0.06120569508 | I129: 0.06772838064 | J129: 0.07187889008
B130: 917 | C130: Retten i Roskilde | D130: Kontor | E130: 4.917069066 | F130: 5.475695849 | G130: 6.713309863 | H130: 0.1298933623 | I130: 0.1405791909 | J130: 0.1682486573
B131: 917 | C131: Retten i Roskilde | D131: Elev | E131: 0.02896862255 | F131: 0.03774805309 | G131: 0 | H131: 0.01246160574 | I131: 0.01202895162 | J131: 0
B132: 917 | C132: Retten i Roskilde | D132: Fleks | E132: 0.4368218 | F132: 0 | G132: 0 | H132: 0.34 | I132: 0 | J132: 0
B133: 917 | C133: Retten i Roskilde | D133: Øvrige | E133: 2.051019083 | F133: 2.08941 | G133: 1.3244 | H133: 0.9300703704 | I133: 1 | J133: 1
B134: 917 | C134: Retten i Roskilde | D134: Samlet | E134: 8.633656477 | F134: 8.985792256 | G134: =SUM(G129:G133) -> 9.32835715 | H134: 0.1364537259 | I134: 0.1365298651 | J134: 0.1470982891
D135: - ekskl. fleks og elever | E135: 8.167866054 | F135: 8.948044203 | G135: =G134-G132 -> 9.32835715 | H135: 0.1369016748 | I135: 0.1455930766 | J135: 0.1576231773
B136: 918 | C136: Retten i Hillerød | D136: Jurister | E136: 1.125933998 | F136: 0.9391590534 | G136: 0.7242452499 | H136: 0.08407260823 | I136: 0.06793601738 | J136: 0.05561513002
B137: 918 | C137: Retten i Hillerød | D137: Kontor | E137: 2.328194745 | F137: 2.528984839 | G137: 2.797628992 | H137: 0.1071528556 | I137: 0.110414081 | J137: 0.1244661324
B138: 918 | C138: Retten i Hillerød | D138: Elev | E138: 0.02290674225 | F138: 0.02378894179 | G138: 0.8415489018 | H138: 0.007822325738 | I138: 0.006073271004 | J138: 0.2365688967
B139: 918 | C139: Retten i Hillerød | D139: Fleks | E139: 1.280832638 | F139: 1.525754647 | G139: 0.9599292479 | H139: 0.4535735138 | I139: 0.511505579 | J139: 0.3592979877
B140: 918 | C140: Retten i Hillerød | D140: Øvrige | E140: 3.072949891 | F140: 3.016763929 | G140: 1.961469736 | H140: 0.5178206843 | I140: 0.5833361879 | J140: 0.4879362915
B141: 918 | C141: Retten i Hillerød | D141: Samlet | E141: 7.830818015 | F141: 8.03445141 | G141: =SUM(G136:G140) -> 7.284822128 | H141: 0.1673007554 | I141: 0.1646398917 | J141: 0.1592366537
D142: - ekskl. fleks og elever | E142: 6.527078634 | F142: 6.484907821 | G142: =G141-G139 -> 6.32489288 | H142: 0.1589853954 | I142: 0.1547699985 | J142: 0.1387506539
B143: 919 | C143: Retten i Helsingør | D143: Jurister | E143: 1.08689978 | F143: 0.8355221821 | G143: 0.8896454559 | H143: 0.08529487358 | I143: 0.07251701411 | J143: 0.07049577934
B144: 919 | C144: Retten i Helsingør | D144: Kontor | E144: 2.652640666 | F144: 2.582801935 | G144: 2.262557202 | H144: 0.1151556143 | I144: 0.1142419725 | J144: 0.09928125272
B145: 919 | C145: Retten i Helsingør | D145: Elev | E145: 0.1628429762 | F145: 0.1391379606 | G145: 0 | H145: 0.06600395441 | I145: 0.06541942609 | J145: 0
B146: 919 | C146: Retten i Helsingør | D146: Fleks | E146: 1.470594676 | F146: 1.506686989 | G146: 1.774236806 | H146: 0.572737308 | I146: 0.4833276624 | J146: 0.5861041189
B147: 919 | C147: Retten i Helsingør | D147: Øvrige | E147: 1.769694006 | F147: 1.836844624 | G147: 2.12788 | H147: 0.7110803081 | I147: 0.6118613966 | J147: 1
B148: 919 | C148: Retten i Helsingør | D148: Samlet | E148: 7.142672105 | F148: 6.90099369 | G148: =SUM(G143:G147) -> 7.054319464 | H148: 0.1649513473 | I148: 0.1628508888 | J148: 0.1657331649
D149: - ekskl. fleks og elever | E149: 5.509234452 | F149: 5.255168741 | G149: =G148-G146 -> 5.280082658 | H149: 0.1439688141 | I149: 0.1415267959 | J149: 0.1406630791
B150: 920 | C150: Retten i Lyngby | D150: Jurister | E150: 1.040394702 | F150: 0.7974504805 | G150: 0.7626459636 | H150: 0.06420374378 | I150: 0.05561203753 | J150: 0.05219330504
B151: 920 | C151: Retten i Lyngby | D151: Kontor | E151: 3.169298236 | F151: 4.463909999 | G151: 3.490284994 | H151: 0.1121769063 | I151: 0.1488345063 | J151: 0.1369773258
B152: 920 | C152: Retten i Lyngby | D152: Elev | E152: 2.134684104 | F152: 1.495016753 | G152: 1.508626118 | H152: 0.4598877802 | I152: 0.3975801742 | J152: 0.4763821722
B153: 920 | C153: Retten i Lyngby | D153: Fleks | E153: 0.06708863806 | F153: 0.03469408302 | G153: 0.0751164988 | H153: 0.07300893239 | I153: 0.03799384879 | J153: 0.08954592996
B154: 920 | C154: Retten i Lyngby | D154: Øvrige | E154: 2.830981178 | F154: 2.643566486 | G154: 2.301554575 | H154: 0.9961228636 | I154: 0.7805937164 | J154: 0.9007442069
B155: 920 | C155: Retten i Lyngby | D155: Samlet | E155: 9.242446858 | F155: 9.434637802 | G155: =SUM(G150:G154) -> 8.138228149 | H155: 0.1748479161 | I155: 0.1800777638 | J155: 0.1744395584
D156: - ekskl. fleks og elever | E156: 7.040674117 | F156: 7.904926965 | G156: =G155-G153 -> 8.063111651 | H156: 0.14885379 | I156: 0.1656572129 | J156: 0.1536884616
B157: 921 | C157: Retten i Glostrup | D157: Jurister | E157: 2.315447991 | F157: 2.785414018 | G157: 2.908136529 | H157: 0.07874227152 | I157: 0.08861175776 | J157: 0.09042977405
B158: 921 | C158: Retten i Glostrup | D158: Kontor | E158: 7.54733249 | F158: 5.979792681 | G158: 6.687093729 | H158: 0.1374222401 | I158: 0.1095153791 | J158: 0.1197208616
B159: 921 | C159: Retten i Glostrup | D159: Elev | E159: 0.5100308074 | F159: 0.4213791147 | G159: 0.3583573561 | H159: 0.1400929522 | I159: 0.1489477401 | J159: 0.11226277
B160: 921 | C160: Retten i Glostrup | D160: Fleks | E160: 0.785513196 | F160: 0.8610690932 | G160: 0.7638024484 | H160: 0.4338725281 | I160: 0.2973387018 | J160: 0.213506507
B161: 921 | C161: Retten i Glostrup | D161: Øvrige | E161: 3.608572463 | F161: 9.211525968 | G161: 5.915960891 | H161: 0.7549014711 | I161: 0.8594565112 | J161: 0.8232803529
B162: 921 | C162: Retten i Glostrup | D162: Samlet | E162: 14.76689695 | F162: 19.25918088 | G162: =SUM(G157:G161) -> 16.63335095 | H162: 0.1561684862 | I162: 0.1879328959 | J162: 0.1631197887
D163: - ekskl. fleks og elever | E163: 13.47135294 | F163: 17.97673267 | G163: =G162-G160 -> 15.86954851 | H163: 0.1511828782 | I163: 0.1857982064 | J163: 0.1629316361
B164: 922 | C164: Retten på Frederiksberg | D164: Jurister | E164: 0.8231600449 | F164: 0.8998290597 | G164: 0.7355191522 | H164: 0.03318472497 | I164: 0.03522927889 | J164: 0.02950369508
B165: 922 | C165: Retten på Frederiksberg | D165: Kontor | E165: 4.280378162 | F165: 4.96265854 | G165: 4.865037456 | H165: 0.1030843623 | I165: 0.1084036296 | J165: 0.106697818
B166: 922 | C166: Retten på Frederiksberg | D166: Elev | E166: 0.1541509596 | F166: 0.3716149459 | G166: 0.3111316433 | H166: 0.04667818134 | I166: 0.1462930017 | J166: 0.117702646
B167: 922 | C167: Retten på Frederiksberg | D167: Fleks | E167: 0.00263688487 | F167: 0.3823208118 | G167: 1.315790913 | H167: 0.0008487517205 | I167: 0.09109014213 | J167: 0.2792899713
B168: 922 | C168: Retten på Frederiksberg | D168: Øvrige | E168: 4.528052556 | F168: 4.994197387 | G168: 4.698675375 | H168: 0.8757576832 | I168: 0.7792025406 | J168: 0.8310914733
B169: 922 | C169: Retten på Frederiksberg | D169: Samlet | E169: 9.788378606 | F169: 11.61062075 | G169: =SUM(G164:G168) -> 11.92615454 | H169: 0.1256400793 | I169: 0.1374553944 | J169: 0.1427695002
D170: - ekskl. fleks og elever | E170: 9.631590762 | F170: 10.85668499 | G170: =G169-G167 -> 10.61036363 | H170: 0.1347096544 | I170: 0.139670131 | J170: 0.1351964352
B171: 923 | C171: Københavns Byret | D171: Jurister | E171: 3.158767182 | F171: 4.514751751 | G171: 4.509354567 | H171: 0.05308648983 | I171: 0.07347433507 | J171: 0.07566156832
B172: 923 | C172: Københavns Byret | D172: Kontor | E172: 22.15463473 | F172: 19.84127475 | G172: 16.49064011 | H172: 0.198992891 | I172: 0.1728630223 | J172: 0.1452854935
B173: 923 | C173: Københavns Byret | D173: Elev | E173: 0.9262598759 | F173: 0.6363450048 | G173: 0.1052553011 | H173: 0.1524531948 | I173: 0.10512591 | J173: 0.01773874066
B174: 923 | C174: Københavns Byret | D174: Fleks | E174: 0 | F174: 0 | G174: 0 | H174: - | I174: - | J174: -
B175: 923 | C175: Københavns Byret | D175: Øvrige | E175: 5.629063146 | F175: 5.176849643 | G175: 5.247275623 | H175: 0.4992818322 | I175: 0.4345469981 | J175: 0.5009011951
B176: 923 | C176: Københavns Byret | D176: Samlet | E176: 31.86872494 | F176: 30.16922114 | G176: =SUM(G171:G175) -> 26.3525256 | H176: 0.169346859 | I176: 0.1553566051 | J176: 0.1390536342
D177: - ekskl. fleks og elever | E177: 30.94246506 | F177: 29.53287614 | G177: =G176-G174 -> 26.3525256 | H177: 0.1699104777 | I177: 0.1569727135 | J177: 0.1429747578
B178: 924 | C178: Retten på Bornholm | D178: Jurister | E178: 0.7366236389 | F178: 0.5723935506 | G178: 0.5504707726 | H178: 0.2175857906 | I178: 0.200243328 | J178: 0.2012484179
B179: 924 | C179: Retten på Bornholm | D179: Kontor | E179: 1.17770268 | F179: 2.348730521 | G179: 1.55550771 | H179: 0.1687782672 | I179: 0.3303790188 | J179: 0.2368611914
B180: 924 | C180: Retten på Bornholm | D180: Elev | E180: 0.3655262158 | F180: 0.2912573548 | G180: 0.08621852663 | H180: 0.1896128729 | I180: 0.2017730326 | J180: 0.105099685
B181: 924 | C181: Retten på Bornholm | D181: Fleks | E181: 0 | F181: 0 | G181: 0.01851060837 | H181: - | I181: - | J181: 0.9804347656
B182: 924 | C182: Retten på Bornholm | D182: Øvrige | E182: 1.553818312 | F182: 1.324143793 | G182: 1.159170611 | H182: 0.9957565254 | I182: 0.9883071426 | J182: 0.9558199225
B183: 924 | C183: Retten på Bornholm | D183: Samlet | E183: 3.833670848 | F183: 4.536525219 | G183: =SUM(G178:G182) -> 3.369878229 | H183: 0.276770563 | I183: 0.3557782744 | J183: 0.2967897313
D184: - ekskl. fleks og elever | E184: 3.468144632 | F184: 4.245267864 | G184: =G183-G181 -> 3.351367621 | H184: 0.2908616906 | I184: 0.3754382369 | J184: 0.31051707
B186: 1) I opgørelsen er årsværksforbrug under kategorierne "ledelse og administration", "hjælpefunktioner" og "transporttid" henført under generel ledelse og administration mv.

Sheet Aktivitet
B2: AKTIVITET VED RETTEN MÅLT SOM VÆGTEDE AFSLUTTEDE SAGER
D4: Samlet | F4: Straffesager | H4: Civile sager | J4: Øvrige Fogedsager | L4: Tvangsauktionssager | N4: Insolvensskiftesager | P4: Dødsboskiftesager | R4: Notarialforretninger
D5: =Overblik!$D$6 -> 2019 | E5: =Overblik!$E$6 -> 2020 | F5: =Overblik!$D$6 -> 2019 | G5: =Overblik!$E$6 -> 2020 | H5: =Overblik!$D$6 -> 2019 | I5: =Overblik!$E$6 -> 2020 | J5: =Overblik!$D$6 -> 2019 | K5: =Overblik!$E$6 -> 2020 | L5: =Overblik!$D$6 -> 2019 | M5: =Overblik!$E$6 -> 2020 | N5: =Overblik!$D$6 -> 2019 | O5: =Overblik!$E$6 -> 2020 | P5: =Overblik!$D$6 -> 2019 | Q5: =Overblik!$E$6 -> 2020 | R5: =Overblik!$D$6 -> 2019 | S5: =Overblik!$E$6 -> 2020
C7: SAMLET BYRETTERNE | D7: =SUM(D9:D32) -> 826421 | E7: =SUM(E9:E32) -> 799068 | F7: 219145.71 | G7: 221398.131 | H7: 50667.08 | I7: 49835.94215 | J7: 362107.01 | K7: 305974.0263 | L7: 10169.23 | M7: 8766.38996 | N7: 17902.74 | O7: 14452.46299 | P7: 55073.22 | Q7: 56399.30255 | R7: 110147 | S7: 115486
B8: EID | C8: Ret
B9: 901 | C9: Retten i Hjørring | D9: 26868 | E9: 25212 | F9: 6077.85 | G9: 4986.26369 | H9: 1576.38 | I9: 1858.64805 | J9: 13819.3 | K9: 11298.41167 | L9: 535.22 | M9: 472.74399 | N9: 780.19 | O9: 667.80458 | P9: 2326.84 | Q9: 2371.04876 | R9: 2411 | S9: 2945
B10: 902 | C10: Retten i Aalborg | D10: 41886 | E10: 38843 | F10: 9752.06 | G10: 9402.89618 | H10: 2900.6 | I10: 2689.15552 | J10: 17874.8 | K10: 16504.24273 | L10: 484.93 | M10: 426.58606 | N10: 1246.06 | O10: 917.86129 | P10: 3018.12 | Q10: 2773.2435 | R10: 4931 | S10: 4741
B11: 903 | C11: Retten i Randers | D11: 26704 | E11: 26441 | F11: 5448.31 | G11: 6032.33501 | H11: 1608.64 | I11: 1585.91643 | J11: 15476.77 | K11: 13268.05462 | L11: 498.39 | M11: 525.22903 | N11: 867.07 | O11: 687.40102 | P11: 2235.53 | Q11: 2270.42137 | R11: 3027 | S11: 3344
B12: 904 | C12: Retten i Århus | D12: 45713 | E12: 48720 | F12: 13023.83 | G12: 14412.71589 | H12: 2558.83 | I12: 2739.24486 | J12: 17520.44 | K12: 19072.19664 | L12: 338.16 | M12: 254.5206 | N12: 1619.78 | O12: 1212.43718 | P12: 2576.76 | Q12: 2852.23331 | R12: 6683 | S12: 7294
B13: 905 | C13: Retten i Viborg | D13: 28466 | E13: 29908 | F13: 6849.08 | G13: 7806.7726 | H13: 1839.17 | I13: 2096.49024 | J13: 12276.24 | K13: 10825.45848 | L13: 403.47 | M13: 347.33204 | N13: 831.25 | O13: 566.69983 | P13: 2097.45 | Q13: 2024.6862 | R13: 4012 | S13: 4742
B14: 906 | C14: Retten i Holstebro | D14: 18289 | E14: 19048 | F14: 4418.34 | G14: 5631.40183 | H14: 937.92 | I14: 868.6871 | J14: 8545.77 | K14: 6787.16096 | L14: 400.97 | M14: 315.72379 | N14: 561.9 | O14: 467.22173 | P14: 1792.61 | Q14: 1831.34321 | R14: 2549 | S14: 2802
B15: 907 | C15: Retten i Herning | D15: 25061 | E15: 25591 | F15: 7471.42 | G15: 8303.43215 | H15: 1273.07 | I15: 1276.20689 | J15: 9648.31 | K15: 8108.17489 | L15: 292.34 | M15: 235.11685 | N15: 654.24 | O15: 519.59779 | P15: 1734.24 | Q15: 1798.40685 | R15: 3466 | S15: 3800
B16: 908 | C16: Retten i Horsens | D16: 21083 | E16: 20063 | F16: 4696.4 | G16: 5205.07842 | H16: 1297.39 | I16: 1200.66263 | J16: 9739.7 | K16: 7264.56937 | L16: 341.02 | M16: 260.60805 | N16: 783.98 | O16: 602.72903 | P16: 1687.82 | Q16: 1655.4444 | R16: 3699 | S16: 3818
B17: 909 | C17: Retten i Kolding | D17: 38929 | E17: 38276 | F17: 8716.48 | G17: 9957.86543 | H17: 2760.61 | I17: 2681.02552 | J17: 17868.39 | K17: 13476.52028 | L17: 503.99 | M17: 476.33594 | N17: 1080.86 | O17: 736.88048 | P17: 2677.41 | Q17: 2530.73182 | R17: 5398 | S17: 8470
B18: 910 | C18: Retten i Esbjerg | D18: 27621 | E18: 26707 | F18: 7545.84 | G18: 8160.79185 | H18: 1360.49 | I18: 1235.20559 | J18: 13066.87 | K18: 9884.7674 | L18: 345.78 | M18: 272.04598 | N18: 806.56 | O18: 633.86893 | P18: 2113.86 | Q18: 2292.90404 | R18: 2892 | S18: 3330
B19: 911 | C19: Retten i Sønderborg | D19: 34734 | E19: 32378 | F19: 9216.07 | G19: 9019.64228 | H19: 1656.9 | I19: 1655.50033 | J19: 19768.45 | K19: 14382.76489 | L19: 523.41 | M19: 477.23798 | N19: 785.09 | O19: 713.87572 | P19: 2519.09 | Q19: 2616.91649 | R19: 3519 | S19: 3851
B20: 912 | C20: Retten i Odense | D20: 44932 | E20: 40967 | F20: 12330.31 | G20: 11345.55692 | H20: 2246.94 | I20: 2288.25378 | J20: 22009.04 | K20: 15480.75932 | L20: 606.44 | M20: 488.88598 | N20: 1268.96 | O20: 1091.42598 | P20: 3050.97 | Q20: 3243.48829 | R20: 4922 | S20: 5957
B21: 913 | C21: Retten i Svendborg | D21: 20640 | E21: 19615 | F21: 4822.95 | G21: 4822.16231 | H21: 1045.03 | I21: 1092.94575 | J21: 11014.48 | K21: 8746.1802 | L21: 368.77 | M21: 271.55013 | N21: 634.92 | O21: 564.86961 | P21: 1960.01 | Q21: 1866.56849 | R21: 2631 | S21: 2428
B22: 914 | C22: Retten i Nykøbing F. | D22: 29963 | E22: 29180 | F22: 8221.79 | G22: 7991.28882 | H22: 1340.83 | I22: 1427.46695 | J22: 15760.55 | K22: 13757.53283 | L22: 1035.14 | M22: 888.20807 | N22: 650.5 | O22: 596.38676 | P22: 2154.38 | Q22: 2310.91162 | R22: 1651 | S22: 1957
B23: 915 | C23: Retten i Næstved | D23: 39021 | E23: 36943 | F23: 10877.84 | G23: 10864.7775 | H23: 1830.22 | I23: 1854.02342 | J23: 20089.12 | K23: 15857.06275 | L23: 729.74 | M23: 517.75935 | N23: 1063.99 | O23: 849.15705 | P23: 2464.77 | Q23: 2512.50443 | R23: 4071 | S23: 4367
B24: 916 | C24: Retten i Holbæk | D24: 22500 | E24: 22430 | F24: 5312.97 | G24: 5223.41045 | H24: 1295.6 | I24: 1186.50205 | J24: 12239.74 | K24: 11656.41525 | L24: 500.55 | M24: 465.19887 | N24: 655.46 | O24: 649.28947 | P24: 1520.22 | Q24: 2152.04381 | R24: 1825 | S24: 1930
B25: 917 | C25: Retten i Roskilde | D25: 39663 | E25: 38503 | F25: 8498.64 | G25: 9491.62886 | H25: 2872.91 | I25: 2512.05868 | J25: 16412.56 | K25: 14739.17045 | L25: 406.64 | M25: 372.13183 | N25: 1491.12 | O25: 1247.23379 | P25: 2931.62 | Q25: 2930.83759 | R25: 6079 | S25: 5825
B26: 918 | C26: Retten i Hillerød | D26: 23854 | E26: 21638 | F26: 5976.05 | G26: 5475.28288 | H26: 1380.57 | I26: 1332.8788 | J26: 9553.18 | K26: 7336.90648 | L26: 416.92 | M26: 291.16452 | N26: 865.02 | O26: 707.61935 | P26: 1883.97 | Q26: 1885.19026 | R26: 3194 | S26: 3937
B27: 919 | C27: Retten i Helsingør | D27: 23078 | E27: 22870 | F27: 4672.97 | G27: 5285.05897 | H27: 1574.8 | I27: 1517.69469 | J27: 10958.48 | K27: 9242.80397 | L27: 370.28 | M27: 372.0268 | N27: 872.37 | O27: 688.88387 | P27: 1935.48 | Q27: 1980.77917 | R27: 2216 | S27: 2501
B28: 920 | C28: Retten i Lyngby | D28: 25327 | E28: 24738 | F28: 5326.12 | G28: 4869.33416 | H28: 2022.94 | I28: 2195.28252 | J28: 9263.07 | K28: 7350.81409 | L28: 124.6 | M28: 227.37646 | N28: 65.99 | O28: 51.51885 | P28: 2466.88 | Q28: 2581.5233 | R28: 15516 | S28: 14216
B29: 921 | C29: Retten i Glostrup | D29: 61073 | E29: 56367 | F29: 17559.73 | G29: 15678.44846 | H29: 3720.98 | I29: 3608.20943 | J29: 29856.57 | K29: 27575.05319 | L29: 345.83 | M29: 348.72965 | N29: 84.02 | O29: 67.35212 | P29: 4103.55 | Q29: 3931.0556 | R29: 5795 | S29: 4199
B30: 922 | C30: Retten på Frederiksberg | D30: 41841 | E30: 41600 | F30: 12262.57 | G30: 12977.60045 | H30: 2600.06 | I30: 2494.72659 | J30: 20794.41 | K30: 18044.32582 | L30: 191.41 | M30: 155.92289 | N30: 37.28 | O30: 36.08149 | P30: 2309.22 | Q30: 2432.91366 | R30: 4116 | S30: 3868
B31: 923 | C31: Københavns Byret | D31: 114834 | E31: 108441 | F31: 39151.86 | G31: 37373.24786 | H31: 8713.65 | I31: 8161.79708 | J31: 26783.79 | K31: 23845.10863 | L31: 331.3 | M31: 246.96069 | N31: 64.95 | O31: 69.75756 | P31: 2915.88 | Q31: 2913.80768 | R31: 15039 | S31: 14605
B32: 924 | C32: Retten på Bornholm | D32: 4341 | E32: 4589 | F32: 916.23 | G32: 1081.13807 | H32: 252.55 | I32: 277.35925 | J32: 1766.98 | K32: 1469.57134 | L32: 73.93 | M32: 56.99441 | N32: 131.18 | O32: 106.50951 | P32: 596.54 | Q32: 640.2987 | R32: 505 | S32: 559
B34: 1) Vægtningen på tværs af sagstyper betyder, at antallet af vægtede sager inden for de enkelte sagområder ikke summer op til det samlede antal vægtede sager.

Sheet Målopf.Straf
B2: MÅLOPFYLDELSE STRAFFESAGER (80 pct. hurtigste sager)
D4: Nævninge- og domsmandssager (hfh.) | F4: Tilståelsessager | H4: Sager uden domsmænd - bødesager | J4: Sager uden domsmænd - øvrige | L4: Samlet VVV-sager | N4: Rettens andel af fristoverskridelser
D5: =Overblik!$D$6 -> 2019 | E5: =Overblik!$E$6 -> 2020 | F5: =Overblik!$D$6 -> 2019 | G5: =Overblik!$E$6 -> 2020 | H5: =Overblik!$D$6 -> 2019 | I5: =Overblik!$E$6 -> 2020 | J5: =Overblik!$D$6 -> 2019 | K5: =Overblik!$E$6 -> 2020 | L5: =Overblik!$D$6 -> 2019 | M5: =Overblik!$E$6 -> 2020 | N5: =Overblik!$D$6 -> 2019 | O5: =Overblik!$E$6 -> 2020
D6: 80 pct. | F6: 80 pct. | H6: 80 pct. | J6: 80 pct. | L6: < 37 dage
C8: MÅL | D8: < 90 dage | F8: < 45 dage | H8: < 10 dage | J8: < 95 dage | L8: 57 pct. | N8: < 20 pct.
C9: SAMLET BYRETTERNE | D9: 90 | E9: 98.8 | F9: 45 | G9: 54.3 | H9: 4 | I9: 4.6 | J9: 95 | K9: 116.9 | L9: 0.578814628 | M9: 0.48 | N9: 0.1498470948 | O9: 0.1498470948
C10: 5. BEDSTE RET | D10: =SMALL(D12:D35,5) -> 65 | E10: 83.6 | F10: 34 | G10: 39.4 | H10: 2 | I10: 2.3 | J10: 55 | K10: 86.6 | L10: 0.5104895105 | M10: =LARGE(M12:M35,5) -> 0.6 | N10: =SMALL(N12:N35,5) -> 0.02542372881 | O10: =SMALL(O12:O35,5) -> 0.09
B11: EID | C11: Ret
B12: 901 | C12: Retten i Hjørring | D12: 93 | E12: 75.3 | F12: 68 | G12: 44.2 | H12: 8 | I12: 6.6 | J12: 55 | K12: 77.6 | L12: 0.6017699115 | M12: 0.42 | N12: 0.22 | O12: 0.19
B13: 902 | C13: Retten i Aalborg | D13: 98 | E13: 97.5 | F13: 64 | G13: 62.2 | H13: 3 | I13: 3.8 | J13: 106 | K13: 96.8 | L13: 0.5714285714 | M13: 0.38 | N13: 0.02307692308 | O13: 0.03
B14: 903 | C14: Retten i Randers | D14: 103 | E14: 107.2 | F14: 82 | G14: 95.3 | H14: 16 | I14: 7.9 | J14: 114 | K14: 153.7 | L14: 0.5909090909 | M14: 0.55 | N14: 0.3050847458 | O14: 0.12
B15: 904 | C15: Retten i Århus | D15: 159 | E15: 179 | F15: 107 | G15: 168.2 | H15: 7 | I15: 8.6 | J15: 265 | K15: 291.7 | L15: 0.6796116505 | M15: 0.46 | N15: 0.1340782123 | O15: 0.12
B16: 905 | C16: Retten i Viborg | D16: 131 | E16: 122.8 | F16: 76 | G16: 53.3 | H16: 7 | I16: 9 | J16: 107 | K16: 81.5 | L16: 0.6082474227 | M16: 0.52 | N16: 0.2 | O16: 0.24
B17: 906 | C17: Retten i Holstebro | D17: 39 | E17: 76.3 | F17: 34 | G17: 40 | H17: 4 | I17: 3.5 | J17: 44 | K17: 88.8 | L17: 0.7355371901 | M17: 0.56 | N17: 0 | O17: 0.31
B18: 907 | C18: Retten i Herning | D18: 57 | E18: 76.7 | F18: 51 | G18: 67.1 | H18: 2 | I18: 1.8 | J18: 75 | K18: 86.6 | L18: 0.7078651685 | M18: 0.64 | N18: 0.1886792453 | O18: 0.05
B19: 908 | C19: Retten i Horsens | D19: 128 | E19: 143.9 | F19: 94 | G19: 87.6 | H19: 8 | I19: 11.4 | J19: 170 | K19: 151.9 | L19: 0.4318181818 | M19: 0.44 | N19: 0.2134831461 | O19: 0.28
B20: 909 | C20: Retten i Kolding | D20: 86 | E20: 127.9 | F20: 56 | G20: 107.4 | H20: 6 | I20: 18.6 | J20: 126 | K20: 197.4 | L20: 0.5653846154 | M20: 0.5 | N20: 0.3166666667 | O20: 0.11
B21: 910 | C21: Retten i Esbjerg | D21: 112 | E21: 121.7 | F21: 30 | G21: 39.4 | H21: 2 | I21: 3.5 | J21: 101 | K21: 123.6 | L21: 0.5828877005 | M21: 0.46 | N21: 0.3139534884 | O21: 0.18
B22: 911 | C22: Retten i Sønderborg | D22: 94 | E22: 108.7 | F22: 47 | G22: 64.8 | H22: 9 | I22: 5.9 | J22: 81 | K22: 94.6 | L22: 0.6616161616 | M22: 0.63 | N22: 0.3636363636 | O22: 0.18
B23: 912 | C23: Retten i Odense | D23: 57 | E23: 95.2 | F23: 43 | G23: 72.7 | H23: 1 | I23: 1.6 | J23: 52 | K23: 95.3 | L23: 0.5648854962 | M23: 0.36 | N23: 0.04098360656 | O23: 0.25
B24: 913 | C24: Retten i Svendborg | D24: 71 | E24: 83.6 | F24: 66 | G24: 57.5 | H24: 7 | I24: 23 | J24: 73 | K24: 97.7 | L24: 0.5772357724 | M24: 0.46 | N24: 0.07407407407 | O24: 0
B25: 914 | C25: Retten i Nykøbing F. | D25: 65 | E25: 84.5 | F25: 35 | G25: 47.5 | H25: 4 | I25: 5.4 | J25: 47 | K25: 48 | L25: 0.6736401674 | M25: 0.62 | N25: 0.1265822785 | O25: 0.1
B26: 915 | C26: Retten i Næstved | D26: 76 | E26: 85.3 | F26: 41 | G26: 53.5 | H26: 2 | I26: 2.3 | J26: 118 | K26: 107.1 | L26: 0.6810344828 | M26: 0.54 | N26: 0.1805555556 | O26: 0.17
B27: 916 | C27: Retten i Holbæk | D27: 91 | E27: 85.9 | F27: 60 | G27: 54.9 | H27: 13 | I27: 5.2 | J27: 114 | K27: 97.7 | L27: 0.5104895105 | M27: 0.6 | N27: 0.1066666667 | O27: 0.1
B28: 917 | C28: Retten i Roskilde | D28: 79 | E28: 86.8 | F28: 29 | G28: 42.1 | H28: 1 | I28: 1.1 | J28: 65 | K28: 104.8 | L28: 0.7642857143 | M28: 0.53 | N28: 0.02777777778 | O28: 0.09
B29: 918 | C29: Retten i Hillerød | D29: 86 | E29: 104 | F29: 38 | G29: 32.8 | H29: 8 | I29: 6.8 | J29: 99 | K29: 139.3 | L29: 0.5221238938 | M29: 0.4 | N29: 0.4181818182 | O29: 0.11
B30: 919 | C30: Retten i Helsingør | D30: 79 | E30: 113.7 | F30: 50 | G30: 66.5 | H30: 1 | I30: 2.3 | J30: 115 | K30: 146.7 | L30: 0.6179775281 | M30: 0.45 | N30: 0 | O30: 0.13
B31: 920 | C31: Retten i Lyngby | D31: 89 | E31: 116.4 | F31: 52 | G31: 56.9 | H31: 5 | I31: 4.3 | J31: 114 | K31: 149.9 | L31: 0.5066666667 | M31: 0.46 | N31: 0.3023255814 | O31: 0.44
B32: 921 | C32: Retten i Glostrup | D32: 149 | E32: 140.4 | F32: 56 | G32: 77 | H32: 14 | I32: 11.6 | J32: 126 | K32: 241.4 | L32: 0.2754820937 | M32: 0.3 | N32: 0.1597222222 | O32: 0.12
B33: 922 | C33: Retten på Frederiksberg | D33: 95 | E33: 87.2 | F33: 43 | G33: 33.4 | H33: 6 | I33: 8.4 | J33: 140 | K33: 142.5 | L33: 0.4591836735 | M33: 0.48 | N33: 0.02542372881 | O33: 0.15
B34: 923 | C34: Københavns Byret | D34: 94 | E34: 91.8 | F34: 17 | G34: 28 | H34: 1 | I34: 1 | J34: 122 | K34: 135.6 | L34: 0.5684830633 | M34: 0.46 | N34: 0.06340057637 | O34: 0.15
B35: 924 | C35: Retten på Bornholm | D35: 25 | E35: 33.7 | F35: 26 | G35: 25.4 | H35: 2 | I35: 2.5 | J35: 30 | K35: 30.6 | L35: 0.9302325581 | M35: 0.68 | N35: 0 | O35: 0
B37: 1) Målene for de enkelte sagstyper er opstillet i samarbejde med byretterne. De aktuelle mål trådte i kraft i 2019.

Sheet Målopf.VVV
B2: MÅLOPFYLDELSE VVV-SAGER (PROCENT)
D4: Voldssager | F4: Voldtægtssager | H4: Våbensager | J4: Fast-track sager om ungdomskriminalitet
D5: =Overblik!$D$6 -> 2019 | E5: =Overblik!$E$6 -> 2020 | F5: =Overblik!$D$6 -> 2019 | G5: =Overblik!$E$6 -> 2020 | H5: =Overblik!$D$6 -> 2019 | I5: =Overblik!$E$6 -> 2020 | J5: =Overblik!$D$6 -> 2019 | K5: =Overblik!$E$6 -> 2020
D6: <37 dage | F6: <37 dage | H6: <37 dage | J6: <37 dage
C8: MÅL
C9: SAMLET BYRETTERNE | D9: 0.5648939102 | E9: 0.47 | F9: 0.596 | G9: 0.4 | H9: 0.6313993174 | I9: 0.56 | J9: 0.7299270073 | K9: 0.51
C10: 5. BEDSTE RET | D10: =LARGE(D12:D35,5) -> 0.6933333333 | E10: 0.6 | F10: 0.8888888889 | G10: 0.5 | H10: 0.8 | I10: 0.74 | J10: 0.8928571429 | K10: 0.75
B11: EID | C11: Ret
B12: 901 | C12: Retten i Hjørring | D12: 0.6276595745 | E12: 0.37 | F12: 0.4285714286 | G12: 0.57 | H12: 0.5 | I12: 0.61 | J12: 0.8888888889 | K12: 0.72
B13: 902 | C13: Retten i Aalborg | D13: 0.5384615385 | E13: 0.37 | F13: 0.5714285714 | G13: 0.38 | H13: 0.6785714286 | I13: 0.47 | J13: 0.5925925926 | K13: 0.37
B14: 903 | C14: Retten i Randers | D14: 0.6292134831 | E14: 0.56 | F14: 0.4 | G14: 0.44 | H14: 0.4375 | I14: 0.57 | J14: 0.6818181818 | K14: 0.65
B15: 904 | C15: Retten i Århus | D15: 0.664 | E15: 0.47 | F15: 0.7692307692 | G15: 0.47 | H15: 0.7391304348 | I15: 0.38 | J15: 0.7592592593 | K15: 0.4
B16: 905 | C16: Retten i Viborg | D16: 0.6158940397 | E16: 0.56 | F16: 0.6111111111 | G16: 0.36 | H16: 0.56 | I16: 0.38 | J16: 0.8571428571 | K16: 0.5
B17: 906 | C17: Retten i Holstebro | D17: 0.7722772277 | E17: 0.54 | F17: 0.4285714286 | G17: 0.5 | H17: 0.6153846154 | I17: 1 | J17: 0.95 | K17: 0.51
B18: 907 | C18: Retten i Herning | D18: 0.6933333333 | E18: 0.66 | F18: 0.75 | G18: 0.38 | H18: 0.8 | I18: 0.66 | J18: 0.8928571429 | K18: 0.75
B19: 908 | C19: Retten i Horsens | D19: 0.3861386139 | E19: 0.4 | F19: 0 | G19: 0.4 | H19: 0.6428571429 | I19: 0.63 | J19: 0.4444444444 | K19: 0.6
B20: 909 | C20: Retten i Kolding | D20: 0.5566037736 | E20: 0.5 | F20: 0.5384615385 | G20: 0.5 | H20: 0.6285714286 | I20: 0.5 | J20: 0.756097561 | K20: 0.52
B21: 910 | C21: Retten i Esbjerg | D21: 0.5629139073 | E21: 0.42 | F21: 0.6666666667 | G21: 1 | H21: 0.6666666667 | I21: 0.53 | J21: 0.8333333333 | K21: 0.77
B22: 911 | C22: Retten i Sønderborg | D22: 0.6687898089 | E22: 0.63 | F22: 0.5454545455 | G22: 0.46 | H22: 0.6666666667 | I22: 0.71 | J22: 0.8076923077 | K22: 0.7
B23: 912 | C23: Retten i Odense | D23: 0.5692307692 | E23: 0.31 | F23: 0.7 | G23: 0.25 | H23: 0.5263157895 | I23: 0.63 | J23: 0.5789473684 | K23: 0.34
B24: 913 | C24: Retten i Svendborg | D24: 0.5384615385 | E24: 0.42 | F24: 0.7142857143 | G24: 0.5 | H24: 0.8333333333 | I24: 0.79 | J24: 0.6923076923 | K24: 0.67
B25: 914 | C25: Retten i Nykøbing F. | D25: 0.64 | E25: 0.6 | F25: 0.9230769231 | G25: 0.78 | H25: 0.8076923077 | I25: 0.74 | J25: 0.7 | K25: 0.81
B26: 915 | C26: Retten i Næstved | D26: 0.6958762887 | E26: 0.55 | F26: 0.6428571429 | G26: 0.35 | H26: 0.5833333333 | I26: 0.59 | J26: 0.9117647059 | K26: 0.63
B27: 916 | C27: Retten i Holbæk | D27: 0.4476190476 | E27: 0.61 | F27: 0.8888888889 | G27: 0.44 | H27: 0.6206896552 | I27: 0.64 | J27: 1 | K27: 0.8
B28: 917 | C28: Retten i Roskilde | D28: 0.7297297297 | E28: 0.52 | F28: 1 | G28: 0.3 | H28: 0.8695652174 | I28: 0.65 | J28: 0.76 | K28: 0.42
B29: 918 | C29: Retten i Hillerød | D29: 0.5057471264 | E29: 0.43 | F29: 0.5625 | G29: 0.15 | H29: 0.6 | I29: 0.47 | J29: 0.8260869565 | K29: 0.46
B30: 919 | C30: Retten i Helsingør | D30: 0.5890410959 | E30: 0.4 | F30: 1 | G30: 0.11 | H30: 0.6363636364 | I30: 0.78 | J30: 0.8235294118 | K30: 0.4
B31: 920 | C31: Retten i Lyngby | D31: 0.4210526316 | E31: 0.51 | F31: 0.75 | G31: 0.3 | H31: 0.8 | I31: 0.33 | J31: 0.6666666667 | K31: 0.52
B32: 921 | C32: Retten i Glostrup | D32: 0.2290909091 | E32: 0.28 | F32: 0 | G32: 0.2 | H32: 0.4302325581 | I32: 0.39 | J32: 0.3170731707 | K32: 0.22
B33: 922 | C33: Retten på Frederiksberg | D33: 0.4316546763 | E33: 0.45 | F33: 0.3 | G33: 0.36 | H33: 0.5744680851 | I33: 0.62 | J33: 0.4117647059 | K33: 0.54
B34: 923 | C34: Københavns Byret | D34: 0.5428571429 | E34: 0.44 | F34: 0.3529411765 | G34: 0.41 | H34: 0.6488888889 | I34: 0.53 | J34: 0.6794871795 | K34: 0.43
B35: 924 | C35: Retten på Bornholm | D35: 0.935483871 | E35: 0.68 | F35: 1 | G35: 0 | H35: 0.9090909091 | I35: 0.8 | J35: 1 | K35: 0.79
B37: 1) Målene for voldssager, voldtægtssager, våbensager og fast-track sager om ungdomskriminalitet er fastsat eksternt.

Sheet Målopf.Civil
B2: MÅLOPFYLDELSE CIVILE SAGER (80 pct. hurtigste sager)
D4: Alle alm. sager, boligsager og småsager | F4: Hfh. almindelige sager og boligsager | H4: Hfh. småsager | J4: Familieret - §6- og 7-sager | L4: Familieret - prøvelsessager efter forenklet proces | N4: Tvangsfuldbyrdelsessager - forældreansvarsloven | P4: Konkurskarantænesager
D5: =Overblik!$D$6 -> 2019 | E5: =Overblik!$E$6 -> 2020 | F5: =Overblik!$D$6 -> 2019 | G5: =Overblik!$E$6 -> 2020 | H5: =Overblik!$D$6 -> 2019 | I5: =Overblik!$E$6 -> 2020 | J5: =Overblik!$D$6 -> 2019 | K5: =Overblik!$E$6 -> 2020 | L5: =Overblik!$D$6 -> 2019 | M5: =Overblik!$E$6 -> 2020 | N5: =Overblik!$D$6 -> 2019 | O5: =Overblik!$E$6 -> 2020 | P5: =Overblik!$D$6 -> 2019 | Q5: =Overblik!$E$6 -> 2020
D6: 80 pct. | F6: 80 pct. | H6: 80 pct. | J6: 80 pct. | L6: 80 pct. | N6: 80 pct. | P6: 80 pct.
C8: MÅL | D8: < 122 dage | F8: < 456 dage | H8: < 243 dage | J8: < 120 dage | L8: < 80 dage | N8: < 30 dage | P8: < 125 dage | S8: =4*30.4 -> 121.6
C9: SAMLET BYRETTERNE | D9: 91 | E9: 116 | F9: 385 | G9: 408 | H9: 219 | I9: 294 | J9: 54 | K9: 114 | L9: 38 | M9: 46 | N9: 14 | O9: 16 | P9: 117 | Q9: 91
C10: 5. BEDSTE RET | D10: =SMALL(D12:D35,5) -> 72 | E10: 78 | F10: 327 | G10: 343 | H10: 157 | I10: 183 | J10: 49 | K10: 98 | L10: 28 | M10: 35 | N10: 9 | O10: 13 | P10: 76 | Q10: 66
B11: EID | C11: Ret
B12: 901 | C12: Retten i Hjørring | D12: 76 | E12: 78 | F12: 331 | G12: 397 | H12: 181 | I12: 224 | J12: 55 | K12: 118 | L12: 27 | M12: 38 | N12: 16 | O12: 20 | P12: 154 | Q12: 111
B13: 902 | C13: Retten i Aalborg | D13: 78 | E13: 103 | F13: 486 | G13: 493 | H13: 242 | I13: 257 | J13: 61 | K13: 124 | L13: 50 | M13: 74 | N13: 25 | O13: 35 | P13: 126 | Q13: 92
B14: 903 | C14: Retten i Randers | D14: 104 | E14: 119 | F14: 465 | G14: 450 | H14: 347 | I14: 336 | J14: 76 | K14: 151 | L14: 64 | M14: 51 | N14: 10 | O14: 11 | P14: 160 | Q14: 164
B15: 904 | C15: Retten i Århus | D15: 104 | E15: 121 | F15: 524 | G15: 595 | H15: 328 | I15: 369 | J15: 62 | K15: 120 | L15: 28 | M15: 23 | N15: 20 | O15: 17 | P15: 124 | Q15: 76
B16: 905 | C16: Retten i Viborg | D16: 108 | E16: 121 | F16: 459 | G16: 479 | H16: 197 | I16: 224 | J16: 89 | K16: 131 | L16: 72 | M16: 73 | N16: 14 | O16: 14 | P16: 163 | Q16: 129
B17: 906 | C17: Retten i Holstebro | D17: 59 | E17: 75 | F17: 312 | G17: 331 | H17: 145 | I17: 176 | J17: 49 | K17: 105 | L17: 24 | M17: 46 | N17: 9 | O17: 13 | P17: 93 | Q17: 67
B18: 907 | C18: Retten i Herning | D18: 72 | E18: 88 | F18: 336 | G18: 293 | H18: 141 | I18: 170 | J18: 65 | K18: 98 | L18: 33 | M18: 38 | N18: 13 | O18: 18 | P18: 76 | Q18: 67
B19: 908 | C19: Retten i Horsens | D19: 95 | E19: 124 | F19: 327 | G19: 419 | H19: 223 | I19: 262 | J19: 71 | K19: 122 | L19: 30 | M19: 66 | N19: 10 | O19: 13 | P19: 121 | Q19: 131
B20: 909 | C20: Retten i Kolding | D20: 93 | E20: 140 | F20: 415 | G20: 479 | H20: 306 | I20: 335 | J20: 64 | K20: 124 | L20: 52 | M20: 53 | N20: 18 | O20: 19 | P20: 77 | Q20: 115
B21: 910 | C21: Retten i Esbjerg | D21: 116 | E21: 112 | F21: 547 | G21: 588 | H21: 302 | I21: 306 | J21: 57 | K21: 135 | L21: 59 | M21: 35 | N21: 19 | O21: 16 | P21: 155 | Q21: 147
B22: 911 | C22: Retten i Sønderborg | D22: 81 | E22: 107 | F22: 404 | G22: 341 | H22: 211 | I22: 234 | J22: 59 | K22: 101 | L22: 32 | M22: 34 | N22: 9 | O22: 15 | P22: 108 | Q22: 72
B23: 912 | C23: Retten i Odense | D23: 83 | E23: 111 | F23: 331 | G23: 408 | H23: 200 | I23: 197 | J23: 70 | K23: 111 | L23: 53 | M23: 36 | N23: 14 | O23: 10 | P23: 79 | Q23: 96
B24: 913 | C24: Retten i Svendborg | D24: 75 | E24: 89 | F24: 375 | G24: 395 | H24: 247 | I24: 229 | J24: 39 | K24: 90 | L24: 26 | M24: 32 | N24: 8 | O24: 11 | P24: 122 | Q24: 100
B25: 914 | C25: Retten i Nykøbing F. | D25: 54 | E25: 63 | F25: 317 | G25: 290 | H25: 164 | I25: 151 | J25: 53 | K25: 89 | L25: 25 | M25: 38 | N25: 9 | O25: 9 | P25: 80 | Q25: 74
B26: 915 | C26: Retten i Næstved | D26: 64 | E26: 69 | F26: 458 | G26: 405 | H26: 188 | I26: 181 | J26: 57 | K26: 138 | L26: 34 | M26: 38 | N26: 16 | O26: 23 | P26: 92 | Q26: 94
B27: 916 | C27: Retten i Holbæk | D27: 94 | E27: 95 | F27: 426 | G27: 454 | H27: 157 | I27: 301 | J27: 49 | K27: 116 | L27: 48 | M27: 53 | N27: 10 | O27: 13 | P27: 144 | Q27: 115
B28: 917 | C28: Retten i Roskilde | D28: 93 | E28: 87 | F28: 418 | G28: 400 | H28: 289 | I28: 289 | J28: 49 | K28: 133 | L28: 54 | M28: 55 | N28: 18 | O28: 16 | P28: 113 | Q28: 66
B29: 918 | C29: Retten i Hillerød | D29: 75 | E29: 95 | F29: 332 | G29: 384 | H29: 206 | I29: 270 | J29: 40 | K29: 131 | L29: 32 | M29: 37 | N29: 15 | O29: 20 | P29: 150 | Q29: 87
B30: 919 | C30: Retten i Helsingør | D30: 78 | E30: 102 | F30: 379 | G30: 385 | H30: 235 | I30: 250 | J30: 51 | K30: 101 | L30: 40 | M30: 35 | N30: 13 | O30: 18 | P30: 162 | Q30: 107
B31: 920 | C31: Retten i Lyngby | D31: 81 | E31: 98 | F31: 298 | G31: 371 | H31: 161 | I31: 201 | J31: 35 | K31: 110 | L31: 39 | M31: 44 | N31: 23 | O31: 25 | P31: 2 | Q31: 4
B32: 921 | C32: Retten i Glostrup | D32: 82 | E32: 95 | F32: 389 | G32: 395 | H32: 226 | I32: 205 | J32: 60 | K32: 114 | L32: 50 | M32: 53 | N32: 12 | O32: 18 | P32: 23 | Q32: 7
B33: 922 | C33: Retten på Frederiksberg | D33: 98 | E33: 118 | F33: 385 | G33: 423 | H33: 132 | I33: 203 | J33: 43 | K33: 94 | L33: 39 | M33: 66 | N33: 20 | O33: 19 | P33: 2 | Q33: 25
B34: 923 | C34: Københavns Byret | D34: 107 | E34: 146 | F34: 364 | G34: 397 | H34: 212 | I34: 318 | J34: 50 | K34: 110 | L34: 36 | M34: 59 | N34: 11 | O34: 13 | P34: 9 | Q34: 18
B35: 924 | C35: Retten på Bornholm | D35: 53 | E35: 44 | F35: 164 | G35: 343 | H35: 117 | I35: 183 | J35: 51 | K35: 81 | L35: 36 | M35: 30 | N35: 8 | O35: 15 | P35: 138 | Q35: 99
B37: 1) Målene for de enkelte sagstyper er opstillet i samarbejde med byretterne. De aktuelle mål trådte i kraft i 2019.

Sheet Målopf.Foged
B2: MÅLOPFYLDELSE FOGEDSAGER (PROCENT)
D4: Alm. fogedsager og betalingspåkrav | F4: Særlige fogedsager | H4: Tvangsauktion solgt på eller efter 1. auktion
D5: =Overblik!$D$6 -> 2019 | E5: =Overblik!$E$6 -> 2020 | F5: =Overblik!$D$6 -> 2019 | G5: =Overblik!$E$6 -> 2020 | H5: =Overblik!$D$6 -> 2019 | I5: =Overblik!$E$6 -> 2020
D6: < 3 MDR. | F6: < 2 MDR. | H6: < 5 MDR.
C8: MÅL | D8: 65 pct. | F8: 70 pct. | H8: 80 pct.
C9: SAMLET BYRETTERNE | D9: 0.6970316263 | E9: 0.59 | F9: 0.7259684362 | G9: 0.64 | H9: 0.79 | I9: 0.6
C10: 5. BEDSTE RET | D10: 0.83959472 | E10: =LARGE(E12:E35,5) -> 0.77 | F10: 0.80790248 | G10: 0.77 | H10: 0.9 | I10: 0.71
B11: EID | C11: Ret
B12: 901 | C12: Retten i Hjørring | D12: 0.6677956664 | E12: 0.63 | F12: 0.8073770492 | G12: 0.72 | H12: 0.67 | I12: 0.55
B13: 902 | C13: Retten i Aalborg | D13: 0.5884305535 | E13: 0.49 | F13: 0.618697479 | G13: 0.62 | H13: 0.78 | I13: 0.58
B14: 903 | C14: Retten i Randers | D14: 0.4158491215 | E14: 0.58 | F14: 0.6230088496 | G14: 0.53 | H14: 0.22 | I14: 0.34
B15: 904 | C15: Retten i Århus | D15: 0.406588674 | E15: 0.47 | F15: 0.8597811218 | G15: 0.79 | H15: 0.76 | I15: 0.6
B16: 905 | C16: Retten i Viborg | D16: 0.7476227701 | E16: 0.46 | F16: 0.7690839695 | G16: 0.67 | H16: 0.72 | I16: 0.51
B17: 906 | C17: Retten i Holstebro | D17: 0.9330852093 | E17: 0.88 | F17: 0.9141914191 | G17: 0.84 | H17: 0.95 | I17: 0.73
B18: 907 | C18: Retten i Herning | D18: 0.7947312149 | E18: 0.64 | F18: 0.7432432432 | G18: 0.77 | H18: 0.9 | I18: 0.78
B19: 908 | C19: Retten i Horsens | D19: 0.8225540506 | E19: 0.68 | F19: 0.802259887 | G19: 0.63 | H19: 0.86 | I19: 0.59
B20: 909 | C20: Retten i Kolding | D20: 0.8087672813 | E20: 0.67 | F20: 0.7826923077 | G20: 0.72 | H20: 0.92 | I20: 0.71
B21: 910 | C21: Retten i Esbjerg | D21: 0.7937330874 | E21: 0.85 | F21: 0.7876254181 | G21: 0.78 | H21: 0.81 | I21: 0.64
B22: 911 | C22: Retten i Sønderborg | D22: 0.5151586023 | E22: 0.59 | F22: 0.7083993661 | G22: 0.63 | H22: 0.68 | I22: 0.51
B23: 912 | C23: Retten i Odense | D23: 0.7388548745 | E23: 0.49 | F23: 0.7596606975 | G23: 0.64 | H23: 0.88 | I23: 0.53
B24: 913 | C24: Retten i Svendborg | D24: 0.5537184095 | E24: 0.58 | F24: 0.7694174757 | G24: 0.65 | H24: 0.9 | I24: 0.67
B25: 914 | C25: Retten i Nykøbing F. | D25: 0.8382040259 | E25: 0.74 | F25: 0.7919463087 | G25: 0.77 | H25: 0.93 | I25: 0.68
B26: 915 | C26: Retten i Næstved | D26: 0.7595385913 | E26: 0.62 | F26: 0.780876494 | G26: 0.68 | H26: 0.88 | I26: 0.69
B27: 916 | C27: Retten i Holbæk | D27: 0.7298960108 | E27: 0.7 | F27: 0.6272727273 | G27: 0.58 | H27: 0.84 | I27: 0.65
B28: 917 | C28: Retten i Roskilde | D28: 0.8640690773 | E28: 0.77 | F28: 0.7687150838 | G28: 0.73 | H28: 0.87 | I28: 0.68
B29: 918 | C29: Retten i Hillerød | D29: 0.83959472 | E29: 0.56 | F29: 0.7142857143 | G29: 0.57 | H29: 0.66 | I29: 0.79
B30: 919 | C30: Retten i Helsingør | D30: 0.8260438853 | E30: 0.73 | F30: 0.7857142857 | G30: 0.77 | H30: 0.89 | I30: 0.64
B31: 920 | C31: Retten i Lyngby | D31: 0.8826876526 | E31: 0.83 | F31: 0.89678511 | G31: 0.77 | H31: 0.75 | I31: 0.38
B32: 921 | C32: Retten i Glostrup | D32: 0.5796975891 | E32: 0.34 | F32: 0.5522080066 | G32: 0.51 | H32: 0.35 | I32: 0.4
B33: 922 | C33: Retten på Frederiksberg | D33: 0.6166225571 | E33: 0.41 | F33: 0.5884917175 | G33: 0.5 | H33: 0.57 | I33: 0.18
B34: 923 | C34: Københavns Byret | D34: 0.7491824553 | E34: 0.61 | F34: 0.80790248 | G34: 0.64 | H34: 0.3 | I34: -
B35: 924 | C35: Retten på Bornholm | D35: 0.9936307819 | E35: 0.97 | F35: 0.95 | G35: 0.83 | H35: 1 | I35: 0.8
B37: 1) Målene for de enkelte sagstyper er opstillet i samarbejde med byretterne. De aktuelle mål trådte i kraft i 2019.

Sheet Målopf.Skifte
B2: MÅLOPFYLDELSE SKIFTESAGER (PROCENT)
D4: Udlevering af bo | F4: Tvangsopløsningssager (eksklusive likvidation) | H4: Gældssanering (kun indledte sager)
D5: =Overblik!$D$6 -> 2019 | E5: =Overblik!$E$6 -> 2020 | F5: =Overblik!$D$6 -> 2019 | G5: =Overblik!$E$6 -> 2020 | H5: =Overblik!$D$6 -> 2019 | I5: =Overblik!$E$6 -> 2020
D6: <2 MDR. | F6: <3 MDR. | H6: <9 MDR.
C8: MÅL (procent) | D8: 80 pct. | F8: 75 pct. | H8: 75 pct.
C9: SAMLET BYRETTERNE | D9: 0.781956179 | E9: 0.79 | F9: 0.7898582796 | G9: 0.86 | H9: 0.7922298999 | I9: 0.75
C10: 5. BEDSTE RET | D10: =LARGE(D12:D35,5) -> 0.8588 | E10: =LARGE(E12:E35,5) -> 0.86 | F10: =LARGE(F12:F35,5) -> 0.8308608696 | G10: 0.88 | H10: =LARGE(H12:H35,5) -> 0.900015 | I10: 0.93
B11: EID | C11: Ret
B12: 901 | C12: Retten i Hjørring | D12: 0.7903 | E12: 0.79 | F12: 0.8289813472 | G12: 0.74 | H12: 0.8240216 | I12: 0.96
B13: 902 | C13: Retten i Aalborg | D13: 0.8077 | E13: 0.73 | F13: 0.8234677485 | G13: 0.74 | H13: 0.6666484127 | I13: 0.94
B14: 903 | C14: Retten i Randers | D14: 0.8138 | E14: 0.86 | F14: 0.7055430421 | G14: 0.65 | H14: 0.6666656566 | I14: 0.58
B15: 904 | C15: Retten i Århus | D15: 0.6345 | E15: 0.65 | F15: 0.8010179775 | G15: 0.85 | H15: 0.8765333333 | I15: 0.88
B16: 905 | C16: Retten i Viborg | D16: 0.7692 | E16: 0.61 | F16: 0.7752090604 | G16: 0.82 | H16: 0.7884884615 | I16: 0.86
B17: 906 | C17: Retten i Holstebro | D17: 0.8756 | E17: 0.91 | F17: 0.922656701 | G17: 0.94 | H17: 0.9792 | I17: 0.98
B18: 907 | C18: Retten i Herning | D18: 0.733 | E18: 0.72 | F18: 0.7489331984 | G18: 0.8 | H18: 0.8142671429 | I18: 0.89
B19: 908 | C19: Retten i Horsens | D19: 0.7637 | E19: 0.81 | F19: 0.8308608696 | G19: 0.93 | H19: 0.9545363636 | I19: 0.95
B20: 909 | C20: Retten i Kolding | D20: 0.8665 | E20: 0.83 | F20: 0.7933465887 | G20: 0.85 | H20: 0.900015 | I20: 0.87
B21: 910 | C21: Retten i Esbjerg | D21: 0.6868 | E21: 0.78 | F21: 0.7955408922 | G21: 0.63 | H21: 0.7822491935 | I21: 0.77
B22: 911 | C22: Retten i Sønderborg | D22: 0.655 | E22: 0.76 | F22: 0.8155333333 | G22: 0.34 | H22: 0.4096445783 | I22: 0.93
B23: 912 | C23: Retten i Odense | D23: 0.8066 | E23: 0.76 | F23: 0.8380356275 | G23: 0.82 | H23: 0.8999963636 | I23: 0.77
B24: 913 | C24: Retten i Svendborg | D24: 0.8588 | E24: 0.85 | F24: 0.7903812227 | G24: 0.59 | H24: 0.70997 | I24: 0.78
B25: 914 | C25: Retten i Nykøbing F. | D25: 0.9239 | E25: 0.93 | F25: 0.8091460581 | G25: 0.9 | H25: 0.8645583333 | I25: 0.82
B26: 915 | C26: Retten i Næstved | D26: 0.7818 | E26: 0.78 | F26: 0.7937762238 | G26: 0.88 | H26: 0.8604406977 | I26: 0.89
B27: 916 | C27: Retten i Holbæk | D27: 0.7448 | E27: 0.68 | F27: 0.8602521505 | G27: 0.69 | H27: 0.7260438356 | I27: 0.84
B28: 917 | C28: Retten i Roskilde | D28: 0.7622 | E28: 0.8 | F28: 0.7070511811 | G28: 0.76 | H28: 0.8333411111 | I28: 0.9
B29: 918 | C29: Retten i Hillerød | D29: 0.7898 | E29: 0.84 | F29: 0.6537091873 | G29: 0.81 | H29: 0.7000233333 | I29: 0.89
B30: 919 | C30: Retten i Helsingør | D30: 0.7999 | E30: 0.86 | F30: 0.8139868922 | G30: 0.78 | H30: 0.9138034483 | I30: 0.8
B31: 920 | C31: Retten i Lyngby | D31: 0.7709 | E31: 0.8 | F31: - | G31: - | H31: - | I31: -
B32: 921 | C32: Retten i Glostrup | D32: 0.7803 | E32: 0.84 | F32: - | G32: - | H32: - | I32: -
B33: 922 | C33: Retten på Frederiksberg | D33: 0.7436 | E33: 0.78 | F33: - | G33: - | H33: - | I33: -
B34: 923 | C34: Københavns Byret | D34: 0.7915 | E34: 0.8 | F34: - | G34: - | H34: - | I34: -
B35: 924 | C35: Retten på Bornholm | D35: 0.9651 | E35: 0.97 | F35: 0.857175 | G35: 1 | H35: 1 | I35: 0.92
B37: 1) Målene for de enkelte sagstyper er opstillet i samarbejde med byretterne. De aktuelle mål trådte i kraft i 2019.

Sheet Sagstid.Straf
B2: GENNEMSNITLIG SAGSBEHANDLINGSTID STRAFFESAGER (DAGE)
D4: Nævningesager | F4: Domsmandssager | H4: Sager uden domsmænd | J4: Tilståelsessager
D5: =Overblik!$D$6 -> 2019 | E5: =Overblik!$E$6 -> 2020 | F5: =Overblik!$D$6 -> 2019 | G5: =Overblik!$E$6 -> 2020 | H5: =Overblik!$D$6 -> 2019 | I5: =Overblik!$E$6 -> 2020 | J5: =Overblik!$D$6 -> 2019 | K5: =Overblik!$E$6 -> 2020
C6: SAMLET BYRETTERNE | D6: 191.7698745 | E6: 177.3 | F6: 155.9545677 | G6: 170.5 | H6: 25.74931509 | I6: 31.9 | J6: 88.86183575 | K6: 102.8
C7: 5. BEDSTE RET | D7: =SMALL(D9:D32,5) -> 105 | E7: =SMALL(E9:E32,5) -> 100 | F7: 100 | G7: 127 | H7: 14 | I7: 19.8 | J7: 62 | K7: 70.9
B8: EID | C8: Ret
B9: 901 | C9: Retten i Hjørring | D9: 119 | E9: 3 | F9: 142 | G9: 127 | H9: 23 | I9: 21.3 | J9: 101 | K9: 73.9
B10: 902 | C10: Retten i Aalborg | D10: 166 | E10: 111 | F10: 159 | G10: 162.6 | H10: 23 | I10: 19.8 | J10: 101 | K10: 99.3
B11: 903 | C11: Retten i Randers | D11: 120 | E11: 270 | F11: 169 | G11: 183.5 | H11: 36 | I11: 42.8 | J11: 121 | K11: 151.8
B12: 904 | C12: Retten i Århus | D12: 124 | E12: 220.5 | F12: 276 | G12: 303.2 | H12: 46 | I12: 54 | J12: 209 | K12: 284.2
B13: 905 | C13: Retten i Viborg | D13: 124 | E13: 299 | F13: 194 | G13: 183.4 | H13: 41 | I13: 36.5 | J13: 114 | K13: 86.3
B14: 906 | C14: Retten i Holstebro | D14: 38 | E14: 142.4 | F14: 63 | G14: 101.9 | H14: 13 | I14: 22.1 | J14: 48 | K14: 57.9
B15: 907 | C15: Retten i Herning | D15: 106 | E15: 153.3 | F15: 84 | G15: 114.5 | H15: 22 | I15: 28.5 | J15: 76 | K15: 97.8
B16: 908 | C16: Retten i Horsens | D16: 134 | E16: 232.3 | F16: 190 | G16: 216.5 | H16: 38 | I16: 33.9 | J16: 144 | K16: 142.3
B17: 909 | C17: Retten i Kolding | D17: 92 | E17: 213.7 | F17: 142 | G17: 197.4 | H17: 22 | I17: 54.3 | J17: 95 | K17: 164.8
B18: 910 | C18: Retten i Esbjerg | D18: 221 | E18: 240.5 | F18: 182 | G18: 216.9 | H18: 29 | I18: 33.5 | J18: 62 | K18: 72.3
B19: 911 | C19: Retten i Sønderborg | D19: 129 | E19: 46 | F19: 158 | G19: 182.7 | H19: 43 | I19: 41.9 | J19: 82 | K19: 107.5
B20: 912 | C20: Retten i Odense | D20: 214 | E20: 168.1 | F20: 96 | G20: 133.9 | H20: 8 | I20: 19.3 | J20: 65 | K20: 95.3
B21: 913 | C21: Retten i Svendborg | D21: 13 | E21: 149 | F21: 137 | G21: 141.6 | H21: 24 | I21: 55.5 | J21: 108 | K21: 90.3
B22: 914 | C22: Retten i Nykøbing F. | D22: 131 | E22: 184.8 | F22: 100 | G22: 127.6 | H22: 14 | I22: 18 | J22: 61 | K22: 81.1
B23: 915 | C23: Retten i Næstved | D23: 177 | E23: 121.2 | F23: 116 | G23: 138.5 | H23: 13 | I23: 18.1 | J23: 73 | K23: 84.2
B24: 916 | C24: Retten i Holbæk | D24: 105 | E24: 92 | F24: 146 | G24: 139 | H24: 43 | I24: 30.8 | J24: 94 | K24: 90.9
B25: 917 | C25: Retten i Roskilde | D25: 277 | E25: 173.7 | F25: 119 | G25: 123.4 | H25: 18 | I25: 22.7 | J25: 51 | K25: 63.7
B26: 918 | C26: Retten i Hillerød | D26: 161 | E26: - | F26: 126 | G26: 182.2 | H26: 29 | I26: 26.3 | J26: 62 | K26: 70.9
B27: 919 | C27: Retten i Helsingør | D27: 122 | E27: 437 | F27: 115 | G27: 166.6 | H27: 21 | I27: 28.2 | J27: 77 | K27: 103.4
B28: 920 | C28: Retten i Lyngby | D28: 174 | E28: 100 | F28: 130 | G28: 167.5 | H28: 25 | I28: 30.9 | J28: 87 | K28: 89.7
B29: 921 | C29: Retten i Glostrup | D29: 177 | E29: 194.2 | F29: 224 | G29: 219.1 | H29: 38 | I29: 51.2 | J29: 98 | K29: 116.7
B30: 922 | C30: Retten på Frederiksberg | D30: 294 | E30: 163.6 | F30: 153 | G30: 138.8 | H30: 32 | I30: 34.1 | J30: 80 | K30: 65.4
B31: 923 | C31: Københavns Byret | D31: 219 | E31: 230.1 | F31: 164 | G31: 174.6 | H31: 20 | I31: 23.3 | J31: 62 | K31: 78.2
B32: 924 | C32: Retten på Bornholm | D32: 0 | E32: 22 | F32: 42 | G32: 57.4 | H32: 11 | I32: 17.3 | J32: 32 | K32: 38.1

Sheet Sagstid.Civil
B2: GENNEMSNITLIG SAGSBEHANDLINGSTID CIVILE SAGER (DAGE)
D4: Hovedforhandlede almindelige sager | F4: Hovedforhandlede boligretssager | H4: Hovedforhandlede småsager | J4: Hovedforhandlede §§ 6 og 7-sager
D5: =Overblik!$D$6 -> 2019 | E5: =Overblik!$E$6 -> 2020 | F5: =Overblik!$D$6 -> 2019 | G5: =Overblik!$E$6 -> 2020 | H5: =Overblik!$D$6 -> 2019 | I5: =Overblik!$E$6 -> 2020 | J5: =Overblik!$D$6 -> 2019 | K5: =Overblik!$E$6 -> 2020
C6: SAMLET BYRETTERNE | D6: 536.7705589 | E6: 558 | F6: 447.8553651 | G6: 479 | H6: 287.7875 | I6: 359 | J6: 98 | K6: 178
C7: 5. BEDSTE RET | D7: =SMALL(D9:D32,5) -> 434.87925 | E7: 491 | F7: 243.36 | G7: 351 | H7: 196.9976667 | I7: 224 | J7: 83 | K7: 157
B8: EID | C8: Ret
B9: 901 | C9: Retten i Hjørring | D9: 462.0350968 | E9: 536 | F9: 197.73 | G9: 532 | H9: 233.22 | I9: 270 | J9: 102 | K9: 179
B10: 902 | C10: Retten i Aalborg | D10: 611.2285263 | E10: 626 | F10: 519.844 | G10: 704 | H10: 293.8432672 | I10: 305 | J10: 79 | K10: 199
B11: 903 | C11: Retten i Randers | D11: 592.163325 | E11: 589 | F11: 810.9017647 | G11: 627 | H11: 417.3305882 | I11: 421 | J11: 102 | K11: 220
B12: 904 | C12: Retten i Århus | D12: 702.1536889 | E12: 813 | F12: 586.9032 | G12: 603 | H12: 412.3224444 | I12: 444 | J12: 122 | K12: 187
B13: 905 | C13: Retten i Viborg | D13: 633.0053438 | E13: 604 | F13: 358.449 | G13: 476 | H13: 231.62295 | I13: 266 | J13: 142 | K13: 192
B14: 906 | C14: Retten i Holstebro | D14: 434.87925 | E14: 493 | F14: 197.73 | G14: 348 | H14: 188.773 | I14: 224 | J14: 103 | K14: 161
B15: 907 | C15: Retten i Herning | D15: 469.49214 | E15: 393 | F15: 236.262 | G15: 351 | H15: 173.324069 | I15: 208 | J15: 113 | K15: 161
B16: 908 | C16: Retten i Horsens | D16: 447.956962 | E16: 605 | F16: 282.23 | G16: 442 | H16: 270.0282 | I16: 343 | J16: 100 | K16: 190
B17: 909 | C17: Retten i Kolding | D17: 574.5305047 | E17: 592 | F17: 304.538 | G17: 664 | H17: 362.4016777 | I17: 391 | J17: 109 | K17: 184
B18: 910 | C18: Retten i Esbjerg | D18: 691.9972405 | E18: 741 | F18: 321.0324 | G18: 647 | H18: 378.0990909 | I18: 375 | J18: 92 | K18: 224
B19: 911 | C19: Retten i Sønderborg | D19: 618.5721905 | E19: 491 | F19: 483.678 | G19: 394 | H19: 263.0521739 | I19: 289 | J19: 92 | K19: 157
B20: 912 | C20: Retten i Odense | D20: 483.0985714 | E20: 511 | F20: 369.46104 | G20: 490 | H20: 248.6267463 | I20: 236 | J20: 108 | K20: 172
B21: 913 | C21: Retten i Svendborg | D21: 576.8277273 | E21: 558 | F21: 378.0192 | G21: 383 | H21: 298.792 | I21: 272 | J21: 88 | K21: 148
B22: 914 | C22: Retten i Nykøbing F. | D22: 419.7739565 | E22: 433 | F22: 290.173 | G22: 501 | H22: 202.1547273 | I22: 184 | J22: 89 | K22: 147
B23: 915 | C23: Retten i Næstved | D23: 604.5916047 | E23: 516 | F23: 534.8286667 | G23: 427 | H23: 226.9581053 | I23: 207 | J23: 120 | K23: 197
B24: 916 | C24: Retten i Holbæk | D24: 547.222 | E24: 560 | F24: 370.11 | G24: 632 | H24: 206.5518 | I24: 351 | J24: 83 | K24: 175
B25: 917 | C25: Retten i Roskilde | D25: 538.7802439 | E25: 516 | F25: 490.7410345 | G25: 495 | H25: 337.8696867 | I25: 358 | J25: 116 | K25: 225
B26: 918 | C26: Retten i Hillerød | D26: 430.5937297 | E26: 484 | F26: 243.36 | G26: 397 | H26: 267.2301081 | I26: 302 | J26: 85 | K26: 205
B27: 919 | C27: Retten i Helsingør | D27: 527.4568605 | E27: 583 | F27: 359.8251429 | G27: 291 | H27: 289.4886885 | I27: 324 | J27: 64 | K27: 169
B28: 920 | C28: Retten i Lyngby | D28: 404.079 | E28: 562 | F28: 411.5826 | G28: 335 | H28: 196.9976667 | I28: 246 | J28: 87 | K28: 171
B29: 921 | C29: Retten i Glostrup | D29: 551.2732394 | E29: 559 | F29: 440.72496 | G29: 463 | H29: 281.598087 | I29: 250 | J29: 99 | K29: 168
B30: 922 | C30: Retten på Frederiksberg | D30: 597.115362 | E30: 537 | F30: 458.8473659 | G30: 570 | H30: 182.4138837 | I30: 260 | J30: 79 | K30: 148
B31: 923 | C31: Københavns Byret | D31: 500.5578078 | E31: 534 | F31: 437.75225 | G31: 471 | H31: 291.1710566 | I31: 383 | J31: 114 | K31: 178
B32: 924 | C32: Retten på Bornholm | D32: 226.512 | E32: 466 | F32: 187.8435 | G32: 346 | H32: 139.6785 | I32: 183 | J32: 56 | K32: 114
E33: 13302

Sheet Sagstid.Foged
B2: GENNEMSNITLIG SAGSBEHANDLINGSTID FOGEDSAGER (DAGE)
D4: Alm. fogedsager | F4: Særlige fogedsager | H4: Betalingspåkrav | J4: Tvangsauktioner
D5: =Overblik!$D$6 -> 2019 | E5: =Overblik!$E$6 -> 2020 | F5: =Overblik!$D$6 -> 2019 | G5: =Overblik!$E$6 -> 2020 | H5: =Overblik!$D$6 -> 2019 | I5: =Overblik!$E$6 -> 2020 | J5: =Overblik!$D$6 -> 2019 | K5: =Overblik!$E$6 -> 2020
C6: SAMLET BYRETTERNE | D6: 90.52076599 | E6: 100.8 | F6: 52.43204868 | G6: 66.5 | H6: 74.25734209 | I6: 74.6 | J6: 68.04619619 | K6: 80.5
C7: 5. BEDSTE RET | D7: 61.58295113 | E7: =SMALL(E9:E32,5) -> 69.4 | F7: 45.04849498 | G7: 45.5 | H7: 52.80696143 | I7: 55 | J7: 53 | K7: 63.1
B8: EID | C8: Ret
B9: 901 | C9: Retten i Hjørring | D9: 83.18656963 | E9: 80.1 | F9: 47.2192623 | G9: 49 | H9: 61.25413131 | I9: 55.3 | J9: 80 | K9: 92.7
B10: 902 | C10: Retten i Aalborg | D10: 99.13823556 | E10: 102.4 | F10: 62.00210084 | G10: 63.2 | H10: 69.36063269 | I10: 67.3 | J10: 77 | K10: 90.6
B11: 903 | C11: Retten i Randers | D11: 133.470018 | E11: 112 | F11: 69.5539823 | G11: 77.1 | H11: 102.3444046 | I11: 101.8 | J11: 115 | K11: 128
B12: 904 | C12: Retten i Århus | D12: 141.2140711 | E12: 187.3 | F12: 41.25649795 | G12: 139.7 | H12: 113.2943825 | I12: 130.2 | J12: 68 | K12: 73
B13: 905 | C13: Retten i Viborg | D13: 85.76863253 | E13: 108.8 | F13: 48.92938931 | G13: 55.8 | H13: 77.59101237 | I13: 76.2 | J13: 74 | K13: 108.8
B14: 906 | C14: Retten i Holstebro | D14: 45.24340842 | E14: 50.9 | F14: 33.23762376 | G14: 34.1 | H14: 44.68637048 | I14: 43.2 | J14: 53 | K14: 62.1
B15: 907 | C15: Retten i Herning | D15: 73.99461685 | E15: 77.8 | F15: 55.52972973 | G15: 49.5 | H15: 61.22229361 | I15: 61.8 | J15: 62 | K15: 63.1
B16: 908 | C16: Retten i Horsens | D16: 61.58295113 | E16: 75.6 | F16: 45.87288136 | G16: 51.9 | H16: 70.07551693 | I16: 65.8 | J16: 55 | K16: 70.7
B17: 909 | C17: Retten i Kolding | D17: 73.49851787 | E17: 78.3 | F17: 48.25384615 | G17: 47.3 | H17: 52.80696143 | I17: 84.6 | J17: 64 | K17: 76.8
B18: 910 | C18: Retten i Esbjerg | D18: 58.18642104 | E18: 50.7 | F18: 45.04849498 | G18: 46.2 | H18: 74.67512047 | I18: 55 | J18: 66 | K18: 75.4
B19: 911 | C19: Retten i Sønderborg | D19: 118.0636 | E19: 121.9 | F19: 55.70206022 | G19: 57 | H19: 136.9558247 | I19: 58.5 | J19: 89 | K19: 92.2
B20: 912 | C20: Retten i Odense | D20: 83.8533388 | E20: 90.2 | F20: 45.64561734 | G20: 51.4 | H20: 53.20988629 | I20: 70.3 | J20: 53 | K20: 79.7
B21: 913 | C21: Retten i Svendborg | D21: 86.17469965 | E21: 88.6 | F21: 51.18203883 | G21: 57.3 | H21: 121.1664865 | I21: 112.9 | J21: 89 | K21: 91.9
B22: 914 | C22: Retten i Nykøbing F. | D22: 69.83249628 | E22: 78.1 | F22: 45.41946309 | G22: 42.2 | H22: 58.27243861 | I22: 60.9 | J22: 55 | K22: 74.6
B23: 915 | C23: Retten i Næstved | D23: 78.49596651 | E23: 88.3 | F23: 53.62018592 | G23: 53.3 | H23: 79.0394675 | I23: 86.6 | J23: 61 | K23: 62.1
B24: 916 | C24: Retten i Holbæk | D24: 82.871695 | E24: 84.7 | F24: 59.83636364 | G24: 91.5 | H24: 72.31437126 | I24: 78 | J24: 75 | K24: 81.4
B25: 917 | C25: Retten i Roskilde | D25: 66.60530039 | E25: 69.4 | F25: 51.42011173 | G25: 58.8 | H25: 55.44341148 | I25: 52.3 | J25: 58 | K25: 65.8
B26: 918 | C26: Retten i Hillerød | D26: 71.56656245 | E26: 89.3 | F26: 45.88492063 | G26: 55.1 | H26: 59.13729309 | I26: 77.5 | J26: 47 | K26: 59.1
B27: 919 | C27: Retten i Helsingør | D27: 75.39681881 | E27: 84.4 | F27: 46.7027027 | G27: 45.5 | H27: 61.85663082 | I27: 61 | J27: 63 | K27: 67.5
B28: 920 | C28: Retten i Lyngby | D28: 59.41920865 | E28: 59.1 | F28: 39.64467005 | G28: 44.7 | H28: 41.79660453 | I28: 41.8 | J28: 47 | K28: 77.3
B29: 921 | C29: Retten i Glostrup | D29: 139.1657914 | E29: 159.9 | F29: 60.81097813 | G29: 75 | H29: 51.65749778 | I29: 65.7 | J29: 73 | K29: 69.1
B30: 922 | C30: Retten på Frederiksberg | D30: 119.3118174 | E30: 131.4 | F30: 65.63775065 | G30: 67.8 | H30: 70.83579935 | I30: 72.3 | J30: 81 | K30: 105.5
B31: 923 | C31: Københavns Byret | D31: 84.03561376 | E31: 87.6 | F31: 47.69230769 | G31: 58.8 | H31: 72.11412251 | I31: 83.9 | J31: 67 | K31: 73.3
B32: 924 | C32: Retten på Bornholm | D32: 24.85339885 | E32: 31.6 | F32: 32.01666667 | G32: 32.6 | H32: 25.95714286 | I32: 28.4 | J32: 36 | K32: 47.2

Sheet Sagstid.Skifte
B2: GENNEMSNITLIG SAGSBEHANDLINGSTID SKIFTESAGER (DAGE)
D4: Boudlæg | F4: Uskiftet bo | H4: Privat skifte | J4: Forenklet privat skifte
D5: =Overblik!$D$6 -> 2019 | E5: =Overblik!$E$6 -> 2020 | F5: =Overblik!$D$6 -> 2019 | G5: =Overblik!$E$6 -> 2020 | H5: =Overblik!$D$6 -> 2019 | I5: =Overblik!$E$6 -> 2020 | J5: =Overblik!$D$6 -> 2019 | K5: =Overblik!$E$6 -> 2020
C6: SAMLET BYRETTERNE | D6: 49.44844328 | E6: 50 | F6: 101.2074358 | G6: 103 | H6: 362.8787629 | I6: 341 | J6: 75.40258171 | K6: 78
C7: 5. BEDSTE RET | D7: =SMALL(D9:D32,5) -> 41.08 | E7: 38 | F7: 79.15 | G7: 84 | H7: 345.69 | I7: 318 | J7: 62.95 | K7: 67
B8: EID | C8: Ret
B9: 901 | C9: Retten i Hjørring | D9: 53.3 | E9: 56 | F9: 82.56 | G9: 94 | H9: 348.3 | I9: 321 | J9: 70.45 | K9: 79
B10: 902 | C10: Retten i Aalborg | D10: 41.08 | E10: 57 | F10: 75.39 | G10: 90 | H10: 345.69 | I10: 338 | J10: 72.36 | K10: 78
B11: 903 | C11: Retten i Randers | D11: 52.48 | E11: 48 | F11: 97.84 | G11: 90 | H11: 354.41 | I11: 331 | J11: 72.95 | K11: 73
B12: 904 | C12: Retten i Århus | D12: 70.62 | E12: 70 | F12: 113.25 | G12: 114 | H12: 432.04 | I12: 402 | J12: 85.05 | K12: 91
B13: 905 | C13: Retten i Viborg | D13: 49.19 | E13: 74 | F13: 85.05 | G13: 103 | H13: 330.01 | I13: 341 | J13: 73.64 | K13: 92
B14: 906 | C14: Retten i Holstebro | D14: 41.87 | E14: 37 | F14: 81.39 | G14: 74 | H14: 354.42 | I14: 311 | J14: 54.45 | K14: 52
B15: 907 | C15: Retten i Herning | D15: 62.94 | E15: 65 | F15: 115.07 | G15: 92 | H15: 354.26 | I15: 337 | J15: 95.28 | K15: 84
B16: 908 | C16: Retten i Horsens | D16: 52.02 | E16: 52 | F16: 101.24 | G16: 99 | H16: 378.01 | I16: 340 | J16: 76.32 | K16: 70
B17: 909 | C17: Retten i Kolding | D17: 30.37 | E17: 37 | F17: 78.75 | G17: 84 | H17: 331.62 | I17: 333 | J17: 59.25 | K17: 68
B18: 910 | C18: Retten i Esbjerg | D18: 56.95 | E18: 39 | F18: 117.3 | G18: 112 | H18: 424.35 | I18: 367 | J18: 79.76 | K18: 70
B19: 911 | C19: Retten i Sønderborg | D19: 64.7 | E19: 53 | F19: 139.98 | G19: 122 | H19: 383.63 | I19: 335 | J19: 93.67 | K19: 79
B20: 912 | C20: Retten i Odense | D20: 46.97 | E20: 55 | F20: 87.04 | G20: 94 | H20: 359.28 | I20: 351 | J20: 68.24 | K20: 82
B21: 913 | C21: Retten i Svendborg | D21: 38.42 | E21: 44 | F21: 79.15 | G21: 83 | H21: 355.87 | I21: 360 | J21: 72.38 | K21: 89
B22: 914 | C22: Retten i Nykøbing F. | D22: 34.62 | E22: 38 | F22: 45.25 | G22: 52 | H22: 345.41 | I22: 313 | J22: 42.7 | K22: 55
B23: 915 | C23: Retten i Næstved | D23: 43.4 | E23: 48 | F23: 100.37 | G23: 103 | H23: 350.46 | I23: 325 | J23: 62.95 | K23: 74
B24: 916 | C24: Retten i Holbæk | D24: 55.99 | E24: 57 | F24: 143.21 | G24: 165 | H24: 386.26 | I24: 387 | J24: 96.26 | K24: 115
B25: 917 | C25: Retten i Roskilde | D25: 48.38 | E25: 46 | F25: 100.27 | G25: 118 | H25: 361.57 | I25: 338 | J25: 74 | K25: 72
B26: 918 | C26: Retten i Hillerød | D26: 50.15 | E26: 41 | F26: 121.64 | G26: 104 | H26: 366.27 | I26: 340 | J26: 98.74 | K26: 86
B27: 919 | C27: Retten i Helsingør | D27: 44.55 | E27: 33 | F27: 122.86 | G27: 107 | H27: 351.79 | I27: 319 | J27: 82.57 | K27: 67
B28: 920 | C28: Retten i Lyngby | D28: 45.43 | E28: 49 | F28: 126.79 | G28: 132 | H28: 369.85 | I28: 355 | J28: 78.09 | K28: 78
B29: 921 | C29: Retten i Glostrup | D29: 61.5 | E29: 50 | F29: 131.61 | G29: 120 | H29: 346.79 | I29: 318 | J29: 83.77 | K29: 80
B30: 922 | C30: Retten på Frederiksberg | D30: 49.56 | E30: 57 | F30: 106.4 | G30: 122 | H30: 400.01 | I30: 389 | J30: 84.98 | K30: 97
B31: 923 | C31: Københavns Byret | D31: 42.3 | E31: 42 | F31: 93.32 | G31: 96 | H31: 351.52 | I31: 304 | J31: 77.16 | K31: 67
B32: 924 | C32: Retten på Bornholm | D32: 22.59 | E32: 23 | F32: 40.46 | G32: 38 | H32: 283.88 | I32: 291 | J32: 41.26 | K32: 38

Sheet HR-nøgletal_lønsum
B2: UDVALGTE HR-NØGLETAL
D4: Gnst. antal sygedage pr. ansat | F4: Personaleomsætning (%) | H4: Lønsumsforbrug (mio.) 2020-pl
D5: =Overblik!$D$6 -> 2019 | E5: =Overblik!$E$6 -> 2020 | F5: =Overblik!$D$6 -> 2019 | G5: =Overblik!$E$6 -> 2020 | H5: =Overblik!$D$6 -> 2019 | I5: =Overblik!$E$6 -> 2020
C6: SAMLET BYRETTERNE | D6: 9.8 | E6: 11.3 | F6: 7.8 | G6: 7.2 | H6: =SUM(H9:H32)/24 -> 34.71646406 | I6: =SUM(I9:I32)/24 -> 35.13541369
C7: 5. BEDSTE RET | D7: =SMALL(D9:D32,5) -> 7.991211987 | E7: =SMALL(E9:E32,5) -> 8.9
B8: EID | C8: Ret
B9: 901 | C9: Retten i Hjørring | D9: 11.67115635 | E9: 9 | F9: 3.903345536 | G9: 11.1 | H9: 26.50282435 | I9: 25.93220815
B10: 902 | C10: Retten i Aalborg | D10: 4.914900277 | E10: 12.5 | F10: 6.144358204 | G10: 9.2 | H10: 40.39209388 | I10: 41.69645877
B11: 903 | C11: Retten i Randers | D11: 12.67798225 | E11: - | F11: 10.05702783 | G11: 7.6 | H11: 28.02781265 | I11: 27.45513784
B12: 904 | C12: Retten i Århus | D12: 15.50239535 | E12: 17.6 | F12: 12.5637887 | G12: 10.2 | H12: 46.89205633 | I12: 48.09153681
B13: 905 | C13: Retten i Viborg | D13: 11.70690067 | E13: - | F13: 14.42686509 | G13: 8.5 | H13: 27.23913909 | I13: 27.41793724
B14: 906 | C14: Retten i Holstebro | D14: 13.78194312 | E14: 10.2 | F14: 1.591760603 | G14: 8.5 | H14: 19.12997658 | I14: 19.59430223
B15: 907 | C15: Retten i Herning | D15: 3.463521823 | E15: 6.1 | F15: 9.28334349 | G15: 2.4 | H15: 21.57137922 | I15: 22.94462682
B16: 908 | C16: Retten i Horsens | D16: 7.233343083 | E16: 12 | F16: 6.695085913 | G16: 7.1 | H16: 22.15054702 | I16: 22.20375336
B17: 909 | C17: Retten i Kolding | D17: 12.08875968 | E17: 15.1 | F17: 5.077183052 | G17: 3.6 | H17: 38.59599005 | I17: 41.19137476
B18: 910 | C18: Retten i Esbjerg | D18: 11.4069261 | E18: 11.3 | F18: 16.34641659 | G18: 10.4 | H18: 26.1081054 | I18: 27.0958199
B19: 911 | C19: Retten i Sønderborg | D19: 6.351825041 | E19: - | F19: 11.31449527 | G19: 10.5 | H19: 34.06687992 | I19: 33.86079362
B20: 912 | C20: Retten i Odense | D20: 8.39718208 | E20: 8.9 | F20: 6.574732047 | G20: 6.2 | H20: 39.97887033 | I20: 42.09987445
B21: 913 | C21: Retten i Svendborg | D21: 8.845553632 | E21: 4.7 | F21: 7.581411514 | G21: 4.8 | H21: 20.98491245 | I21: 21.56283498
B22: 914 | C22: Retten i Nykøbing F. | D22: 13.74577269 | E22: 9.4 | F22: 1.997661158 | G22: 6.2 | H22: 26.85625513 | I22: 28.452648
B23: 915 | C23: Retten i Næstved | D23: 10.59558133 | E23: 13.9 | F23: 7.46576825 | G23: 7.9 | H23: 35.10880963 | I23: 35.20761211
B24: 916 | C24: Retten i Holbæk | D24: 8.156396919 | E24: 9.8 | F24: 3.067526945 | G24: 4.5 | H24: 23.6428308 | I24: 22.90573369
B25: 917 | C25: Retten i Roskilde | D25: 10.80271587 | E25: 5.7 | F25: 5.962924109 | G25: 4.5 | H25: 38.79579737 | I25: 37.8922247
B26: 918 | C26: Retten i Hillerød | D26: 11.55266253 | E26: 17 | F26: 6.664722272 | G26: 11.2 | H26: 27.03657754 | I26: 25.76007831
B27: 919 | C27: Retten i Helsingør | D27: 9.663325152 | E27: 10 | F27: 14.71902355 | G27: 3.2 | H27: 23.13120647 | I27: 23.07620423
B28: 920 | C28: Retten i Lyngby | D28: 11.56803069 | E28: 18.1 | F28: 10.46799048 | G28: 5.9 | H28: 29.93535053 | I28: 28.34003793
B29: 921 | C29: Retten i Glostrup | D29: 7.991211987 | E29: 9.9 | F29: 11.26386003 | G29: 10.1 | H29: 56.51984786 | I29: 59.70275593
B30: 922 | C30: Retten på Frederiksberg | D30: 9.979172097 | E30: 10.6 | F30: 8.561199536 | G30: 5.9 | H30: 48.62110122 | I30: 48.32374712
B31: 923 | C31: Københavns Byret | D31: 9.243422429 | E31: - | F31: 3.273865564 | G31: 6.1 | H31: 122.447675 | I31: 122.1318297
B32: 924 | C32: Retten på Bornholm | D32: 10.86696409 | E32: 7.1 | F32: 9.860065479 | G32: 4.7 | H32: 9.459098564 | I32: 10.31039777
B34: 1) Gennemsnitlig antal sygedage pr. ansat er ekskl. ansatte under socialt kapitel. Deltidssygdom er inkluderet, men barns sygdom, omsorgsdage og særlige feriedage indgår ikke. Der fremgår ikke data for hele 2020 for Retten i Randers, Retten i Viborg, Retten i Sønderborg og Københavns Byret i ISOLA. Disse embeder er derfor som udgangspunkt udelukket fra oversigten. Embederne kan kontakte Økonomistyrelsen for mere information om årsagen til de manglende fraværsdata i ISOLA.
B35: 2) Det gennemsnitlige antal sygedage pr. ansat "samlet" er for alle byretter.
B36: 3) Perioden for personaleomsætningen opgøres af ISOLA som rullende år og løber fra november til november.
B37: 4) Lønsumsforbruget inkluderer egentlig løn, over- og merarbejde, stævningsmænd, refusioner og pensionsbidrag og er i faste priser (2020). Lønsummen for 2019 er opregnet til 2020-PL, således at det kan foretages en sammenligning mellem de to år. Samlet vises det gns. lønsumsforbrug pr. byret.

Sheet Årsværk_Pers.kat
B2: ÅRSVÆRKSFORBRUG 2019 OG 2020
D4: Jur | E4: Kon | F4: Elev | G4: Fleks | H4: Øvr. | I4: I ALT | J4: Jur | K4: Kon | L4: Elev | M4: Fleks | N4: Øvr. | O4: I ALT | P4: Jur | Q4: Kon | R4: Elev | S4: Fleks | T4: Øvr. | U4: I ALT | V4: Jur | W4: Kon | X4: Elev | Y4: Fleks | Z4: Øvr. | AA4: I ALT
D5: =Overblik!$D$6 -> 2019 | J5: =Overblik!$E$6 -> 2020 | P5: =Overblik!$D$6 -> 2019 | V5: =Overblik!$E$6 -> 2020
D6: - absolutte tal - | J6: - absolutte tal - | P6: - indeks - | V6: - indeks -
C8: SAMLET BYRETTERNE | D8: 423.00653 | E8: 824.1212 | F8: 72.16025 | G8: 45.11075 | H8: 100.1933 | I8: 1464.59203 | J8: 422.58846 | K8: 823.97667 | L8: 73.88838 | M8: 40.08744 | N8: 92.004 | O8: =SUM(J8:N8) -> 1452.54495 | P8: 100 | Q8: 100 | R8: 100 | S8: 100 | T8: 100 | U8: 100 | V8: =J8*100/D8 -> 99.90116701 | W8: =K8*100/E8 -> 99.98246253 | X8: =L8*100/F8 -> 102.3948504 | Y8: 88.8644946 | Z8: 91.82649938 | AA8: =O8*100/I8 -> 99.17744466
B9: EID | C9: Ret
B10: 901 | C10: Retten i Hjørring | D10: 12.66472 | E10: 27.7287 | F10: 3.47526 | G10: 2.71772 | H10: 3.64677 | I10: 50.23317 | J10: 12.99394 | K10: 27.39603 | L10: 3.29909 | M10: 1.15356 | N10: 2.51415 | O10: 47.35677 | P10: 100 | Q10: 100 | R10: 100 | S10: 100 | T10: 100 | U10: 100 | V10: =J10*100/D10 -> 102.5995048 | W10: =K10*100/E10 -> 98.80026831 | X10: 94.930739 | Y10: 42.44587375 | Z10: 68.94183072 | AA10: 94.27390308
B11: 902 | C11: Retten i Aalborg | D11: 21.33205 | E11: 41.12848 | F11: 5.46845 | G11: 1.95181 | H11: 3.48125 | I11: 73.36204 | J11: 21.4211 | K11: 41.62123 | L11: 5.91232 | M11: 1.19795 | N11: 4.12938 | O11: 74.28198 | P11: 100 | Q11: 100 | R11: 100 | S11: 100 | T11: 100 | U11: 100 | V11: =J11*100/D11 -> 100.417447 | W11: =K11*100/E11 -> 101.1980749 | X11: =L11*100/F11 -> 108.1169253 | Y11: =M11*100/G11 -> 61.37636348 | Z11: =N11*100/H11 -> 118.6177379 | AA11: =O11*100/I11 -> 101.2539728
B12: 903 | C12: Retten i Randers | D12: 12.89042 | E12: 28.71551 | F12: 4.66764 | G12: 1.75695 | H12: 1.96628 | I12: 49.9968 | J12: 12.05663 | K12: 28.97696 | L12: 3.29296 | M12: 1.40616 | N12: 1.98201 | O12: 47.71472 | P12: 100 | Q12: 100 | R12: 100 | S12: 100 | T12: 100 | U12: 100 | V12: 93.53170804 | W12: 100.9104836 | X12: =L12*100/F12 -> 70.54871413 | Y12: 80.03415009 | Z12: 100.7999878 | AA12: 95.43554788
B13: 904 | C13: Retten i Århus | D13: 23.68577 | E13: 46.00667 | F13: 1.79455 | G13: 2.50894 | H13: 6.60922 | I13: 80.60515 | J13: 24.42996 | K13: 46.47564 | L13: 2.44274 | M13: 2.37952 | N13: 6.25216 | O13: 81.98002 | P13: 100 | Q13: 100 | R13: 100 | S13: 100 | T13: 100 | U13: 100 | V13: 103.1419287 | W13: 101.0193522 | X13: 136.1199186 | Y13: 94.84164627 | Z13: 94.59754706 | AA13: 101.7056851
B14: 905 | C14: Retten i Viborg | D14: 14.17594 | E14: 28.03704 | F14: 4.25643 | G14: 2.00006 | H14: 3.90169 | I14: 52.37116 | J14: 14.82818 | K14: 27.10151 | L14: 5.00854 | M14: 2.00006 | N14: 3.05695 | O14: 51.99524 | P14: 100 | Q14: 100 | R14: 100 | S14: 100 | T14: 100 | U14: 100 | V14: 104.6010353 | W14: 96.66323549 | X14: 117.6699723 | Y14: 100 | Z14: 78.34938193 | AA14: 99.28220036
B15: 906 | C15: Retten i Holstebro | D15: 7.9746 | E15: 18.95781 | F15: 1.96924 | G15: 1.92987 | H15: 1.96818 | I15: 32.7997 | J15: 8.02111 | K15: 19.68935 | L15: 2.64034 | M15: 2.9465 | N15: 2.33171 | O15: 35.62901 | P15: 100 | Q15: 100 | R15: 100 | S15: 100 | T15: 100 | U15: 100 | V15: 100.5832267 | W15: 103.858779 | X15: 134.0791371 | Y15: 152.6786778 | Z15: 118.4703635 | AA15: 108.626024
B16: 907 | C16: Retten i Herning | D16: 12.0754 | E16: 22.03605 | F16: 3.05896 | G16: 0 | H16: 2.00006 | I16: 39.17047 | J16: 12.91156 | K16: 21.91397 | L16: 3.81555 | M16: 0 | N16: 2.40751 | O16: 41.04859 | P16: 100 | Q16: 100 | R16: 100 | S16: 100 | T16: 100 | U16: 100 | V16: 106.9244911 | W16: 99.44599872 | X16: 124.7335696 | Y16: - | Z16: 120.3718888 | AA16: 104.7947344
B17: 908 | C17: Retten i Horsens | D17: 12.15434 | E17: 19.70622 | F17: 3.22775 | G17: 3.87783 | H17: 4.00888 | I17: 42.97502 | J17: 12.04145 | K17: 20.58887 | L17: 2.68301 | M17: 1.67367 | N17: 4.33352 | O17: 41.32052 | P17: 100 | Q17: 100 | R17: 100 | S17: 100 | T17: 100 | U17: 100 | V17: 99.07119597 | W17: 104.4790427 | X17: 83.12322825 | Y17: =M17*100/G17 -> 43.15996318 | Z17: 108.0980224 | AA17: 96.15008905
B18: 909 | C18: Retten i Kolding | D18: 19.98124 | E18: 38.57853 | F18: 3.65822 | G18: 2.75778 | H18: 3.98039 | I18: 68.95616 | J18: 21.09545 | K18: 39.59262 | L18: 3.62627 | M18: 2.99901 | N18: 2.90391 | O18: 70.21726 | P18: 100 | Q18: 100 | R18: 100 | S18: 100 | T18: 100 | U18: 100 | V18: 105.5762806 | W18: 102.6286383 | X18: 99.12662442 | Y18: 108.7472532 | Z18: 72.95541392 | AA18: 101.8288431
B19: 910 | C19: Retten i Esbjerg | D19: 14.03954 | E19: 25.59647 | F19: 1.1345 | G19: 0.80337 | H19: 3.16838 | I19: 44.74226 | J19: 15.01051 | K19: 26.19319 | L19: 1.31577 | M19: 0.78156 | N19: 4.52972 | O19: 47.83075 | P19: 100 | Q19: 100 | R19: 100 | S19: 100 | T19: 100 | U19: 100 | V19: 106.9159673 | W19: 102.331259 | X19: 115.9779639 | Y19: 97.28518615 | Z19: 142.9664371 | AA19: 106.9028476
B20: 911 | C20: Retten i Sønderborg | D20: 15.90641 | E20: 33.08726 | F20: 2.66514 | G20: 1.44481 | H20: 3.85492 | I20: 56.95854 | J20: 15.67794 | K20: 34.78688 | L20: 2.0348 | M20: 1.20201 | N20: 3.71693 | O20: 57.41856 | P20: 100 | Q20: 100 | R20: 100 | S20: 100 | T20: 100 | U20: 100 | V20: 98.56366081 | W20: 105.1367807 | X20: 76.34870964 | Y20: 83.19502218 | Z20: 96.42041858 | AA20: 100.8076401
B21: 912 | C21: Retten i Odense | D21: 19.90301 | E21: 42.66025 | F21: 4.00016 | G21: 1.21629 | H21: 5.01718 | I21: 72.79689 | J21: 20.78204 | K21: 43.46331 | L21: 4.00016 | M21: 0.82323 | N21: 5.05993 | O21: 74.12867 | P21: 100 | Q21: 100 | R21: 100 | S21: 100 | T21: 100 | U21: 100 | V21: 104.4165681 | W21: 101.882455 | X21: 100 | Y21: 67.68369386 | Z21: 100.8520723 | AA21: 101.8294463
B22: 913 | C22: Retten i Svendborg | D22: 10.29846 | E22: 22.06089 | F22: 0.68186 | G22: 1.00003 | H22: 4.00505 | I22: 38.04629 | J22: 11.11692 | K22: 20.92918 | L22: 2.00006 | M22: 1.00003 | N22: 4.20652 | O22: 39.25271 | P22: 100 | Q22: 100 | R22: 100 | S22: 100 | T22: 100 | U22: 100 | V22: 107.9474018 | W22: 94.87006191 | X22: 293.3241428 | Y22: 100 | Z22: 105.0303991 | AA22: 103.1709268
B23: 914 | C23: Retten i Nykøbing F. | D23: 13.10207 | E23: 31.37255 | F23: 2.00008 | G23: 0.40708 | H23: 2.749 | I23: 49.63078 | J23: 13.18387 | K23: 30.95584 | L23: 2.00008 | M23: 0.41472 | N23: 3.38808 | O23: 49.94259 | P23: 100 | Q23: 100 | R23: 100 | S23: 100 | T23: 100 | U23: 100 | V23: 100.6243288 | W23: 98.67173692 | X23: 100 | Y23: 101.876781 | Z23: 123.2477264 | AA23: 100.6282593
B24: 915 | C24: Retten i Næstved | D24: 18.96357 | E24: 38.1185 | F24: 2.00006 | G24: 2.55257 | H24: 2.99783 | I24: 64.63253 | J24: 18.08201 | K24: 38.76549 | L24: 2.19147 | M24: 2.49415 | N24: 3.70328 | O24: 65.2364 | P24: 100 | Q24: 100 | R24: 100 | S24: 100 | T24: 100 | U24: 100 | V24: 95.35129725 | W24: 101.6973123 | X24: 109.5702129 | Y24: 97.71132623 | Z24: 123.5320215 | AA24: 100.9343128
B25: 916 | C25: Retten i Holbæk | D25: 12.47353 | E25: 23.60285 | F25: 2.2938 | G25: 2.861 | H25: 2.80833 | I25: 44.03951 | J25: 11.30261 | K25: 23.35397 | L25: 2.64472 | M25: 2.20247 | N25: 2.93298 | O25: 42.43675 | P25: 100 | Q25: 100 | R25: 100 | S25: 100 | T25: 100 | U25: 100 | V25: 90.61276158 | W25: 98.94555107 | X25: 115.2986311 | Y25: 76.98252359 | Z25: 104.4385809 | AA25: 96.36063162
B26: 917 | C26: Retten i Roskilde | D26: 20.41889 | E26: 38.95097 | F26: 3.1381 | G26: 1.21821 | H26: 2.08941 | I26: 65.81558 | J26: 17.95586 | K26: 39.90112 | L26: 3.6668 | M26: 0.56763 | N26: 1.3244 | O26: 63.41581 | P26: 100 | Q26: 100 | R26: 100 | S26: 100 | T26: 100 | U26: 100 | V26: 87.93749317 | W26: 102.4393488 | X26: 116.8477741 | Y26: 46.59541458 | Z26: 63.3863148 | AA26: 96.35379647
B27: 918 | C27: Retten i Hillerød | D27: 13.82417 | E27: 22.90455 | F27: 3.91699 | G27: 2.98287 | H27: 5.17157 | I27: 48.80015 | J27: 13.02245 | K27: 22.47703 | L27: 3.55731 | M27: 2.67168 | N27: 4.01993 | O27: 45.7484 | P27: 100 | Q27: 100 | R27: 100 | S27: 100 | T27: 100 | U27: 100 | V27: 94.20059215 | W27: 98.1334713 | X27: 90.8174389 | Y27: 89.56743003 | Z27: 77.73132724 | AA27: 93.74643316
B28: 919 | C28: Retten i Helsingør | D28: 11.52174 | E28: 22.60817 | F28: 2.12686 | G28: 3.11732 | H28: 3.00206 | I28: 42.37615 | J28: 12.61984 | K28: 22.78937 | L28: 2.00006 | M28: 3.02717 | N28: 2.12788 | O28: 42.56432 | P28: 100 | Q28: 100 | R28: 100 | S28: 100 | T28: 100 | U28: 100 | V28: 109.5306785 | W28: 100.8014802 | X28: 94.03815954 | Y28: =M28*100/G28 -> 97.10809285 | Z28: 70.88066195 | AA28: 100.4440469
B29: 920 | C29: Retten i Lyngby | D29: 14.33953 | E29: 29.99244 | F29: 3.76029 | G29: 0.91315 | H29: 3.38661 | I29: 52.39202 | J29: 14.61195 | K29: 25.48075 | L29: 3.16684 | M29: 0.83886 | N29: 2.55517 | O29: 46.65357 | P29: 100 | Q29: 100 | R29: 100 | S29: 100 | T29: 100 | U29: 100 | V29: 101.8997833 | W29: 84.95724256 | X29: 84.21797255 | Y29: 91.86442534 | Z29: 75.44919551 | AA29: 89.04709152
B30: 921 | C30: Retten i Glostrup | D30: 31.43391 | E30: 54.60231 | F30: 2.82904 | G30: 2.89592 | H30: 10.71785 | I30: 102.47903 | J30: 32.15906 | K30: 55.85571 | L30: 3.19213 | M30: 3.57742 | N30: 7.18584 | O30: 101.97016 | P30: 100 | Q30: 100 | R30: 100 | S30: 100 | T30: 100 | U30: 100 | V30: 102.3069036 | W30: 102.2955073 | X30: 112.8343891 | Y30: 123.5331086 | Z30: 67.04553618 | AA30: 99.50343987
B31: 922 | C31: Retten på Frederiksberg | D31: 25.54208 | E31: 45.77945 | F31: 2.54021 | G31: 4.19717 | H31: 6.40937 | I31: 84.46828 | J31: 24.92973 | K31: 45.59641 | L31: 2.64337 | M31: 4.7112 | N31: 5.65362 | O31: 83.53433 | P31: 100 | Q31: 100 | R31: 100 | S31: 100 | T31: 100 | U31: 100 | V31: 97.60258366 | W31: 99.60016995 | X31: 104.0610816 | Y31: 112.2470617 | Z31: 88.20866949 | AA31: 98.89431867
B32: 923 | C32: Københavns Byret | D32: 61.44665 | E32: 114.78033 | F32: 6.05317 | G32: 0 | H32: 11.91321 | I32: 194.19336 | J32: 59.59901 | K32: 113.50507 | L32: 5.93364 | M32: 0 | N32: 10.47567 | O32: 189.51339 | P32: 100 | Q32: 100 | R32: 100 | S32: 100 | T32: 100 | U32: 100 | V32: 96.99309889 | W32: 98.88895597 | X32: 98.02533218 | Y32: - | Z32: 87.93322706 | AA32: 97.59004633
B33: 924 | C33: Retten på Bornholm | D33: 2.85849 | E33: 7.1092 | F33: 1.44349 | G33: 0 | H33: 1.33981 | I33: 12.75099 | J33: 2.73528 | K33: 6.56717 | L33: 0.82035 | M33: 0.01888 | N33: 1.21275 | O33: 11.35443 | P33: 100 | Q33: 100 | R33: 100 | S33: 100 | T33: 100 | U33: 100 | V33: 95.68968231 | W33: 92.37565408 | X33: 56.83101372 | Y33: - | Z33: 90.51656578 | AA33: 89.04743867
B34: 1) Det opgjorte årsværksforbrug er inkl. de korrektioner, der foretages som led i produktivitetsberegningen, hvorfor det ikke kan stemmes af i forhold til eksempelvis prognoseværktøjet SOL.

Sheet Årsværk_Sagsområder
B2: ÅRSVÆRKSFORBRUG DE ENKELTE SAGSOMRÅDER I 2020
E4: Straf | G4: Civil | I4: Foged | K4: Skifte | M4: Notarial
E5: Årsværk | F5: % | G5: Årsværk | H5: % | I5: Årsværk | J5: % | K5: Årsværk | L5: % | M5: Årsværk | N5: %
C7: SAMLET BYRETTERNE | D7: Jurister | E7: 182.9998597 | F7: 0.4330450949 | G7: 148.3977582 | H7: 0.3511637734 | I7: 30.11124981 | J7: 0.07125431161 | K7: 31.65431205 | L7: 0.07490576542 | M7: 0.4906350305 | N7: 0.001161023258
D8: Kontor | E8: 243.1904337 | F8: 0.2951423779 | G8: 141.418241 | H8: 0.1716289382 | I8: 177.6083203 | J8: 0.215550181 | K8: 143.098615 | L8: 0.1736682848 | M8: 20.00888431 | N8: 0.02428331413
D9: Elev | E9: 20.03386102 | F9: 0.2711368286 | G9: 9.302717573 | H9: 0.125902308 | I9: 19.49978547 | J9: 0.2639086886 | K9: 18.35552393 | L9: 0.2484223356 | M9: 0.1984764093 | N9: 0.002686165393
D10: Fleks | E10: 5.685514084 | F10: 0.1418278165 | G10: 4.258094421 | H10: 0.1062201633 | I10: 9.724245851 | J10: 0.2425758754 | K10: 3.091919395 | L10: 0.07712938005 | M10: 2.284903136 | N10: 0.05699798083
D11: Øvrige | E11: 10.85527066 | F11: 0.1179869425 | G11: 2.08164498 | H11: 0.02262559214 | I11: 6.14319883 | J11: 0.06677099724 | K11: 1.611527465 | L11: 0.01751584132 | M11: 1.431419338 | N11: 0.01555822941
B12: EID | C12: Ret
B13: 901 | C13: Retten i Hjørring | D13: Jurister | E13: 5.757891527 | F13: 0.4431212956 | G13: 4.044723854 | H13: 0.3112777075 | I13: 0.9443763889 | J13: 0.07267821684 | K13: 1.218612762 | L13: 0.09378316059 | M13: 0.02241171752 | N13: 0.001724782285
B14: 901 | C14: Retten i Hjørring | D14: Kontor | E14: 6.577921437 | F14: 0.2401049143 | G14: 4.1293449 | H14: 0.1507278573 | I14: 7.844120516 | J14: 0.2863232562 | K14: 5.262949966 | L14: 0.1921063003 | M14: 0.7295192364 | N14: 0.02662864789
B15: 901 | C15: Retten i Hjørring | D15: Elev | E15: 0.8403509727 | F15: 0.2547220515 | G15: 0.7937493272 | H15: 0.2405964454 | I15: 0.8838153835 | J15: 0.267896718 | K15: 0.6170500446 | L15: 0.1870364387 | M15: 0.01241526233 | N15: 0.003763238448
B16: 901 | C16: Retten i Hjørring | D16: Fleks | E16: 0.4260174601 | F16: 0.3693067202 | G16: 0.2549247582 | H16: 0.2209895958 | I16: 0.1571708332 | J16: 0.1362485117 | K16: 0.3145443746 | L16: 0.2726727475 | M16: 0 | N16: 0
B17: 901 | C17: Retten i Hjørring | D17: Øvrige | E17: 0.1279494462 | F17: 0.05089173127 | G17: 0.03892834203 | H17: 0.01548369908 | I17: 0.3964066823 | J17: 0.1576702592 | K17: 0.0002592259067 | L17: 0.0001031067783 | M17: 0.0006421408013 | N17: 0.000255410696
B18: 902 | C18: Retten i Aalborg | D18: Jurister | E18: 8.29635773 | F18: 0.3872983988 | G18: 7.968761502 | H18: 0.3720052426 | I18: 1.81416085 | J18: 0.08469036839 | K18: 1.925753668 | L18: 0.08989984961 | M18: 0.006242642211 | N18: 0.0002914249133
B19: 902 | C19: Retten i Aalborg | D19: Kontor | E19: 10.42574564 | F19: 0.2504910508 | G19: 7.706672144 | H19: 0.185162047 | I19: 9.375213101 | J19: 0.2252507459 | K19: 9.674903555 | L19: 0.2324511687 | M19: 0.6938008694 | N19: 0.01666939851
B20: 902 | C20: Retten i Aalborg | D20: Elev | E20: 1.563692762 | F20: 0.2644804006 | G20: 0.7881847705 | H20: 0.133312265 | I20: 1.687891744 | J20: 0.2854872105 | K20: 1.684389906 | L20: 0.2848949153 | M20: 0.01113297549 | N20: 0.001883013012
B21: 902 | C21: Retten i Aalborg | D21: Fleks | E21: 0.01821156185 | F21: 0.01520227209 | G21: 0 | H21: 0 | I21: 0.14883216 | J21: 0.1242390417 | K21: 0.08390380614 | L21: 0.07003948924 | M21: 0 | N21: 0
B22: 902 | C22: Retten i Aalborg | D22: Øvrige | E22: 0.925326602 | F22: 0.2240836644 | G22: 0.3420752597 | H22: 0.08283937533 | I22: 1.426451073 | J22: 0.3454395266 | K22: 0.01715358726 | L22: 0.004154034566 | M22: 0.003597515782 | N22: 0.000871199982
B23: 903 | C23: Retten i Randers | D23: Jurister | E23: 4.425973938 | F23: 0.3670987613 | G23: 4.016134127 | H23: 0.3331058618 | I23: 1.431199544 | J23: 0.1187064332 | K23: 1.165049436 | L23: 0.09663143315 | M23: 0.008230463344 | N23: 0.0006826504043
B24: 903 | C24: Retten i Randers | D24: Kontor | E24: 8.01442427 | F24: 0.276579195 | G24: 5.154218737 | H24: 0.1778729976 | I24: 5.844834524 | J24: 0.2017062702 | K24: 5.436153515 | L24: 0.1876026165 | M24: 0.5273983043 | N24: 0.0182006085
B25: 903 | C25: Retten i Randers | D25: Elev | E25: 0.1289951956 | F25: 0.03917302231 | G25: 0.03489438753 | H25: 0.01059666304 | I25: 1.531894891 | J25: 0.4652030062 | K25: 1.343193713 | L25: 0.4078985814 | M25: 0.005433807831 | N25: 0.001650128708
B26: 903 | C26: Retten i Randers | D26: Fleks | E26: 0 | F26: 0 | G26: 0.001304198682 | H26: 0.0009274895335 | I26: 0.2934059154 | J26: 0.2086575606 | K26: 0.1043781155 | L26: 0.07422918835 | M26: 0.0657024978 | N26: 0.0467247666
B27: 903 | C27: Retten i Randers | D27: Øvrige | E27: 0.007505785917 | F27: 0.003786956633 | G27: 0 | H27: 0 | I27: 0.4752557037 | J27: 0.2397847154 | K27: 0 | L27: 0 | M27: 0.0003551166556 | N27: 0.0001791699616
B28: 904 | C28: Retten i Århus | D28: Jurister | E28: 13.73446727 | F28: 0.5621976978 | G28: 6.669473142 | H28: 0.2730038503 | I28: 1.332837547 | J28: 0.05455750018 | K28: 1.704102828 | L28: 0.0697546303 | M28: 0.05049617383 | N28: 0.002066977344
B29: 904 | C29: Retten i Århus | D29: Kontor | E29: 18.98305374 | F29: 0.4084516908 | G29: 7.053363346 | H29: 0.1517647384 | I29: 7.93437644 | J29: 0.1707211873 | K29: 7.389035921 | L29: 0.1589872871 | M29: 1.051546532 | N29: 0.02262575689
B30: 904 | C30: Retten i Århus | D30: Elev | E30: 0.4058071586 | F30: 0.1661278558 | G30: 0.8435661802 | H30: 0.3453360489 | I30: 0.5955425385 | J30: 0.2438010343 | K30: 0.494681592 | L30: 0.2025109476 | M30: 0.01510624718 | N30: 0.006184140424
B31: 904 | C31: Retten i Århus | D31: Fleks | E31: 0.2327876235 | F31: 0.09782965618 | G31: 0.2837033043 | H31: 0.1192271148 | I31: 0.995719156 | J31: 0.4184537873 | K31: 0.005332546585 | L31: 0.002241017762 | M31: 0 | N31: 0
B32: 904 | C32: Retten i Århus | D32: Øvrige | E32: 1.254274248 | F32: 0.2006145473 | G32: 0.04454161079 | H32: 0.007124195604 | I32: 0.3438261477 | J32: 0.05499317799 | K32: 0.2939346578 | L32: 0.04701329745 | M32: 0 | N32: 0
B33: 905 | C33: Retten i Viborg | D33: Jurister | E33: 6.015521817 | F33: 0.4056817369 | G33: 4.33025769 | H33: 0.2920289401 | I33: 1.24018258 | J33: 0.08363687113 | K33: 1.344915818 | L33: 0.09069999269 | M33: 0.02064328894 | N33: 0.001392166061
B34: 905 | C34: Retten i Viborg | D34: Kontor | E34: 7.984682631 | F34: 0.2946213193 | G34: 4.559759479 | H34: 0.1682474327 | I34: 6.35521102 | J34: 0.2344965657 | K34: 3.917684848 | L34: 0.1445559619 | M34: 0.9668647706 | N34: 0.03567567898
B35: 905 | C35: Retten i Viborg | D35: Elev | E35: 1.63295709 | F35: 0.3260345509 | G35: 0.2106833284 | H35: 0.04206481896 | I35: 1.61533177 | J35: 0.3225154976 | K35: 1.38239702 | L35: 0.2760079824 | M35: 0.05025475061 | N35: 0.01003381237
B36: 905 | C36: Retten i Viborg | D36: Fleks | E36: 0.3436658427 | F36: 0.1718277665 | G36: 0.1728207093 | H36: 0.0864077624 | I36: 0.8880586136 | J36: 0.4440159863 | K36: 0 | L36: 0 | M36: 0.189687452 | N36: 0.09484088075
B37: 905 | C37: Retten i Viborg | D37: Øvrige | E37: 0.3724582099 | F37: 0.1218398109 | G37: 0.005662721226 | H37: 0.001852408847 | I37: 0.6567568679 | J37: 0.2148405659 | K37: 0 | L37: 0 | M37: 0 | N37: 0
B38: 906 | C38: Retten i Holstebro | D38: Jurister | E38: 3.142705137 | F38: 0.3918042686 | G38: 2.224123887 | H38: 0.2772838032 | I38: 0.6471023524 | J38: 0.08067491313 | K38: 1.095903554 | L38: 0.1366274187 | M38: 0.01807333006 | N38: 0.002253220572
B39: 906 | C39: Retten i Holstebro | D39: Kontor | E39: 4.899736779 | F39: 0.2488521347 | G39: 3.794500243 | H39: 0.1927184109 | I39: 4.806254557 | J39: 0.2441042775 | K39: 4.569000238 | L39: 0.2320543968 | M39: 0.4610470199 | N39: 0.02341606096
B40: 906 | C40: Retten i Holstebro | D40: Elev | E40: 0.3755763597 | F40: 0.1422454531 | G40: 0.3498505419 | H40: 0.13250208 | I40: 0.9896159366 | J40: 0.3748062509 | K40: 0.6856920571 | L40: 0.2596983938 | M40: 0 | N40: 0
B41: 906 | C41: Retten i Holstebro | D41: Fleks | E41: 0.2685608245 | F41: 0.09114570661 | G41: 0 | H41: 0 | I41: 0.1512886893 | J41: 0.05134521953 | K41: 0.1838056368 | L41: 0.0623810069 | M41: 0.1436560479 | N41: 0.04875481009
B42: 906 | C42: Retten i Holstebro | D42: Øvrige | E42: 0 | F42: 0 | G42: 0 | H42: 0 | I42: 0 | J42: 0 | K42: 0 | L42: 0 | M42: 0.01088084688 | N42: 0.004666466618
B43: 907 | C43: Retten i Herning | D43: Jurister | E43: 5.902493532 | F43: 0.4571479769 | G43: 4.268122695 | H43: 0.3305659963 | I43: 0.6235559778 | J43: 0.04829439493 | K43: 1.665935003 | L43: 0.1290266244 | M43: 0.04555387202 | N43: 0.003528146252
B44: 907 | C44: Retten i Herning | D44: Kontor | E44: 7.612636499 | F44: 0.3473873743 | G44: 2.441898158 | H44: 0.1114311172 | I44: 5.340043405 | J44: 0.2436821537 | K44: 4.024148408 | L44: 0.1836339289 | M44: 0.8414888249 | N44: 0.03839965213
B45: 907 | C45: Retten i Herning | D45: Elev | E45: 1.757135902 | F45: 0.4605196897 | G45: 0.1220460353 | H45: 0.03198648565 | I45: 1.193918798 | J45: 0.3129087022 | K45: 0.5839101945 | L45: 0.1530343448 | M45: 0.02206942534 | N45: 0.005784074468
B46: 907 | C46: Retten i Herning | D46: Fleks | E46: - | F46: - | G46: - | H46: - | I46: - | J46: - | K46: - | L46: - | M46: - | N46: -
B47: 907 | C47: Retten i Herning | D47: Øvrige | E47: 0 | F47: 0 | G47: 0 | H47: 0 | I47: 0 | J47: 0 | K47: 0.001052602375 | L47: 0.0004372162005 | M47: 0 | N47: 0
B48: 908 | C48: Retten i Horsens | D48: Jurister | E48: 4.601134424 | F48: 0.382108004 | G48: 4.118629697 | H48: 0.3420376862 | I48: 0.8562409959 | J48: 0.07110779814 | K48: 1.482658754 | L48: 0.1231295861 | M48: 0.004164689679 | N48: 0.0003458628055
B49: 908 | C49: Retten i Horsens | D49: Kontor | E49: 5.809762744 | F49: 0.2821797769 | G49: 3.533743467 | H49: 0.1716336772 | I49: 3.799286806 | J49: 0.1845310989 | K49: 3.776973152 | L49: 0.1834473262 | M49: 0.6656914681 | N49: 0.03233258882
B50: 908 | C50: Retten i Horsens | D50: Elev | E50: 0.2305435951 | F50: 0.0859272217 | G50: 0.5235301014 | H50: 0.1951278979 | I50: 0.5410826913 | J50: 0.2016700241 | K50: 1.00398984 | L50: 0.3742027945 | M50: 0.0003028127801 | N50: 0.0001128630829
B51: 908 | C51: Retten i Horsens | D51: Fleks | E51: 0.03836426993 | F51: 0.0229222427 | G51: 0.4917429931 | H51: 0.2938112012 | I51: 0.8234309239 | J51: 0.4919912073 | K51: 0.3192927998 | L51: 0.1907740473 | M51: 0.0005703033958 | N51: 0.0003407502051
B52: 908 | C52: Retten i Horsens | D52: Øvrige | E52: 0.6758136236 | F52: 0.1559502722 | G52: 0.0001782135535 | H52: 4.112443314e-05 | I52: 0.7502548777 | J52: 0.1731282832 | K52: 0.2025386736 | L52: 0.04673768058 | M52: 0.2487436855 | N52: 0.05739991634
B53: 909 | C53: Retten i Kolding | D53: Jurister | E53: 7.525227493 | F53: 0.3567227764 | G53: 10.06259681 | H53: 0.4770031835 | I53: 1.128435304 | J53: 0.05349188112 | K53: 1.236368881 | L53: 0.05860831983 | M53: 0.03165813723 | N53: 0.001500709263
B54: 909 | C54: Retten i Kolding | D54: Kontor | E54: 12.12851769 | F54: 0.3063327886 | G54: 7.777541771 | H54: 0.1964391791 | I54: 6.823374789 | J54: 0.172339562 | K54: 6.581094514 | L54: 0.1662202328 | M54: 1.052623887 | N54: 0.02658636603
B55: 909 | C55: Retten i Kolding | D55: Elev | E55: 2.082011609 | F55: 0.5741468808 | G55: 0.3607446322 | H55: 0.09948090797 | I55: 0.8056157963 | J55: 0.2221610074 | K55: 0.3224572831 | L55: 0.08892257971 | M55: 0 | N55: 0
B56: 909 | C56: Retten i Kolding | D56: Fleks | E56: 1.029634711 | F56: 0.3433248677 | G56: 0.09196154079 | H56: 0.03066396604 | I56: 0.9550264305 | J56: 0.3184472311 | K56: 0 | L56: 0 | M56: 0 | N56: 0
B57: 909 | C57: Retten i Kolding | D57: Øvrige | E57: 0.08061068652 | F57: 0.02775936118 | G57: 0.004417762221 | H57: 0.001521315131 | I57: 0.2865165749 | J57: 0.09866579022 | K57: 0 | L57: 0 | M57: 0.0581918315 | N57: 0.02003913052
B58: 910 | C58: Retten i Esbjerg | D58: Jurister | E58: 8.229082928 | F58: 0.548221408 | G58: 3.823617709 | H58: 0.2547293669 | I58: 0.8381689836 | J58: 0.05583880785 | K58: 1.041436376 | L58: 0.06938047914 | M58: 0.0600035002 | N58: 0.003997432479
B59: 910 | C59: Retten i Esbjerg | D59: Kontor | E59: 6.214248424 | F59: 0.2372467204 | G59: 3.360673042 | H59: 0.1283033125 | I59: 7.169676221 | J59: 0.2737229112 | K59: 6.068100485 | L59: 0.2316671045 | M59: 0.7822896302 | N59: 0.02986614575
B60: 910 | C60: Retten i Esbjerg | D60: Elev | E60: 0.4179087759 | F60: 0.3176153704 | G60: 0.1438100289 | H60: 0.1092972396 | I60: 0.5787384012 | J60: 0.4398476946 | K60: 0.1719933457 | L60: 0.1307168773 | M60: 0 | N60: 0
B61: 910 | C61: Retten i Esbjerg | D61: Fleks | E61: 0 | F61: 0 | G61: 0 | H61: 0 | I61: 0 | J61: 0 | K61: 0.7790092861 | L61: 0.9967363812 | M61: 0.002550713928 | N61: 0.003263618824
B62: 910 | C62: Retten i Esbjerg | D62: Øvrige | E62: 0.1429824352 | F62: 0.03156540254 | G62: 0.01401419755 | H62: 0.003093833073 | I62: 0.120779626 | J62: 0.02666381719 | K62: 0.1396150898 | L62: 0.03082201325 | M62: 0.0001812407601 | N62: 4.001147093e-05
B63: 911 | C63: Retten i Sønderborg | D63: Jurister | E63: 6.077131019 | F63: 0.3876230563 | G63: 5.901560672 | H63: 0.3764244966 | I63: 1.199260392 | J63: 0.07649349289 | K63: 1.075954805 | L63: 0.06862858291 | M63: 0.0379098784 | N63: 0.002418039513
B64: 911 | C64: Retten i Sønderborg | D64: Kontor | E64: 9.00083902 | F64: 0.2587423483 | G64: 6.480377776 | H64: 0.1862879849 | I64: 7.704423687 | J64: 0.2214749839 | K64: 6.645297032 | L64: 0.1910288313 | M64: 1.351368433 | N64: 0.03884707202
B65: 911 | C65: Retten i Sønderborg | D65: Elev | E65: 0.4479662464 | F65: 0.2201524702 | G65: 0.1773835603 | H65: 0.08717493625 | I65: 1.026895476 | J65: 0.50466654 | K65: 0.2636620707 | L65: 0.1295764059 | M65: 0.0004487564775 | N65: 0.0002205408283
B66: 911 | C66: Retten i Sønderborg | D66: Fleks | E66: 0 | F66: 0 | G66: 0 | H66: 0 | I66: 0 | J66: 0 | K66: 0.119105127 | L66: 0.09908829961 | M66: 0 | N66: 0
B67: 911 | C67: Retten i Sønderborg | D67: Øvrige | E67: 0.05200136909 | F67: 0.01399040851 | G67: 0.04303369559 | H67: 0.0115777525 | I67: 0.314784316 | J67: 0.08468933125 | K67: 0.03922659739 | L67: 0.01055349372 | M67: 0.05153438961 | N67: 0.0138647727
B68: 912 | C68: Retten i Odense | D68: Jurister | E68: 9.160482717 | F68: 0.4407884268 | G68: 6.233706906 | H68: 0.2999564483 | I68: 2.303032927 | J68: 0.1108184243 | K68: 2.158145861 | L68: 0.1038466802 | M68: 0.07071729937 | N68: 0.003402808356
B69: 912 | C69: Retten i Odense | D69: Kontor | E69: 13.38258915 | F69: 0.3079054299 | G69: 5.117200018 | H69: 0.1177360863 | I69: 9.379824246 | J69: 0.2158101683 | K69: 11.29469003 | L69: 0.2598672312 | M69: 0.8053435241 | N69: 0.01852927272
B70: 912 | C70: Retten i Odense | D70: Elev | E70: 1.806368775 | F70: 0.4515741308 | G70: 0.1704883414 | H70: 0.04262038053 | I70: 0.6515732287 | J70: 0.1628867917 | K70: 1.321736717 | L70: 0.3304209625 | M70: 0.001617010346 | N70: 0.000404236417
B71: 912 | C71: Retten i Odense | D71: Fleks | E71: 0.2904633751 | F71: 0.3528338072 | G71: 0 | H71: 0 | I71: 0.3471312822 | J71: 0.421669864 | K71: 0 | L71: 0 | M71: 0 | N71: 0
B72: 912 | C72: Retten i Odense | D72: Øvrige | E72: 0.008548166845 | F72: 0.001689384407 | G72: 0 | H72: 0 | I72: 0 | J72: 0 | K72: 0 | L72: 0 | M72: 0 | N72: 0
B73: 913 | C73: Retten i Svendborg | D73: Jurister | E73: 4.18582215 | F73: 0.3765271451 | G73: 4.508702696 | H73: 0.40557121 | I73: 0.8290349933 | J73: 0.07457416203 | K73: 0.8483178297 | L73: 0.07630871048 | M73: 0.007695827963 | N73: 0.0006922626018
B74: 913 | C74: Retten i Svendborg | D74: Kontor | E74: 5.81295483 | F74: 0.2777440315 | G74: 3.720132408 | H74: 0.1777485983 | I74: 5.022485878 | J74: 0.2399752822 | K74: 3.928338137 | L74: 0.1876967056 | M74: 0.04265491275 | N74: 0.002038059434
B75: 913 | C75: Retten i Svendborg | D75: Elev | E75: 0.2971744516 | F75: 0.1485827683 | G75: 0.2285076223 | H75: 0.1142503836 | I75: 0.06863084568 | J75: 0.03431439341 | K75: 0.7110687346 | L75: 0.3555237016 | M75: 0 | N75: 0
B76: 913 | C76: Retten i Svendborg | D76: Fleks | E76: 0.1214795921 | F76: 0.1214759479 | G76: 0.0004146061728 | H76: 0.000414593735 | I76: 0.001243818519 | J76: 0.001243781206 | K76: 0.07932797062 | L76: 0.07932559085 | M76: 0.3258804255 | N76: 0.3258706494
B77: 913 | C77: Retten i Svendborg | D77: Øvrige | E77: 0.3040965605 | F77: 0.07229171869 | G77: 0.03097592292 | H77: 0.007363788339 | I77: 0.2624319253 | J77: 0.06238694344 | K77: 0.05188895561 | L77: 0.01233536406 | M77: 0.3479236143 | N77: 0.0827105575
B78: 914 | C78: Retten i Nykøbing F. | D78: Jurister | E78: 5.697622436 | F78: 0.4321661573 | G78: 3.652101274 | H78: 0.2770128402 | I78: 1.389745791 | J78: 0.105412583 | K78: 1.460456826 | L78: 0.1107760336 | M78: 0 | N78: 0
B79: 914 | C79: Retten i Nykøbing F. | D79: Kontor | E79: 8.275054652 | F79: 0.2673180457 | G79: 4.639422702 | H79: 0.1498722923 | I79: 7.707312046 | J79: 0.2489776419 | K79: 5.008507283 | L79: 0.161795231 | M79: 0.5587561212 | N79: 0.01805010367
B80: 914 | C80: Retten i Nykøbing F. | D80: Elev | E80: 0.256751503 | F80: 0.1283706167 | G80: 0.2290526537 | H80: 0.114521746 | I80: 0.4509396732 | J80: 0.2254608181 | K80: 0.776610137 | L80: 0.3882895369 | M80: 0.001187312601 | N80: 0.000593632555
B81: 914 | C81: Retten i Nykøbing F. | D81: Fleks | E81: 0 | F81: 0 | G81: 0 | H81: 0 | I81: 0 | J81: 0 | K81: 0 | L81: 0 | M81: 0 | N81: 0
B82: 914 | C82: Retten i Nykøbing F. | D82: Øvrige | E82: 0.1985578113 | F82: 0.05860481785 | G82: 0 | H82: 0 | I82: 0.2504717967 | J82: 0.0739273561 | K82: 0 | L82: 0 | M82: 0.05641151425 | N82: 0.01664999476
B83: 915 | C83: Retten i Næstved | D83: Jurister | E83: 8.59959572 | F83: 0.4755884838 | G83: 5.386405543 | H83: 0.2978875437 | I83: 1.445636839 | J83: 0.07994890166 | K83: 1.448625257 | L83: 0.08011417187 | M83: 0.03015415789 | N83: 0.001667633072
B84: 915 | C84: Retten i Næstved | D84: Kontor | E84: 10.93203346 | F84: 0.2820042635 | G84: 5.454294287 | H84: 0.140699738 | I84: 9.559566515 | J84: 0.2465999144 | K84: 6.516367244 | L84: 0.1680971205 | M84: 0.6248968235 | N84: 0.01611992583
B85: 915 | C85: Retten i Næstved | D85: Elev | E85: 0.5195613964 | F85: 0.2370835085 | G85: 0.4653243532 | H85: 0.2123343478 | I85: 0.6180733281 | J85: 0.2820359522 | K85: 0.1260522035 | L85: 0.05751947481 | M85: 0.005805713376 | N85: 0.002649232422
B86: 915 | C86: Retten i Næstved | D86: Fleks | E86: 0.2633798956 | F86: 0.10559906 | G86: 0 | H86: 0 | I86: 0.4476544605 | J86: 0.1794817715 | K86: 0 | L86: 0 | M86: 0.7333993362 | N86: 0.2940478064
B87: 915 | C87: Retten i Næstved | D87: Øvrige | E87: 0.2235002191 | F87: 0.06035196342 | G87: 0.004989073719 | H87: 0.001347204024 | I87: 0.004892167829 | J87: 0.00132103644 | K87: 0 | L87: 0 | M87: 0.03313664078 | N87: 0.008947916653
B88: 916 | C88: Retten i Holbæk | D88: Jurister | E88: 4.886306112 | F88: 0.4323166165 | G88: 3.484140263 | H88: 0.3082597969 | I88: 0.9766900436 | J88: 0.08641278816 | K88: 1.165463098 | L88: 0.1031145105 | M88: 0.009108152614 | N88: 0.000805845076
B89: 916 | C89: Retten i Holbæk | D89: Kontor | E89: 5.206302587 | F89: 0.222930088 | G89: 3.132653742 | H89: 0.1341379535 | I89: 6.473479542 | J89: 0.277189683 | K89: 5.73516525 | L89: 0.2455756023 | M89: 0.5744414132 | N89: 0.02459716327
B90: 916 | C90: Retten i Holbæk | D90: Elev | E90: 0.4521904855 | F90: 0.1709785858 | G90: 0.2227677383 | H90: 0.084231124 | I90: 1.151261384 | J90: 0.4353055838 | K90: 0.7340019547 | L90: 0.2775348448 | M90: 0.001943598127 | N90: 0.0007348975043
B91: 916 | C91: Retten i Holbæk | D91: Fleks | E91: 1.000036387 | F91: 0.4540522171 | G91: 1.000036387 | H91: 0.4540522171 | I91: 0.1182346457 | J91: 0.0536827497 | K91: 0 | L91: 0 | M91: 0 | N91: 0
B92: 916 | C92: Retten i Holbæk | D92: Øvrige | E92: 0.09998691597 | F92: 0.03409055499 | G92: 0.03237215891 | H92: 0.01103729276 | I92: 0.2768445784 | J92: 0.09439020329 | K92: 0.1020304108 | L92: 0.03478728486 | M92: 0.04441636788 | N92: 0.01514376773
B93: 917 | C93: Retten i Roskilde | D93: Jurister | E93: 8.483341111 | F93: 0.4724552938 | G93: 5.37630963 | H93: 0.2994181081 | I93: 0.9507677586 | J93: 0.05295027688 | K93: 1.852647745 | L93: 0.1031778898 | M93: 0.002146468482 | N93: 0.000119541391
B94: 917 | C94: Retten i Roskilde | D94: Kontor | E94: 10.60853683 | F94: 0.265870653 | G94: 6.681838437 | H94: 0.1674599218 | I94: 7.952087846 | J94: 0.199294853 | K94: 7.135353947 | L94: 0.1788259063 | M94: 0.8099930785 | N94: 0.02030000858
B95: 917 | C95: Retten i Roskilde | D95: Elev | E95: 0.8493648684 | F95: 0.231636541 | G95: 0.859550307 | H95: 0.2344142868 | I95: 0.832518233 | J95: 0.2270421711 | K95: 1.113639438 | L95: 0.3037088028 | M95: 0.01172715348 | N95: 0.003198198288
B96: 917 | C96: Retten i Roskilde | D96: Fleks | E96: 0 | F96: 0 | G96: 0 | H96: 0 | I96: 0 | J96: 0 | K96: 0 | L96: 0 | M96: 0 | N96: 0
B97: 917 | C97: Retten i Roskilde | D97: Øvrige | E97: 0 | F97: 0 | G97: 0 | H97: 0 | I97: 0 | J97: 0 | K97: 0 | L97: 0 | M97: 0 | N97: 0
B98: 918 | C98: Retten i Hillerød | D98: Jurister | E98: 4.169214592 | F98: 0.3201559301 | G98: 6.053799515 | H98: 0.464874084 | I98: 0.8261987368 | J98: 0.06344418575 | K98: 1.24372047 | L98: 0.09550587408 | M98: 0.005271436858 | N98: 0.0004047960912
B99: 918 | C99: Retten i Hillerød | D99: Kontor | E99: 5.152431452 | F99: 0.2292309728 | G99: 5.002050747 | H99: 0.2225405557 | I99: 4.359844561 | J99: 0.1939688901 | K99: 4.587811455 | L99: 0.2041111061 | M99: 0.5772627935 | N99: 0.02568234298
B100: 918 | C100: Retten i Hillerød | D100: Elev | E100: 1.167593042 | F100: 0.3282235852 | G100: 0.1758928896 | H100: 0.04944547694 | I100: 0.2214050248 | J100: 0.06223945194 | K100: 1.147497955 | L100: 0.3225746295 | M100: 0.003372186751 | N100: 0.0009479597649
B101: 918 | C101: Retten i Hillerød | D101: Fleks | E101: 0.1513298411 | F101: 0.05664220305 | G101: 0.003576544638 | H101: 0.001338687507 | I101: 1.410770614 | J101: 0.5280462531 | K101: 0 | L101: 0 | M101: 0.1460737529 | N101: 0.05467486858
B102: 918 | C102: Retten i Hillerød | D102: Øvrige | E102: 1.465089571 | F102: 0.3644564883 | G102: 0.1275818127 | H102: 0.03173732196 | I102: 0.0330481808 | J102: 0.008221083651 | K102: 0.1793040052 | L102: 0.04460376306 | M102: 0.253436694 | N102: 0.06304505153
B103: 919 | C103: Retten i Helsingør | D103: Jurister | E103: 4.519950141 | F103: 0.3581622383 | G103: 4.877177036 | H103: 0.3864690072 | I103: 1.087613456 | J103: 0.08618282452 | K103: 1.242835469 | L103: 0.09848266449 | M103: 0.002618441924 | N103: 0.0002074861428
B104: 919 | C104: Retten i Helsingør | D104: Kontor | E104: 4.708026177 | F104: 0.2065886936 | G104: 3.669310024 | H104: 0.1610097174 | I104: 6.415222318 | J104: 0.2815006434 | K104: 5.487386346 | L104: 0.2407871014 | M104: 0.2468679332 | N104: 0.01083259139
B105: 919 | C105: Retten i Helsingør | D105: Elev | E105: 0.5086188605 | F105: 0.2543018012 | G105: 0.01737855486 | H105: 0.008689016759 | I105: 0.5827515296 | J105: 0.2913670238 | K105: 0.8907339074 | L105: 0.4453535931 | M105: 0.0005771475869 | N105: 0.0002885651365
B106: 919 | C106: Retten i Helsingør | D106: Fleks | E106: 0.5149514149 | F106: 0.1701098435 | G106: 0.04021748906 | H106: 0.01328550728 | I106: 0.2012545485 | J106: 0.0664827375 | K106: 0.1114403287 | L106: 0.03681336982 | M106: 0.3850694133 | N106: 0.127204423
B107: 919 | C107: Retten i Helsingør | D107: Øvrige | E107: 0 | F107: 0 | G107: 0 | H107: 0 | I107: 0 | J107: 0 | K107: 0 | L107: 0 | M107: 0 | N107: 0
B108: 920 | C108: Retten i Lyngby | D108: Jurister | E108: 3.932311457 | F108: 0.2691161315 | G108: 8.529929133 | H108: 0.5837639147 | I108: 0.5008119534 | J108: 0.03427413544 | K108: 0.8846359085 | L108: 0.06054194741 | M108: 0.001615584416 | N108: 0.0001105659694
B109: 920 | C109: Retten i Lyngby | D109: Kontor | E109: 5.066778879 | F109: 0.1988473212 | G109: 5.440976524 | H109: 0.2135328247 | I109: 3.688571359 | J109: 0.1447591362 | K109: 6.20489156 | L109: 0.2435129091 | M109: 1.589246685 | N109: 0.062370483
B110: 920 | C110: Retten i Lyngby | D110: Elev | E110: 0.704345519 | F110: 0.2224127266 | G110: 0.2021721659 | H110: 0.06384034743 | I110: 0.4999537121 | J110: 0.1578714782 | K110: 0.2314184103 | L110: 0.07307549807 | M110: 0.02032407445 | N110: 0.006417777486
B111: 920 | C111: Retten i Lyngby | D111: Fleks | E111: 0.00306478785 | F111: 0.003653515307 | G111: 0 | H111: 0 | I111: 0.6761305177 | J111: 0.8060111552 | K111: 0 | L111: 0 | M111: 0.08454819569 | N111: 0.1007893995
B112: 920 | C112: Retten i Lyngby | D112: Øvrige | E112: 0.07153393673 | F112: 0.02799576417 | G112: 0.08975380906 | H112: 0.03512635522 | I112: 0 | J112: 0 | K112: 0.09232767914 | L112: 0.03613367375 | M112: 0 | N112: 0
B113: 921 | C113: Retten i Glostrup | D113: Jurister | E113: 13.70132736 | F113: 0.4260487515 | G113: 11.07571994 | H113: 0.3444043432 | I113: 3.039735227 | J113: 0.09452189297 | K113: 1.41108689 | L113: 0.04387836242 | M113: 0.02305405382 | N113: 0.0007168758608
B114: 921 | C114: Retten i Glostrup | D114: Kontor | E114: 16.92084811 | F114: 0.3029385556 | G114: 9.257974387 | H114: 0.1657480388 | I114: 16.0092362 | J114: 0.2866177192 | K114: 6.546713761 | L114: 0.1172076008 | M114: 0.4338438109 | N114: 0.007767223994
B115: 921 | C115: Retten i Glostrup | D115: Elev | E115: 0.6608697115 | F115: 0.2070309516 | G115: 0.5411328305 | H115: 0.1695209251 | I115: 0.7131551347 | J115: 0.2234104296 | K115: 0.9144571911 | L115: 0.2864724153 | M115: 0.004157776111 | N115: 0.001302508391
B116: 921 | C116: Retten i Glostrup | D116: Fleks | E116: 0.9304554787 | F116: 0.260091205 | G116: 0.001559529412 | H116: 0.0004359369077 | I116: 1.027542143 | J116: 0.2872299431 | K116: 0.8540604005 | L116: 0.2387364079 | M116: 0 | N116: 0
B117: 921 | C117: Retten i Glostrup | D117: Øvrige | E117: 0.6768528539 | F117: 0.09419258624 | G117: 0.04704066172 | H117: 0.006546299628 | I117: 0.1016960483 | J117: 0.01415228398 | K117: 0.1998231354 | L117: 0.02780790213 | M117: 0.2444664098 | N117: 0.03402057516
B118: 922 | C118: Retten på Frederiksberg | D118: Jurister | E118: 12.35332014 | F118: 0.4955256292 | G118: 9.743726932 | H118: 0.3908476719 | I118: 1.338514734 | J118: 0.05369150546 | K118: 0.7586490376 | L118: 0.03043149836 | M118: 0 | N118: 0
B119: 922 | C119: Retten på Frederiksberg | D119: Kontor | E119: 13.05683621 | F119: 0.2863566717 | G119: 9.78196417 | H119: 0.2145336479 | I119: 10.88315579 | J119: 0.2386844883 | K119: 6.783981876 | L119: 0.1487832458 | M119: 0.2254344965 | N119: 0.004944128199
B120: 922 | C120: Retten på Frederiksberg | D120: Elev | E120: 0.671393537 | F120: 0.2539915097 | G120: 0.4685999588 | H120: 0.1772736918 | I120: 0.3166527667 | J120: 0.1197913144 | K120: 0.8755920941 | L120: 0.3312408381 | M120: 0 | N120: 0
B121: 922 | C121: Retten på Frederiksberg | D121: Fleks | E121: 0.05311101799 | F121: 0.01127335243 | G121: 1.915832361 | H121: 0.4066548567 | I121: 1.081351099 | J121: 0.2295277423 | K121: 0.137349611 | L121: 0.02915384849 | M121: 0.2077649978 | N121: 0.04410022877
B122: 922 | C122: Retten på Frederiksberg | D122: Øvrige | E122: 0.4295479035 | F122: 0.07597749822 | G122: 0 | H122: 0 | I122: 0.1974018672 | J122: 0.0349160126 | K122: 0.2923728445 | L122: 0.05171427236 | M122: 0.03562200984 | N122: 0.006300743566
B123: 923 | C123: Københavns Byret | D123: Jurister | E123: 28.90032265 | F123: 0.4849127972 | G123: 21.43205132 | H123: 0.3596041498 | I123: 2.744084198 | J123: 0.04604244598 | K123: 1.996033233 | L123: 0.0334910468 | M123: 0.01716402976 | N123: 0.0002879918603
B124: 923 | C124: Københavns Byret | D124: Kontor | E124: 44.96959901 | F124: 0.3961902231 | G124: 22.75992369 | H124: 0.2005190049 | I124: 16.12414647 | J124: 0.1420566189 | K124: 8.902111802 | L124: 0.0784291997 | M124: 4.258648928 | N124: 0.03751945995
B125: 923 | C125: Københavns Byret | D125: Elev | E125: 2.061128365 | F125: 0.3473632316 | G125: 1.306176845 | H125: 0.2201307874 | I125: 1.942527177 | J125: 0.3273753004 | K125: 0.4898816001 | L125: 0.08256004747 | M125: 0.02867071085 | N125: 0.004831892539
B126: 923 | C126: Københavns Byret | D126: Fleks | E126: 0 | F126: 0 | G126: 0 | H126: 0 | I126: 0 | J126: 0 | K126: 0 | L126: 0 | M126: 0 | N126: 0
B127: 923 | C127: Københavns Byret | D127: Øvrige | E127: 3.685054923 | F127: 0.3517727194 | G127: 1.256079738 | H127: 0.1199044775 | I127: 0.2453803964 | J127: 0.02342383794 | K127: 0 | L127: 0 | M127: 0.04187931987 | N127: 0.003997770059
B128: 924 | C128: Retten på Bornholm | D128: Jurister | E128: 0.7022563336 | F128: 0.2567401997 | G128: 0.6159862262 | H128: 0.2252004278 | I128: 0.6238622394 | J128: 0.2280798454 | K128: 0.2270025442 | L128: 0.08299060579 | M128: 0.01570188397 | N128: 0.005740503336
B129: 924 | C129: Retten på Bornholm | D129: Kontor | E129: 1.446873479 | F129: 0.2203191753 | G129: 0.7684067974 | H129: 0.117007295 | I129: 1.036572508 | J129: 0.1578415829 | K129: 1.621954692 | L129: 0.2469792455 | M129: 0.1378548142 | N129: 0.02099150992
B130: 924 | C130: Retten på Bornholm | D130: Elev | E130: 0.1955548418 | F130: 0.2383797669 | G130: 0.06723041898 | H130: 0.08195333575 | I130: 0 | J130: 0 | K130: 0.469416525 | L130: 0.5722149388 | M130: 0.00192968759 | N130: 0.00235227353
B131: 924 | C131: Retten på Bornholm | D131: Fleks | E131: 0 | F131: 0 | G131: 0 | H131: 0 | I131: 0 | J131: 0 | K131: 0.0003693916256 | L131: 0.0195652344 | M131: 0 | N131: 0
B132: 924 | C132: Retten på Bornholm | D132: Øvrige | E132: 0.05357938894 | F132: 0.04418007746 | G132: 0 | H132: 0 | I132: 0 | J132: 0 | K132: 0 | L132: 0 | M132: 0 | N132: 0
B134: 1) Procenten er beregnet i forhold til det samlede årsværksforbrug ved retten inkl. generel ledelse og administration, hvorfor der ikke kan summes op til 100 % for den enkelte ret.
B135: 2) Ansatte under socialt kapitel (fleksjobbere mv.) uden tidsfordeling indgår ikke i denne opgørelse.
B136: 3) Det opgjorte årsværksforbrug er inkl. de korrektioner, der foretages som led i produktivitetsberegningen.

Sheet Dataark til 901-924 (hidden)
B11: Samlet produktivitet, retten | D11: Samlet produktivitet, jurister | F11: Samlet produktivitet, kontor | H11: ÅRVK ledelse og adm. | J11: Sagstider domsmandssager | L11: Sagstider hfh. alm. Civil | N11: Sagstid alm. fogedsag | P11: Målopfyldelse vold | R11: Målopfyldelse voldtægt | T11: Sygefravær | V11: Personaleomsætning | X11: Årsværk retten | Z11: Årsværk jurist | AB11: Årsværk kontor | AD11: Samlet lønsum
A12: Ret | B12: 2013 | C12: 2014 | D12: 2013 | E12: 2014 | F12: 2013 | G12: 2014 | H12: 2013 | I12: 2014 | J12: 2013 | K12: 2014 | L12: 2013 | M12: 2014 | N12: 2013 | O12: 2014 | P12: 2013 | Q12: 2014 | R12: 2013 | S12: 2014 | T12: 2013 | U12: 2014 | V12: 2013 | W12: 2014 | X12: 2013 | Y12: 2014 | Z12: 2013 | AA12: 2014 | AB12: 2013 | AC12: 2014 | AD12: 2013 | AE12: 2014
A13: Retten i Hjørring | B13: 102.9146793 | C13: 103.5231212 | D13: 101.4346809 | E13: 100.759754 | F13: 103.2149744 | G13: 103.3974315 | H13: 0.1868261939 | I13: 0.1665256771 | J13: 96 | K13: 95 | L13: 631.7745665 | M13: 525.5742574 | N13: 49.86269469 | O13: 49.91041129 | P13: 64 | Q13: 56.25 | R13: 75 | S13: 33.33333333 | T13: 5.7 | U13: 8.9 | V13: 12.7 | W13: 5.7 | X13: 53.476 | Y13: 50.05401 | Z13: 14.51677 | AA13: 13.73052 | AB13: 29.3254 | AC13: 28.51714 | AD13: 25.23077424 | AE13: 23.90913679 | AF13: Retten i Hjørring
A14: Retten i Aalborg | B14: 98.62855147 | C14: 96.6556053 | D14: 98.45801217 | E14: 89.37239006 | F14: 98.27397591 | G14: 106.1063077 | H14: 0.1339181623 | I14: 0.1197207669 | J14: 106 | K14: 114 | L14: 593.4757282 | M14: 527.4122807 | N14: 41.55710276 | O14: 43.94413408 | P14: 33.89830508 | Q14: 54.28571429 | R14: 60 | S14: 100 | T14: 5.1 | U14: 7.5 | V14: 12 | W14: 14.9 | X14: 75.60557 | Y14: 74.76297 | Z14: 20.77576 | AA14: 23.25516 | AB14: 43.97071 | AC14: 40.42406 | AD14: 36.32284163 | AE14: 36.63402749 | AF14: Retten i Aalborg
A15: Retten i Randers | B15: 97.0241151 | C15: 103.339095 | D15: 91.55018696 | E15: 96.00976208 | F15: 105.3368061 | G15: 117.9593277 | H15: 0.1980503732 | I15: 0.2099300769 | J15: 151 | K15: 124 | L15: 622.7865854 | M15: 555.5109489 | N15: 47.72560892 | O15: 58.37249399 | P15: 40 | Q15: 47.72727273 | R15: 0 | S15: 66.66666667 | T15: 6.9 | U15: 8.2 | V15: 10.8 | W15: 16.8 | X15: 51.35568 | Y15: 51.06822 | Z15: 14.54448 | AA15: 14.54934 | AB15: 28.09834 | AC15: 26.15055 | AD15: 26.74664964 | AE15: 25.62575263 | AF15: Retten i Randers
A16: Retten i Århus | B16: 98.14882931 | C16: 96.18247078 | D16: 94.28098483 | E16: 89.7982108 | F16: 104.1593869 | G16: 109.6431052 | H16: 0.1656399121 | I16: 0.1516882453 | J16: 140 | K16: 139 | L16: 494.8684211 | M16: 483.0638298 | N16: 56.95581015 | O16: 59.21347896 | P16: 38.46153846 | Q16: 27.08333333 | R16: 100 | S16: 14.28571429 | T16: 10.8 | U16: 9.6 | V16: 11.6 | W16: 13.7 | X16: 83.99051 | Y16: 81.20104 | Z16: 25.22725 | AA16: 25.26038 | AB16: 45.35235 | AC16: 41.33383 | AD16: 41.02113215 | AE16: 40.6273674 | AF16: Retten i Århus
A17: Retten i Viborg | B17: 97.24417792 | C17: 96.93034019 | D17: 92.31263346 | E17: 86.7549527 | F17: 105.8387295 | G17: 111.2954665 | H17: 0.1831987808 | I17: 0.1776954429 | J17: 108 | K17: 128 | L17: 534.7073171 | M17: 519.2689655 | N17: 47.35630204 | O17: 51.79351254 | P17: 67.74193548 | Q17: 62.16216216 | R17: 0 | S17: 100 | T17: 4.7 | U17: 5.9 | V17: 16.2 | W17: 19.2 | X17: 53.08464 | Y17: 52.03653 | Z17: 15.00269 | AA17: 15.44982 | AB17: 28.03999 | AC17: 26.36467 | AD17: 25.88336059 | AE17: 24.61018693 | AF17: Retten i Viborg
A18: Retten i Holstebro | B18: 103.5572491 | C18: 100.812459 | D18: 103.5300145 | E18: 99.45621923 | F18: 106.9435187 | G18: 105.1031682 | H18: 0.2155162205 | I18: 0.2143408913 | J18: 86 | K18: 84 | L18: 475.9032258 | M18: 413.4242424 | N18: 32.54022491 | O18: 34.27151899 | P18: 72.72727273 | Q18: 71.42857143 | R18: 100 | S18: 50 | T18: 5 | U18: 7.3 | V18: 16.2 | W18: 14.1 | X18: 38.40156 | Y18: 37.12805 | Z18: 9.67165 | AA18: 9.58671 | AB18: 20.53304 | AC18: 20.18777 | AD18: 19.40336905 | AE18: 19.09541128 | AF18: Retten i Holstebro
A19: Retten i Herning | B19: 92.5848018 | C19: 99.65816242 | D19: 82.04356593 | E19: 89.417041 | F19: 104.7436876 | G19: 111.3990738 | H19: 0.1955231872 | I19: 0.1893007858 | J19: 94 | K19: 91 | L19: 433.9708738 | M19: 520.7297297 | N19: 46.84155791 | O19: 46.73239437 | P19: 52.63157895 | Q19: 76.92307692 | R19: 16.66666667 | S19: 66.66666667 | T19: 8.6 | U19: 5.7 | V19: 15.3 | W19: 15.6 | X19: 38.76992 | Y19: 37.47035 | Z19: 11.84085 | AA19: 11.39788 | AB19: 20.75833 | AC19: 20.21608 | AD19: 20.02559767 | AE19: 19.00288448 | AF19: Retten i Herning
A20: Retten i Horsens | B20: 96.30874721 | C20: 89.74637006 | D20: 90.97352822 | E20: 80.99846156 | F20: 103.1020684 | G20: 100.8419553 | H20: 0.1979407442 | I20: 0.1918271636 | J20: 96 | K20: 111 | L20: 418 | M20: 434.1073826 | N20: 49.71742972 | O20: 46.29432687 | P20: 47.05882353 | Q20: 40 | R20: 0 | S20: 50 | T20: 5.3 | U20: 7.7 | V20: 13.3 | W20: 15.7 | X20: 49.88988 | Y20: 48.3814 | Z20: 14.06581 | AA20: 14.3927 | AB20: 25.31688 | AC20: 24.3045 | AD20: 24.53226103 | AE20: 24.09609649 | AF20: Retten i Horsens
A21: Retten i Kolding | B21: 103.4065127 | C21: 102.7438446 | D21: 93.44213967 | E21: 95.50833868 | F21: 112.1976912 | G21: 109.1412959 | H21: 0.1814648532 | I21: 0.1734292531 | J21: 105 | K21: 99 | L21: 510.0465116 | M21: 480.371134 | N21: 46.31372549 | O21: 52.97362322 | P21: 61.2244898 | Q21: 60 | R21: 100 | S21: 75 | T21: 11.7 | U21: 15.9 | V21: 6.6 | W21: 15.3 | X21: 67.53552 | Y21: 66.6538 | Z21: 21.33572 | AA21: 19.78779 | AB21: 37.2161 | AC21: 36.96165 | AD21: 35.21200134 | AE21: 33.98298785 | AF21: Retten i Kolding
A22: Retten i Esbjerg | B22: 99.69839621 | C22: 96.95557776 | D22: 95.03327915 | E22: 90.16354519 | F22: 101.4630039 | G22: 101.1639788 | H22: 0.1544399994 | I22: 0.1449473346 | J22: 143 | K22: 133 | L22: 631.4972067 | M22: 627.1860465 | N22: 58.91485835 | O22: 42.71642026 | P22: 30.86419753 | Q22: 40 | R22: 0 | S22: 0 | T22: 10.3 | U22: 8.5 | V22: 15 | W22: 15.2 | X22: 54.27444 | Y22: 51.83652 | Z22: 14.92874 | AA22: 14.62602 | AB22: 29.74744 | AC22: 27.96305 | AD22: 26.28483427 | AE22: 25.05472688 | AF22: Retten i Esbjerg
A23: Retten i Sønderborg | B23: 103.0055282 | C23: 106.4151909 | D23: 98.84884045 | E23: 103.7144091 | F23: 105.9415153 | G23: 108.6960709 | H23: 0.1968216784 | I23: 0.2000639601 | J23: 77 | K23: 81 | L23: 588.0246914 | M23: 405.7076923 | N23: 52.85101266 | O23: 51.7282204 | P23: 75.67567568 | Q23: 63.82978723 | R23: 100 | S23: - | T23: 7 | U23: 6.2 | V23: 10.2 | W23: 10.3 | X23: 58.41784 | Y23: 55.80884 | Z23: 17.36145 | AA23: 15.55415 | AB23: 33.50583 | AC23: 32.17316 | AD23: 32.07104816 | AE23: 30.87363142 | AF23: Retten i Sønderborg
A24: Retten i Odense | B24: 108.3800934 | C24: 96.5395286 | D24: 106.2807687 | E24: 89.58908157 | F24: 110.9626462 | G24: 104.5850874 | H24: 0.1610274217 | I24: 0.1668205188 | J24: 97 | K24: 92 | L24: 460.0165746 | M24: 410.88 | N24: 50.36748596 | O24: 60.92986425 | P24: 51.11111111 | Q24: 45.71428571 | R24: 40 | S24: 30.76923077 | T24: 7.7 | U24: 9.5 | V24: 8.3 | W24: 7.9 | X24: 77.86296 | Y24: 77.07732 | Z24: 21.81471 | AA24: 23.71285 | AB24: 45.22965 | AC24: 43.9482 | AD24: 38.81514503 | AE24: 38.61886183 | AF24: Retten i Odense
A25: Retten i Svendborg | B25: 98.99112703 | C25: 99.80214422 | D25: 96.48288534 | E25: 95.62400779 | F25: 103.5551398 | G25: 107.9791467 | H25: 0.1662743921 | I25: 0.1705922523 | J25: 105 | K25: 122 | L25: 479.2658228 | M25: 477.09375 | N25: 47.2630719 | O25: 56.18881119 | P25: 56.60377358 | Q25: 51.28205128 | R25: 40 | S25: 0 | T25: 14.2 | U25: 7.4 | V25: 17.7 | W25: 14.5 | X25: 36.96098 | Y25: 36.62017 | Z25: 10.30021 | AA25: 10.27236 | AB25: 21.70681 | AC25: 20.21508 | AD25: 19.70705955 | AE25: 18.51114105 | AF25: Retten i Svendborg
A26: Retten i Nykøbing F. | B26: 101.1958707 | C26: 99.31443827 | D26: 103.2506045 | E26: 101.3997252 | F26: 99.98645671 | G26: 96.93095285 | H26: 0.2136326657 | I26: 0.1807260383 | J26: 94 | K26: 80 | L26: 390.2222222 | M26: 382.2692308 | N26: 51.22872467 | O26: 46.03074305 | P26: 43.83561644 | Q26: 67.30769231 | R26: 100 | S26: 50 | T26: 3.8 | U26: 7.2 | V26: 15.8 | W26: 11.5 | X26: 49.93317 | Y26: 50.32492 | Z26: 13.97805 | AA26: 13.82973 | AB26: 30.55141 | AC26: 30.67865 | AD26: 25.6823684 | AE26: 25.17850572 | AF26: Retten i Nykøbing F.
A27: Retten i Næstved | B27: 106.4522251 | C27: 102.3117616 | D27: 101.2406033 | E27: 95.96222851 | F27: 111.6879755 | G27: 108.2319237 | H27: 0.2110018934 | I27: 0.2055415245 | J27: 132 | K27: 137 | L27: 524.7538462 | M27: 502.7627119 | N27: 59.44236241 | O27: 69.69931074 | P27: 38.0952381 | Q27: 31.81818182 | R27: 50 | S27: 22.22222222 | T27: 9 | U27: 8 | V27: 19.7 | W27: 12.6 | X27: 63.45753 | Y27: 60.64993 | Z27: 18.70124 | AA27: 17.55258 | AB27: 35.80973 | AC27: 34.2524 | AD27: 31.63077126 | AE27: 29.79163161 | AF27: Retten i Næstved
A28: Retten i Holbæk | B28: 97.5198651 | C28: 101.478968 | D28: 98.0654575 | E28: 98.97449175 | F28: 95.65987869 | G28: 102.2496137 | H28: 0.1791150763 | I28: 0.1726009196 | J28: 121 | K28: 92 | L28: 423.1904762 | M28: 406.2105263 | N28: 61.38024691 | O28: 62.59675489 | P28: 66.66666667 | Q28: 60 | R28: 66.66666667 | S28: 33.33333333 | T28: 7.3 | U28: 8.7 | V28: 14.1 | W28: 18.7 | X28: 49.02491 | Y28: 45.54094 | Z28: 12.88079 | AA28: 12.52644 | AB28: 27.5082 | AC28: 25.08951 | AD28: 23.08612638 | AE28: 22.46541318 | AF28: Retten i Holbæk
A29: Retten i Roskilde | B29: 101.069153 | C29: 101.644567 | D29: 93.84592474 | E29: 99.36044334 | F29: 107.666467 | G29: 101.7161825 | H29: 0.1856861136 | I29: 0.1794598483 | J29: 152 | K29: 133 | L29: 631.7375566 | M29: 468.0430108 | N29: 62.14235163 | O29: 56.66790871 | P29: 38.46153846 | Q29: 26.66666667 | R29: - | S29: 0 | T29: 8 | U29: 4.5 | V29: 19.9 | W29: 11.9 | X29: 73.92877 | Y29: 71.54561 | Z29: 22.48327 | AA29: 20.71814 | AB29: 41.59892 | AC29: 43.09007 | AD29: 38.57747683 | AE29: 37.60096141 | AF29: Retten i Roskilde
A30: Retten i Hillerød | B30: 98.37624366 | C30: 92.68948395 | D30: 93.0362009 | E30: 83.08629181 | F30: 111.8642549 | G30: 111.2224862 | H30: 0.2259331167 | I30: 0.1991529722 | J30: 93 | K30: 113 | L30: 457.4690265 | M30: 502.826087 | N30: 49.4952913 | O30: 52.278487 | P30: 56.25 | Q30: 41.37931034 | R30: 50 | S30: 50 | T30: 9.2 | U30: 11.2 | V30: 20.1 | W30: 12.9 | X30: 51.95118 | Y30: 51.27185 | Z30: 14.9175 | AA30: 15.82924 | AB30: 25.88941 | AC30: 24.89634 | AD30: 26.59530339 | AE30: 25.43023796 | AF30: Retten i Hillerød
A31: Retten i Helsingør | B31: 96.60724523 | C31: 95.73488114 | D31: 85.9110245 | E31: 81.20297998 | F31: 105.9668203 | G31: 112.4083829 | H31: 0.1578139783 | I31: 0.1449705115 | J31: 106 | K31: 112 | L31: 446.7733333 | M31: 559.9230769 | N31: 55.7016081 | O31: 68.93901858 | P31: 53.84615385 | Q31: 40 | R31: - | S31: 0 | T31: 13.1 | U31: 10.5 | V31: 17.9 | W31: 8.1 | X31: 47.84352 | Y31: 48.75499 | Z31: 14.47586 | AA31: 15.65373 | AB31: 25.18211 | AC31: 23.82526 | AD31: 25.17136882 | AE31: 24.29663369 | AF31: Retten i Helsingør
A32: Retten i Lyngby | B32: 96.82753324 | C32: 88.90590959 | D32: 86.51477605 | E32: 79.383929 | F32: 110.7851418 | G32: 101.3125505 | H32: 0.2167293196 | I32: 0.2029569311 | J32: 103 | K32: 105 | L32: 475.2258065 | M32: 385.046729 | N32: 39.57969813 | O32: 41.28764479 | P32: 72.72727273 | Q32: 60 | R32: 100 | S32: 33.33333333 | T32: 9.7 | U32: 8.8 | V32: 15.3 | W32: 16.5 | X32: 55.74239 | Y32: 55.26352 | Z32: 19.51242 | AA32: 18.80749 | AB32: 29.6227 | AC32: 29.49397 | AD32: 31.14209533 | AE32: 29.34078699 | AF32: Retten i Lyngby
A33: Retten i Glostrup | B33: 98.98202225 | C33: 104.7182355 | D33: 100.008897 | E33: 103.6593422 | F33: 99.29484206 | G33: 101.7834329 | H33: 0.2005362955 | I33: 0.1838177813 | J33: 146 | K33: 142 | L33: 614.8410405 | M33: 509.8187702 | N33: 75.69489089 | O33: 80.59972946 | P33: 43.75 | Q33: 32.89473684 | R33: 0 | S33: 0 | T33: 11.8 | U33: 7.5 | V33: 20.6 | W33: 17.3 | X33: 115.40872 | Y33: 106.84539 | Z33: 32.60759 | AA33: 30.84999 | AB33: 66.42532 | AC33: 63.61432 | AD33: 56.2588608 | AE33: 54.12637493 | AF33: Retten i Glostrup
A34: Retten på Frederiksberg | B34: 101.2561076 | C34: 103.1249909 | D34: 97.63529013 | E34: 96.62965753 | F34: 107.7453051 | G34: 112.175938 | H34: 0.2027823079 | I34: 0.1769760671 | J34: 180 | K34: 162 | L34: 551.3023256 | M34: 542.7112299 | N34: 86.15949623 | O34: 76.66579713 | P34: 8.695652174 | Q34: 26.47058824 | R34: 0 | S34: 40 | T34: 12 | U34: 10.9 | V34: 18.3 | W34: 15.6 | X34: 79.92535 | Y34: 80.89792 | Z34: 23.83584 | AA34: 25.78624 | AB34: 44.71399 | AC34: 43.13565 | AD34: 40.40890417 | AE34: 40.72638703 | AF34: Retten på Frederiksberg
A35: Københavns Byret | B35: 96.14494276 | C35: 94.63679124 | D35: 97.09472333 | E35: 93.86221962 | F35: 91.31934696 | G35: 91.19352344 | H35: 0.2065795179 | I35: 0.2060769464 | J35: 96 | K35: 104 | L35: 512.7992278 | M35: 529.8726592 | N35: 78.12335474 | O35: 73.15736591 | P35: 70 | Q35: 38.02816901 | R35: - | S35: 16.66666667 | T35: 8.1 | U35: 10.3 | V35: 9.6 | W35: 8.7 | X35: 190.18872 | Y35: 186.12346 | Z35: 58.73651 | AA35: 59.37777 | AB35: 113.64497 | AC35: 108.74881 | AD35: 102.9923745 | AE35: 101.9412044 | AF35: Københavns Byret
A36: Retten på Bornholm | B36: 63.43657445 | C36: 62.38123174 | D36: 64.7059556 | E36: 61.18431382 | F36: 66.6434586 | G36: 67.97281795 | H36: 0.3379421224 | I36: 0.3262324987 | J36: 46 | K36: 35 | L36: 291.3529412 | M36: 332.1111111 | N36: 27.57464366 | O36: 27.50285249 | P36: 94.73684211 | Q36: 78.94736842 | R36: 100 | S36: - | T36: 7.2 | U36: 8.7 | V36: 6.4 | W36: 19.4 | X36: 14.55013 | Y36: 14.58443 | Z36: 3.48785 | AA36: 3.77068 | AB36: 7.80507 | AC36: 7.52959 | AD36: 7.31 | AE36: 7.08154941 | AF36: Retten på Bornholm
B37: 0 | C37: 0 | D37: 0 | E37: 0 | F37: 0 | G37: 0 | H37: 0 | I37: 0 | J37: 0 | K37: 0 | L37: 0 | M37: 0 | N37: 0 | O37: 0 | P37: 0 | Q37: 0 | R37: 0 | S37: 0 | T37: 0 | U37: 0 | V37: 0 | W37: 0 | X37: 0 | Y37: 0 | Z37: 0 | AA37: 0 | AB37: 0 | AC37: 0 | AD37: 0 | AE37: 0
B41: Samlet produktivitet, retten | D41: Samlet produktivitet, jurister | F41: Samlet produktivitet, kontor | H41: ÅRVK ledelse og adm. | J41: Sagstider domsmandssager | L41: Sagstider hfh. alm. Civil | N41: Sagstid alm. fogedsag | P41: Målopfyldelse vold | R41: Målopfyldelse voldtægt | T41: Sygefravær | V41: Personaleomsætning | X41: Årsværk retten | Z41: Årsværk jurist | AB41: Årsværk kontor | AD41: Samlet lønsum
A42: Ret | B42: 2010 | C42: 2011 | D42: 2010 | E42: 2011 | F42: 2010 | G42: 2011 | H42: 2011 | J42: 2011 | L42: 2011 | N42: 2011 | P42: 2011 | R42: 2011 | T42: 2011 | V42: 2011 | X42: 2011 | Z42: 2011 | AB42: 2011 | AD42: 2011
A43: Retten i Hjørring | H43: 0.1808500373 | I43: =#REF!-H43 ->  | J43: 93 | K43: =J13-J43 -> 3 | L43: 588.737931 | M43: =L13-L43 -> 43.03663544 | N43: 59.02804965 | O43: =N13-N43 -> -9.165354958 | P43: 72.72727273 | Q43: =P13-P43 -> -8.727272727 | R43: 75 | S43: =R13-R43 -> 0 | T43: 9.195340336 | U43: =T13-T43 -> -3.495340336 | V43: 13.3 | W43: =V13-V43 -> -0.6 | X43: 59.79526 | Y43: =#REF!-X43 ->  | Z43: 13.34803 | AA43: =#REF!-Z43 ->  | AB43: 33.06976 | AC43: =#REF!-AB43 ->  | AD43: 25.84077727 | AE43: =AD13-AD43 -> -0.61000303
A44: Retten i Aalborg | H44: 0.1440885883 | I44: =#REF!-H44 ->  | J44: 89 | K44: =J14-J44 -> 17 | L44: 549.7346939 | M44: =L14-L44 -> 43.74103428 | N44: 81.29756381 | O44: =N14-N44 -> -39.74046105 | P44: 70 | Q44: =P14-P44 -> -36.10169492 | R44: 0 | S44: =R14-R44 -> 60 | T44: 7.44756948 | U44: =T14-T44 -> -2.34756948 | V44: 11.1 | W44: =V14-V44 -> 0.9 | X44: 80.50898 | Y44: =#REF!-X44 ->  | Z44: 22.18722 | AA44: =#REF!-Z44 ->  | AB44: 48.742 | AC44: =#REF!-AB44 ->  | AD44: 38.77436805 | AE44: =AD14-AD44 -> -2.45152642
A45: Retten i Randers | H45: 0.2242573374 | I45: =#REF!-H45 ->  | J45: 160 | K45: -9 | L45: 633.4363636 | M45: -10.64977827 | N45: 76.65538674 | O45: -28.92977782 | P45: 43.1372549 | Q45: -3.137254902 | R45: 0 | S45: 0 | T45: 7.923213529 | U45: -1.023213529 | V45: 6.1 | W45: 4.7 | X45: 58.17027 | Y45: =#REF!-X45 ->  | Z45: 16.642 | AA45: =#REF!-Z45 ->  | AB45: 31.602 | AC45: =#REF!-AB45 ->  | AD45: 28.27830635 | AE45: -1.53165671
A46: Retten i Århus | H46: 0.1740744916 | I46: =#REF!-H46 ->  | J46: 187 | K46: -47 | L46: 585.8815789 | M46: -91.01315789 | N46: 68.09649662 | O46: -11.14068647 | P46: 44.44444444 | Q46: -5.982905983 | R46: 0 | S46: 100 | T46: 10.94548768 | U46: -0.1454876758 | V46: 11.4 | W46: 0.2 | X46: 90.00205 | Y46: =#REF!-X46 ->  | Z46: 26.56876 | AA46: =#REF!-Z46 ->  | AB46: 50.61565 | AC46: =#REF!-AB46 ->  | AD46: 43.96941009 | AE46: -2.94827794
A47: Retten i Viborg | H47: 0.1869106164 | I47: =#REF!-H47 ->  | J47: 110 | K47: -2 | L47: 598.0942408 | M47: -63.38692376 | N47: 70.36160608 | O47: -23.00530404 | P47: 67.64705882 | Q47: 0.09487666034 | R47: 100 | S47: -100 | T47: 7.021671724 | U47: -2.321671724 | V47: 10.2 | W47: 6 | X47: 55.19659 | Y47: =#REF!-X47 ->  | Z47: 15.1701 | AA47: =#REF!-Z47 ->  | AB47: 30.18242 | AC47: =#REF!-AB47 ->  | AD47: 26.64360749 | AE47: -0.7602469
A48: Retten i Holstebro | H48: 0.2156894162 | I48: =#REF!-H48 ->  | J48: 99 | K48: -13 | L48: 517.1038961 | M48: -41.2006703 | N48: 33.32733875 | O48: -0.787113838 | P48: 44.06779661 | Q48: 28.65947612 | R48: 66.66666667 | S48: 33.33333333 | T48: 7.512563132 | U48: -2.512563132 | V48: 11.9 | W48: 4.3 | X48: 46.44103 | Y48: =#REF!-X48 ->  | Z48: 11.27 | AA48: =#REF!-Z48 ->  | AB48: 23.056 | AC48: =#REF!-AB48 ->  | AD48: 21.76629581 | AE48: -2.36292676
A49: Retten i Herning | H49: 0.2140891957 | I49: =#REF!-H49 ->  | J49: 93 | K49: 1 | L49: 504 | M49: -70.02912621 | N49: 46.15043463 | O49: 0.6911232819 | P49: 60.41666667 | Q49: -7.785087719 | R49: 0 | S49: 16.66666667 | T49: 12.53367166 | U49: -3.933671661 | V49: 17.4 | W49: -2.1 | X49: 42.52615 | Y49: =#REF!-X49 ->  | Z49: 11.84873 | AA49: =#REF!-Z49 ->  | AB49: 23.57106 | AC49: =#REF!-AB49 ->  | AD49: 21.11471095 | AE49: -1.08911328
A50: Retten i Horsens | H50: 0.1978894442 | I50: =#REF!-H50 ->  | J50: 75 | K50: 21 | L50: 454.2037037 | M50: -36.2037037 | N50: 53.19851049 | O50: -3.481080771 | P50: 54.23728814 | Q50: -7.178464606 | R50: 999 | S50: -999 | T50: 9.656788281 | U50: -4.356788281 | V50: 12.5 | W50: 0.8 | X50: 53.41053 | Y50: =#REF!-X50 ->  | Z50: 14.38903 | AA50: =#REF!-Z50 ->  | AB50: 26.41923 | AC50: =#REF!-AB50 ->  | AD50: 25.08928797 | AE50: -0.55702694
A51: Retten i Kolding | H51: 0.1649720064 | I51: =#REF!-H51 ->  | J51: 150 | K51: -45 | L51: 651.4146341 | M51: -141.3681225 | N51: 50.7865086 | O51: -4.47278311 | P51: 65.51724138 | Q51: -4.292751583 | R51: 999 | S51: -899 | T51: 8.675627926 | U51: 3.024372074 | V51: 6.1 | W51: 0.5 | X51: 76.6875 | Y51: =#REF!-X51 ->  | Z51: 20.54952 | AA51: =#REF!-Z51 ->  | AB51: 45.06554 | AC51: =#REF!-AB51 ->  | AD51: 36.12998449 | AE51: -0.91798315
A52: Retten i Esbjerg | H52: 0.160884098 | I52: =#REF!-H52 ->  | J52: 134 | K52: 9 | L52: 627.5329949 | M52: 3.96421178 | N52: 57.25041368 | O52: 1.664444668 | P52: 31.91489362 | Q52: -1.050696086 | R52: 20 | S52: -20 | T52: 9.830962196 | U52: 0.469037804 | V52: 12.2 | W52: 2.8 | X52: 56.23196 | Y52: =#REF!-X52 ->  | Z52: 15.1442 | AA52: =#REF!-Z52 ->  | AB52: 32.03157 | AC52: =#REF!-AB52 ->  | AD52: 27.40345038 | AE52: -1.11861611
A53: Retten i Sønderborg | H53: 0.2093655007 | I53: =#REF!-H53 ->  | J53: 146 | K53: -69 | L53: 670.3020134 | M53: -82.27732206 | N53: 66.74565217 | O53: -13.89463951 | P53: 51.25 | Q53: 24.42567568 | R53: 0 | S53: 100 | T53: 5.1 | U53: 1.9 | V53: 12.9 | W53: -2.7 | X53: 62.58565 | Y53: =#REF!-X53 ->  | Z53: 15.411 | AA53: =#REF!-Z53 ->  | AB53: 36.905 | AC53: =#REF!-AB53 ->  | AD53: 32.31378702 | AE53: -0.24273886
A54: Retten i Odense | H54: 0.1463671875 | I54: =#REF!-H54 ->  | J54: 86 | K54: 11 | L54: 428.4694836 | M54: 31.54709102 | N54: 66.62457364 | O54: -16.25708768 | P54: 60.46511628 | Q54: -9.354005168 | R54: 37.5 | S54: 2.5 | T54: 7.222463525 | U54: 0.4775364751 | V54: 20.8 | W54: -12.5 | X54: 89.18757 | Y54: =#REF!-X54 ->  | Z54: 24.26146 | AA54: =#REF!-Z54 ->  | AB54: 52.27552 | AC54: =#REF!-AB54 ->  | AD54: 42.19547545 | AE54: -3.38033042
A55: Retten i Svendborg | H55: 0.2310023534 | I55: =#REF!-H55 ->  | J55: 100 | K55: 5 | L55: 457.0487805 | M55: 22.2170423 | N55: 39.74894068 | O55: 7.514131217 | P55: 60.52631579 | Q55: -3.922542205 | R55: 0 | S55: 40 | T55: 7.534810135 | U55: 6.665189865 | V55: 13.5 | W55: 4.2 | X55: 46.62935 | Y55: =#REF!-X55 ->  | Z55: 12.16381 | AA55: =#REF!-Z55 ->  | AB55: 26.86367 | AC55: =#REF!-AB55 ->  | AD55: 21.33413431 | AE55: -1.62707476
A56: Retten i Nykøbing F. | H56: 0.2106800886 | I56: =#REF!-H56 ->  | J56: 89 | K56: 5 | L56: 511.1076923 | M56: -120.8854701 | N56: 58.32441823 | O56: -7.095693557 | P56: 75 | Q56: -31.16438356 | R56: 33.33333333 | S56: 66.66666667 | T56: 3.1 | U56: 0.7 | V56: 5.9 | W56: 9.9 | X56: 57.71872 | Y56: =#REF!-X56 ->  | Z56: 15.11914 | AA56: =#REF!-Z56 ->  | AB56: 36.06329 | AC56: =#REF!-AB56 ->  | AD56: 27.75952561 | AE56: -2.07715721
A57: Retten i Næstved | H57: 0.2009634119 | I57: =#REF!-H57 ->  | J57: 175 | K57: -43 | L57: 667.1578947 | M57: -142.4040486 | N57: 90.31952363 | O57: -30.87716122 | P57: 19.60784314 | Q57: 18.48739496 | R57: 42.85714286 | S57: 7.142857143 | T57: 9.143692893 | U57: -0.1436928928 | V57: 8.7 | W57: 11 | X57: 71.95559 | Y57: =#REF!-X57 ->  | Z57: 19.95737 | AA57: =#REF!-Z57 ->  | AB57: 40.2327 | AC57: =#REF!-AB57 ->  | AD57: 33.44395386 | AE57: -1.8131826
A58: Retten i Holbæk | H58: 0.2013305659 | I58: =#REF!-H58 ->  | J58: 129 | K58: -8 | L58: 492.7288136 | M58: -69.53833737 | N58: 79.91707956 | O58: -18.53683265 | P58: 45.90163934 | Q58: 20.76502732 | R58: 0 | S58: 66.66666667 | T58: 10.0927266 | U58: -2.792726598 | V58: 3.7 | W58: 10.4 | X58: 52.84805 | Y58: =#REF!-X58 ->  | Z58: 12.96697 | AA58: =#REF!-Z58 ->  | AB58: 31.22812 | AC58: =#REF!-AB58 ->  | AD58: 24.06054675 | AE58: -0.97442037
A59: Retten i Roskilde | H59: 0.1985138754 | I59: =#REF!-H59 ->  | J59: 161 | K59: -9 | L59: 580.0681818 | M59: 51.66937474 | N59: 78.76805332 | O59: -16.62570169 | P59: 57.69230769 | Q59: -19.23076923 | R59: 0 | T59: 8.041632025 | U59: -0.04163202497 | V59: 8.1 | W59: 11.8 | X59: 81.93291 | Y59: =#REF!-X59 ->  | Z59: 20.991 | AA59: =#REF!-Z59 ->  | AB59: 50.15184 | AC59: =#REF!-AB59 ->  | AD59: 40.35202857 | AE59: -1.77455174
A60: Retten i Hillerød | H60: 0.1966681251 | I60: =#REF!-H60 ->  | J60: 94 | K60: =J30-J60 -> -1 | L60: 535.2297297 | M60: -77.76070318 | N60: 69.77698997 | O60: -20.28169867 | P60: 67.56756757 | Q60: -11.31756757 | R60: 0 | S60: 50 | T60: 10.53646297 | U60: -1.33646297 | V60: 15.7 | W60: 4.4 | X60: 59.93847 | Y60: =#REF!-X60 ->  | Z60: 15.51429 | AA60: =#REF!-Z60 ->  | AB60: 31.81079 | AC60: =#REF!-AB60 ->  | AD60: 28.1485882 | AE60: -1.55328481
A61: Retten i Helsingør | H61: 0.1747076542 | I61: =#REF!-H61 ->  | J61: 91 | K61: 15 | L61: 625.1616766 | M61: -178.3883433 | N61: 80.56226998 | O61: -24.86066188 | P61: 65.71428571 | Q61: -11.86813187 | R61: 33.33333333 | T61: 8.100239201 | U61: 4.999760799 | V61: 11 | W61: 6.9 | X61: 59.49472 | Y61: =#REF!-X61 ->  | Z61: 16.67005 | AA61: =#REF!-Z61 ->  | AB61: 30.65085 | AC61: =#REF!-AB61 ->  | AD61: 27.2421141 | AE61: -2.07074528
A62: Retten i Lyngby | H62: 0.215369746 | I62: =#REF!-H62 ->  | J62: 97 | K62: 6 | L62: 681.4340426 | M62: -206.2082361 | N62: 48.64405845 | O62: -9.064360324 | P62: 92 | Q62: -19.27272727 | R62: 0 | S62: 100 | T62: 13.96319244 | U62: -4.263192438 | V62: 11.4 | W62: 3.9 | X62: 64.72881 | Y62: =#REF!-X62 ->  | Z62: 18.96953 | AA62: =#REF!-Z62 ->  | AB62: 37.24601 | AC62: =#REF!-AB62 ->  | AD62: 32.28066977 | AE62: -1.13857444
A63: Retten i Glostrup | H63: 0.1969059645 | I63: =#REF!-H63 ->  | J63: 204 | K63: -58 | L63: 771.7123746 | M63: -156.8713341 | N63: 86.84454431 | O63: -11.14965342 | P63: 31.86813187 | Q63: 11.88186813 | R63: 0 | S63: 0 | T63: 10.93379043 | U63: 0.8662095749 | V63: 11.7 | W63: 8.9 | X63: 130.88573 | Y63: =#REF!-X63 ->  | Z63: 35.62068 | AA63: =#REF!-Z63 ->  | AB63: 77.10199 | AC63: =#REF!-AB63 ->  | AD63: 61.81072972 | AE63: -5.55186892
A64: Retten på Frederiksberg | H64: 0.174762062 | I64: =#REF!-H64 ->  | J64: 165 | K64: 15 | L64: 581.0327869 | M64: -29.7304613 | N64: 111.6069617 | O64: -25.44746547 | P64: 13.79310345 | Q64: -5.097451274 | R64: 0 | S64: 0 | T64: 13.6 | U64: -1.6 | V64: 6.9 | W64: 11.4 | X64: 85.6221 | Y64: =#REF!-X64 ->  | Z64: 23.5809 | AA64: =#REF!-Z64 ->  | AB64: 50.499 | AC64: =#REF!-AB64 ->  | AD64: 41.59169201 | AE64: -1.18278784
A65: Københavns Byret | H65: 0.2193251818 | I65: =#REF!-H65 ->  | J65: 149 | K65: -53 | L65: 545 | M65: -32.2007722 | N65: 119.5509634 | O65: -41.42760866 | P65: 31.50684932 | Q65: 38.49315068 | R65: 12.5 | T65: 9.68431915 | U65: -1.58431915 | V65: 7 | W65: 2.6 | X65: 193.76867 | Y65: =#REF!-X65 ->  | Z65: 57.94189 | AA65: =#REF!-Z65 ->  | AB65: 116.4215 | AC65: =#REF!-AB65 ->  | AD65: 102.5840725 | AE65: 0.40830193
A66: Retten på Bornholm | H66: 0.3437150824 | I66: =#REF!-H66 ->  | J66: 37 | K66: 9 | L66: 359.8181818 | M66: -68.46524064 | N66: 39.08944028 | O66: -11.51479662 | P66: 100 | Q66: -5.263157895 | R66: 999 | S66: -899 | T66: 6.887992143 | U66: 0.3120078568 | V66: 6.4 | W66: 0 | X66: 15.32718 | Y66: =#REF!-X66 ->  | Z66: 3.68583 | AA66: =#REF!-Z66 ->  | AB66: 8.36564 | AC66: =#REF!-AB66 ->  | AD66: 7.34 | AE66: -0.03
B67: 0 | C67: 0 | D67: 0 | E67: 0 | F67: 0 | G67: 0 | H67: 0 | I67: 0 | J67: 0 | K67: 0 | L67: 0 | M67: 0 | N67: 0 | O67: 0 | P67: 0 | Q67: 0 | R67: 0 | S67: 0 | T67: 0 | U67: 0 | V67: 0 | W67: 0 | X67: 0 | Y67: 0 | Z67: 0 | AA67: 0 | AB67: 0 | AC67: 0 | AD67: 0 | AE67: 0
